{"text_format":"5","workbook":"xlsx","n_sheets":28,"sheets":["Summary Sheet","OS-1B","OS-2B","OS-3B","OS-4B","OS-9B","OS-10B","OS-11B","OS-14B","OS-17B","OS-18B","OS-19B","OS-25B","OS-34B","OS-35B","OS-36B","OS-39B","OS-40B","OS-43B","OS-44B","OS-45C","OS-46A","OS-47A","OS-49A","OS-51A","OS-52A","OS-54A","OS-55A"],"props":{"creator":"unisco","last_modified_by":"DR.Ahmed Saker 2O14","company":"UNDP"},"not_rendered":{"defined_names":26},"read":"whole","date_system":"1900"}

{"sheet":"Summary Sheet","index":0,"n_rows":31,"n_cols":4,"rows_kept":31,"merged":[[30,0,30,2]]}
[]
[]
["NO.","NAME","CODE","COST (USD)"]
[1,"Hanadi Jamal Sonboul","OS-1B",{"$f":"'OS-1B'!F58","v":0}]
[2,"Mohamad Rida el Agha","OS-2B",{"$f":"'OS-2B'!F49","v":0}]
[3,"May Afif el Zein","OS-3B",{"$f":"'OS-3B'!F58","v":0}]
[4,"Moustapha Farran","OS-4B",{"$f":"'OS-4B'!F69","v":0}]
[5,"Khamis Mohamad Saadi","OS-9B",{"$f":"'OS-9B'!F65","v":0}]
[6,"Maher Saadi","OS-10B",{"$f":"'OS-10B'!F46","v":0}]
[7,"Nabil Khayzaran","OS-11B",{"$f":"'OS-11B'!F11","v":0}]
[8,"Mohamad el Kabach","OS-14B",{"$f":"'OS-14B'!F55","v":0}]
[9,"Nasser Jomaa","OS-17B",{"$f":"'OS-17B'!F49","v":0}]
[10,"Fatima Masri Nadar","OS-18B",{"$f":"'OS-18B'!F55","v":0}]
[11,"Walid Ahmad el Hodari","OS-19B",{"$f":"'OS-19B'!F55","v":0}]
[12,"Khaled Moustafa (Owner - Said Makkawi)","OS-25B",{"$f":"'OS-25B'!F45","v":0}]
[13,"Hanane Abou Sikkineh","OS-34B",{"$f":"'OS-34B'!F50","v":0}]
[14,"Mohamad Tantawi","OS-35B",{"$f":"'OS-35B'!F59","v":0}]
[15,"Samer al Kallas","OS-36B",{"$f":"'OS-36B'!F58","v":0}]
[16,"Samih Ali Zaghloul","OS-39B",{"$f":"'OS-39B'!F55","v":0}]
[17,"Fatima Redwan ","OS-40B",{"$f":"'OS-40B'!F26","v":0}]
[18,"Mohamad Fanas","OS-43B",{"$f":"'OS-43B'!F53","v":0}]
[19,"Mahmoud Rahme","OS-44B",{"$f":"'OS-44B'!F49","v":0}]
[20,"Mohamad Rafik el Sous","OS-45C",{"$f":"'OS-45C'!F58","v":0}]
[21,"Fatima Abdel Rahman","OS-46A",{"$f":"'OS-46A'!F54","v":0}]
[22,"Fatima Turkmani","OS-47A",{"$f":"'OS-47A'!F42","v":0}]
[23,"Kawsara Turkmani","OS-49A",{"$f":"'OS-49A'!F57","v":0}]
[24,"Mahmoud Moustafa el Qors","OS-51A",{"$f":"'OS-51A'!F16","v":0}]
[25,"Mohamad Hassan el Zaatari","OS-52A",{"$f":"'OS-52A'!F45","v":0}]
[26,"Moustafa Jammal ","OS-54A",{"$f":"'OS-54A'!F64","v":0}]
[27,"Nazih Mohamad Jomaa","OS-55A",{"$f":"'OS-55A'!F22","v":0}]
["Total",null,null,{"$f":"SUM(D4:D30)","v":0}]

{"sheet":"OS-1B","index":1,"n_rows":58,"n_cols":6,"rows_kept":58,"merged":[[0,0,0,2],[0,3,0,5],[2,0,2,5],[4,0,4,5],[5,0,6,0],[5,2,6,2],[5,3,6,3],[5,4,6,4],[5,5,6,5],[7,0,7,5],[8,0,9,0],[8,2,9,2],[8,3,9,3],[8,4,9,4],[8,5,9,5],[10,0,11,0],[10,2,11,2],[10,3,11,3],[10,4,11,4],[10,5,11,5],[12,0,13,0],[12,2,13,2],[12,3,13,3],[12,4,13,4],[12,5,13,5],[14,0,14,5],[15,0,16,0],[15,2,16,2],[15,3,16,3],[15,4,16,4],[15,5,16,5],[17,0,18,0],[17,2,18,2],[17,3,18,3],[17,4,18,4],[17,5,18,5],[19,0,19,5],[20,0,21,0],[20,2,21,2],[20,3,21,3],[20,4,21,4],[20,5,21,5],[22,0,22,5],[23,0,24,0],[23,2,24,2],[23,3,24,3],[23,4,24,4],[23,5,24,5],[25,0,26,0],[25,2,26,2],[25,3,26,3],[25,4,26,4],[25,5,26,5],[27,0,28,0],[27,2,28,2],[27,3,28,3],[27,4,28,4],[27,5,28,5],[29,0,30,0],[29,2,30,2],[29,3,30,3],[29,4,30,4],[29,5,30,5],[31,0,32,0],[31,2,32,2],[31,3,32,3],[31,4,32,4],[31,5,32,5],[33,0,34,0],[33,2,34,2],[33,3,34,3],[33,4,34,4],[33,5,34,5],[35,0,36,0],[35,2,36,2],[35,3,36,3],[35,4,36,4],[35,5,36,5],[37,0,38,0],[37,2,38,2],[37,3,38,3],[37,4,38,4],[37,5,38,5],[39,0,40,0],[39,2,40,2],[39,3,40,3],[39,4,40,4],[39,5,40,5],[41,0,42,0],[41,2,42,2],[41,3,42,3],[41,4,42,4],[41,5,42,5],[44,0,44,5],[46,0,47,0],[46,2,47,2],[46,3,47,3],[46,4,47,4],[46,5,47,5],[49,0,49,5],[50,0,51,0],[50,2,51,2],[50,3,51,3],[50,4,51,4],[50,5,51,5],[52,0,52,5],[53,0,54,0],[53,2,54,2],[53,3,54,3],[53,4,54,4],[53,5,54,5],[55,0,55,5]]}
["Name: Hanadi Jamal Sonboul",null,null,"Code: OS-01B P1+"]
["Item","Description","Unit","Quantity","U.Price","T.Price"]
["Demolishing Work (اعمال الهدم و ازالة الردميات)"]
[1,"Carefully demolish existing toilet floor complete with removing all concrete and material arising from site.\n تكسير ارضية من الباطون ونقل الردم الى المكب","m3",1,null,{"$f":"D4*E4","v":0}]
["Wood and other Works (اعمال خشبية وغيره)"]
[2,"Supply and Install Wooden partition with plywood 18mm. 1 sheet of black plywood 18mm, dimension equal to 244cmx122cm . Plywood sheets will be fixed vertically or horizontally between Wooden columns/beams of dimensions 400x8x8cm.","m2",5,null,{"$f":"D6*E6","v":0}]
[null,"تقديم وتركيب فواصل خشبيّة"]
["Metal Work (اعمال حديدية)"]
[3,"Supply and install single panel half glazed external steel door, dimensions adjusted to existing opening (around 100cmx220cm), thickness 3mm, complete with frame, ironmongery, hardware, obscure glass with wire mesh, handle cylinder  lock, provided with anti corrosion painting  by brush two coats.\nRepair, making good in case of damage to the surrounding walls to be included.","pcs",1,null,{"$f":"D9*E9","v":0}]
[null,"تقديم وتركيب بوابة حديد حسب القياس سماكة 3ملم ,مع زجاج محجر ومشرط في القسم العلوي مع مسكة وقفل ودهان طبقتين بمواد مقاومة للصدأ ومعالجة كل الاضرار حول الباب في حال حصولها اثناء التركيب"]
[4,"Supply and install steel window, dimensions adjusted to existing opening, complete with frame, ironmongery, hardware, obscure glass with wire mesh, handle, provided with anti corrosion painting by brush two coats.","m2",2,null,{"$f":"D11*E11","v":0}]
[null,"تقديم وتركيب شباك حديد حسب القياس ,مع زجاج محجر ومشرط مع مسكة  ودهان طبقتين بمواد مقاومة للصدأ "]
[5,"Supply and install structural steel I/H beams (12cm*6cm) to support concrete ceiling slabs including all necessary fittings and accessories  needed to properly complete the works to the engineer's approval.","lm",12,null,{"$f":"D13*E13","v":0}]
[null,"تقديم وتركيب جسر حديد (12cm*6cm) لتدعيم أسقف الباطون المسلّح"]
["Tiling Work (اعمال بلاط)"]
[6,"Supply and Apply Ceramic tiles to floors and walls, including surface preparation, backing mortar/adhesive, grouting between tiles and any other application or materials needed to properly complete the works to the engineer's approval.","m2",35,null,{"$f":"D16*E16","v":0}]
[null,"تقديم وتركيب بلاط سيراميك في الحمامات فقط,بعد تهيئة الارضية وحسب تعليمات المهندس"]
[7,"Supply and Install marble Threshold 10cm width and 2cm thickness  including mortar backing.","lm",2,null,{"$f":"D18*E18","v":0}]
[null," تقديم وتركيب برطاش من الرخام 2*10 سم"]
["Plastering Work (اعمال ورقة)"]
[8,"Supply and apply Internal plastering works to ceiling and walls (Saint Etienne - Traditional) 15 to 20mm thick including steel mesh and corner/opening stops and accessories, curing, scaffolding, spraying when needed, filling of existing cavities, smoothing and any other application needed for the proper completion of the works.","m2",80,null,{"$f":"D21*E21","v":0}]
[null,"أعمال ورقة داخلية على الجدران 15-20ملم مع شبك معدني حسب توجيهات المهندس "]
["Sanitary Work (اعمال صحية)"]
[9,"Supply install, test and commission European WC seat Lecico (Saidon type) or equivalent complete with flushing cistern, plastic cover, water and sewer connections, with all necessary fittings and accessories. Adjacent walls and floors to be reinstated to their original condition in case of any damages. ","Pcs",1,null,{"$f":"D24*E24","v":0}]
[null,"تقديم وتركيب كرسي حمام أوروبي (صيدون أو ما يعادلها )مع جميع التوصيلات من قساطل PPR و4\"UPVC مع كل الاكسسوارات اللازمة من غطاء بلاستيك "]
[10,"Supply install, test and commission flushing hose pipe set 1/2\" internal diameter for WC, with rubber hose and chrome angle valve with all its connections and necessary fittings and accessories.","Pcs",1,null,{"$f":"D26*E26","v":0}]
[null,"تقديم وتركيب نربيش صحي (شطافة) مع جميع التوصيلات والاكسسوارات"]
[11,"Supply and Installation of wash basin mixer with all its connections.","Pcs",1,null,{"$f":"D28*E28","v":0}]
[null,"تقديم وتركيب خلاط مغسلة مع كل التوصيلات"]
[12,"Supply and Intallation of sink mixer of approved quality with all its connections.","Pcs",1,null,{"$f":"D30*E30","v":0}]
[null,"تقديم وتركيب خلاط مجلى مع كل التوصيلات"]
[13,"Supply and install Shower mixer medium quality with telephone shower.                  ","Pcs",1,null,{"$f":"D32*E32","v":0}]
[null,"تقديم وتركيب خلاط دوش مع كل التوصيلات والاكسسوارات "]
[14,"Supply, install, test and commission Wash bassin Lecico make or equivalent with all its connections to water supply and drainage connection to the sewage network with all necessary fittings and accessories (including steel support, chrome outlet, porcelain shelf, etc.). Adjacent walls and floors to be reinstated to their original condition in case of any damages.","Pcs",1,null,{"$f":"D34*E34","v":0}]
[null,"تقديم وتركيب مغسلة ليسيكو أو ما يعادلها مع كل التوصيلات المائية والصحية بالاضافة لرف بورسلان وخلاط"]
[15,"Supply, install, test and commission stainless steel kitchen sink (over all size 50cmx100cm) with all its connections to water supply and drainage connection to the sewage network with all necessary fittings and accessories (including steel support, etc.). Adjacent walls and floors to be reinstated to their original condition in case of any damages.","pcs",1,null,{"$f":"D36*E36","v":0}]
[null,"تقديم وتركيب مجلى ستانلس ستيل مع كل التوصيلات المائية والصحية وخلاط مع قاعدة حديد"]
[16,"Supply, install, test and commission trapped gully 4 inches including handhole 20x20cm with stainless steel cover including builders works such as drilling in concrete, fixing in slab by using high compressive mortar, levelling and connecting to the drain network.                                      ","Pcs",3,null,{"$f":"D38*E38","v":0}]
[null,"تقديم وتركيب ريكار4\",  20*20 سم مع غطاء ستانلس مع كل ما يلزم من حفر وتثبيت في الارضية وتوصيل الى الشبكة الصحية"]
[17,"Supply, install, test and commission drainage UPVC pipes 4 inches, PN 16bar, including all needed accessories (coupling, Tee, Elbow, seal ring, etc.). Works include connection to the existing manhole including builders works.\nOn slab installation to be protected with concrete, underceiling installation to have metallic support, vertical installation to be fixed on wall by clamps with anchors. Slope in flow direction should exceed 1cm per meter.","m",4,null,{"$f":"D40*E40","v":0}]
[null,"تقديم وتركيب مجرور بلاستك UPVC 4'PN16barمع جميع ما يلزم من اكسسوارات لتوصيله الى الريكار العام"]
[18,"Supply, install, test and commission PVC Water tank NTG 3 layer 1000 liters (certified for drinking water), light grey, complete with float valve, brass valves, overflow pipe, hard PVC cover including inlet & outlet connections and all necessary fittings and accessories.","Pcs",1,null,{"$f":"D42*E42","v":0}]
[null,"تقديم وتركيب خزان مياة 3طبقات NTG سعة 1000لتر لمياه الشرب لون رمادي فاتح مع طواشة وسكر وغطاء وجميع التوصيلات"]
[19,"Supply install, test and commission PPR network pipes 16mm for hot and cold water supply including all necessary fittings and accessories.تمديد شبكة مياه باردة وساخنة مع جميع الاكسسوارات اللازمة","Lm",20,null,{"$f":"D44*E44","v":0}]
["Electrical Work (اعمال كهربائية)"]
[20,"Supply and Apply Lighting, power socket or switch point including all conduiting, wiring, boxes, covers, with all necessary accessories and related works complete to engineer's approval all to be imbedded in walls including making good plaster and paint.     أعمال انارة وتتضمن تركيب مفاتيح وبرايزوعلب مع أغطية واسلاك وجميع الاكسسوارات على ان تكون جميع الاعمال مخفية داخل الجدران مع كافة اعمل الورقة والدهان اللازمة لاخفاء العيوب ","Pcs",8,null,{"$f":"D46*E46","v":0}]
[21,"Supply, Install, test and commission electrical Water heater 80L, 2mm galvanized bottle with resistance 1000w, with thermal insulation, thermostat, thermometer, with complete connections to water and power supply (with 10v circuit breaker) including all necessary fittings, supports and accessories. Proper removal of existing damaged heater (if any) to be also included.","Pcs",1,null,0]
[null,"تركيب سخان 80 ليتر 2ملم 1000W معزول منظم حرارة وساعة حرارة مع جميع التوصيلات الكهربائية(ديجنتير 10 فولت) بالاضافة لتوصيل الماء"]
[22,"Supply and install Electrical Exhaust Fan (20cm*20cm), with all its connections and accessories to make it serviceable , the works to include opening in the hollow block wall if necessary and making good the edges of the wall after installation.\n .تزويد وتركيب مروحة(شفاط) لسحب الهواء من الداخل الى الخارج.","Pcs",1,null,{"$f":"D49*E49","v":0}]
["Aluminum Work (اعمال المنيوم)"]
[23,"Supply and Install Accordeon hard plastic Door, overall size 80cmx200cm, complete with all material and accessories needed and making good around the frame.","pcs",1,null,{"$f":"D51*E51","v":0}]
[null,"تقديم ويركيب باب أكورديم 80*200سم مع كافة الاكسسوارات"]
["Painting Work (اعمال دهان)"]
[24,"Painting the ceiling and walls with two coats of paint (base and mat eggshell). Painting should be done after scraping and cleaning the surface and applying putty coats where necessary.","m2",80,null,{"$f":"D54*E54","v":0}]
[null,"دهان الجدران والاسقف وجهين (الاول أساس) بعد تنظيف وحف ووضع معجونة حيث يلزم"]
["Unforseen Works (أعمال غير منظورة)"]
[25,"Supply and install wooden false ceiling made of 18mm wood sheet panels including all necessary fittings and accessories to engineer's approval.","m2",12,null,{"$f":"D57*E57","v":0}]
[{"$nulls":4},"Total",{"$f":"SUM(F4:F57)","v":0}]

{"sheet":"OS-2B","index":2,"n_rows":49,"n_cols":6,"rows_kept":49,"merged":[[0,0,0,2],[0,3,0,5],[2,0,2,5],[4,0,4,5],[6,0,6,5],[7,0,8,0],[7,2,8,2],[7,3,8,3],[7,4,8,4],[7,5,8,5],[9,0,10,0],[9,2,10,2],[9,3,10,3],[9,4,10,4],[9,5,10,5],[11,0,12,0],[11,2,12,2],[11,3,12,3],[11,4,12,4],[11,5,12,5],[13,0,13,5],[14,0,15,0],[14,2,15,2],[14,3,15,3],[14,4,15,4],[14,5,15,5],[16,0,17,0],[16,2,17,2],[16,3,17,3],[16,4,17,4],[16,5,17,5],[18,0,19,0],[18,2,19,2],[18,3,19,3],[18,4,19,4],[18,5,19,5],[20,0,21,0],[20,2,21,2],[20,3,21,3],[20,4,21,4],[20,5,21,5],[22,0,22,5],[23,0,24,0],[23,2,24,2],[23,3,24,3],[23,4,24,4],[23,5,24,5],[25,0,26,0],[25,2,26,2],[25,3,26,3],[25,4,26,4],[25,5,26,5],[27,0,27,5],[28,0,29,0],[28,2,29,2],[28,3,29,3],[28,4,29,4],[28,5,29,5],[30,0,30,5],[31,0,32,0],[31,2,32,2],[31,3,32,3],[31,4,32,4],[31,5,32,5],[33,0,34,0],[33,2,34,2],[33,3,34,3],[33,4,34,4],[33,5,34,5],[35,0,36,0],[35,2,36,2],[35,3,36,3],[35,4,36,4],[35,5,36,5],[37,0,38,0],[37,2,38,2],[37,3,38,3],[37,4,38,4],[37,5,38,5],[40,0,40,5],[41,0,42,0],[41,2,42,2],[41,3,42,3],[41,4,42,4],[41,5,42,5],[43,0,43,5],[44,0,45,0],[44,2,45,2],[44,3,45,3],[44,4,45,4],[44,5,45,5],[46,0,46,5]]}
["Name: Mohamad Rida el Agha",null,null,"Code: OS-2B P1+"]
["Item","Description","Unit","Quantity","U.Price","T.Price"]
["Demolishing Work (اعمال الهدم و ازالة الردميات)"]
[1,"Dismantle and remove from site existing wooden false ceiling and wall cladding including supports.\nفك سقف وحائط الخشب المستعار وعناصر الدعم القديمة وازالتها من الموقع","m2",20,null,{"$f":"D4*E4","v":0}]
["Concrete Work (اعمال باطون)"]
[2,"Repair of ceiling concrete surfaces including treatment of rusted steel, removal of damaged concrete, treatment of concrete surface and making good as necessary (grout, plaster, etc.) and to the Engineer's approval.\nأعمال تصليح أسقف باطون مع معالجة الحديد و ازالة البطون (العاطل ومعالجة الأسقف بالمواد المناسبة (غراوت, باطون, الخ حسب توجيهات المهندس ","m2",30,null,{"$f":"D6*E6","v":0}]
["Wood and other Works (اعمال خشبية وغيره)"]
[3,"Supply and install single leaf Wooden door (size 100cmx200cm) including subframe, Frame (Swedish), with complete ironmongery, Hinges, Handle and Keylock of approved quality (lock to be yale or equivalent) complete with painting by 2 coats of oil paint. All the wooden works to be initially cured and treated to resist humidity and insects.\nRepair, making good in case of damage to the surrounding walls to be included.","Pcs",1,null,{"$f":"D8*E8","v":0}]
[null,"تقديم وتركيب باب خشب قياس 100*200سم مع الاطار (سويد) مع جميع الاكسسوارات . مسكة , قفل يال أو ما يعادله مع دهان طبقتين من الدهان الزيتي ومعالجة كل الاضرار حول الباب في حال حصولها اثناء التركيب"]
[4,"Supply and install Wooden window including Shutters, Frame, glass panes, with complete ironmongery, Hinges, Handles  of approved quality complete with painting by 2 coats of oil paint. All the wooden works to be initially cured and treated to resist humidity and insects.\nRepair, making good in case of damage to the surrounding walls to be included. Window tile sills also to be included","m2",1,null,{"$f":"D10*E10","v":0}]
[null,"تقديم وتركيب شبّاك خشب مع الاطار مع جميع الاكسسوارات . مسكة  مع دهان طبقتين من الدهان الزيتي ومعالجة كل الاضرار حول الباب في حال حصولها اثناء التركيب"]
[5,"Repair wooden window including painting, hinges, handles and glass panes.","Pcs",1,null,{"$f":"D12*E12","v":0}]
[null,"اصلاح شباك خشب قياس مع دهان تركيب مسكة ومفصلات و زجاج"]
["Metal Work (اعمال حديدية)"]
[6,"Supply and install steel window, dimensions adjusted to existing opening, complete with frame, ironmongery, hardware, obscure glass with wire mesh, handle, provided with anti corrosion painting by brush two coats.","m2",2,null,{"$f":"D15*E15","v":0}]
[null,"تقديم وتركيب شباك حديد حسب القياس ,مع زجاج محجر ومشرط مع مسكة  ودهان طبقتين بمواد مقاومة للصدأ "]
[7,"Repair steel window including painting, handle and keylock.","pcs",1,null,{"$f":"D17*E17","v":0}]
[null,"اصلاح  شباك حديد مع مسكة وقفل ودهان"]
[8,"Supply and install structural steel I/H beams (14cm*7cm) to support concrete ceiling slabs including all necessary fittings and accessories  needed to properly complete the works to the engineer's approval.","lm",20,null,{"$f":"D19*E19","v":0}]
[null,"تقديم وتركيب جسر حديد (14cm*7cm) لتدعيم أسقف الباطون المسلّح"]
[9,"Supply and install structural steel I/H beams (16cm*8cm) to support concrete ceiling slabs including all necessary fittings and accessories  needed to properly complete the works to the engineer's approval.","lm",13,null,{"$f":"D21*E21","v":0}]
[null,"تقديم وتركيب جسر حديد (16cm*8cm) لتدعيم أسقف الباطون المسلّح"]
["Tiling Work (اعمال بلاط)"]
[10,"Supply and Apply Ceramic tiles to floors and walls, including surface preparation, backing mortar/adhesive, grouting between tiles and any other application or materials needed to properly complete the works to the engineer's approval.","m2",25,null,{"$f":"D24*E24","v":0}]
[null,"تقديم وتركيب بلاط سيراميك في الحمامات فقط,بعد تهيئة الارضية وحسب تعليمات المهندس"]
[11,"Supply and Install marble Threshold 10cm width and 2cm thickness  including mortar backing.","lm",3,null,{"$f":"D26*E26","v":0}]
[null," تقديم وتركيب برطاش من الرخام 2*10 سم"]
["Plastering Work (اعمال ورقة)"]
[12,"Supply and apply Internal plastering works to ceiling and walls (Saint Etienne - Traditional) 15 to 20mm thick including steel mesh and corner/opening stops and accessories, curing, scaffolding, spraying when needed, filling of existing cavities, smoothing and any other application needed for the proper completion of the works.","m2",140,null,{"$f":"D29*E29","v":0}]
[null,"أعمال ورقة داخلية على الجدران 15-20ملم مع شبك معدني حسب توجيهات المهندس "]
["Sanitary Work (اعمال صحية)"]
[13,"Supply install, test and commission European WC seat Lecico (Saidon type) or equivalent complete with flushing cistern, plastic cover, water and sewer connections, with all necessary fittings and accessories. Adjacent walls and floors to be reinstated to their original condition in case of any damages. ","Pcs",1,null,{"$f":"D32*E32","v":0}]
[null,"تقديم وتركيب كرسي حمام أوروبي (صيدون أو ما يعادلها )مع جميع التوصيلات من قساطل PPR و4\"UPVC مع كل الاكسسوارات اللازمة من غطاء بلاستيك "]
[14,"Supply install, test and commission flushing hose pipe set 1/2\" internal diameter for WC, with rubber hose and chrome angle valve with all its connections and necessary fittings and accessories.","Pcs",1,null,{"$f":"D34*E34","v":0}]
[null,"تقديم وتركيب نربيش صحي (شطافة) مع جميع التوصيلات والاكسسوارات"]
[15,"Supply, install, test and commission trapped gully 4 inches including handhole 20x20cm with stainless steel cover including builders works such as drilling in concrete, fixing in slab by using high compressive mortar, levelling and connecting to the drain network.                                      ","Pcs",3,null,{"$f":"D36*E36","v":0}]
[null,"تقديم وتركيب ريكار4\",  20*20 سم مع غطاء ستانلس مع كل ما يلزم من حفر وتثبيت في الارضية وتوصيل الى الشبكة الصحية"]
[16,"Supply, install, test and commission drainage UPVC pipes 4 inches, PN 16bar, including all needed accessories (coupling, Tee, Elbow, seal ring, etc.). Works include connection to the existing manhole including builders works.\nOn slab installation to be protected with concrete, underceiling installation to have metallic support, vertical installation to be fixed on wall by clamps with anchors. Slope in flow direction should exceed 1cm per meter.","m",4,null,{"$f":"D38*E38","v":0}]
[null,"تقديم وتركيب مجرور بلاستك UPVC 4'PN16barمع جميع ما يلزم من اكسسوارات لتوصيله الى الريكار العام"]
[17,"Supply install, test and commission PPR network pipes 16mm for hot and cold water supply including all necessary fittings and accessories.تمديد شبكة مياه باردة وساخنة مع جميع الاكسسوارات اللازمة","Lm",6,null,{"$f":"D40*E40","v":0}]
["Aluminum Work (اعمال المنيوم)"]
[18,"Supply and Install Accordeon hard plastic Door, overall size 80cmx200cm, complete with all material and accessories needed and making good around the frame.","pcs",2,null,{"$f":"D42*E42","v":0}]
[null,"تقديم ويركيب باب أكورديم 80*200سم مع كافة الاكسسوارات"]
["Painting Work (اعمال دهان)"]
[19,"Painting the ceiling and walls with two coats of paint (base and mat eggshell). Painting should be done after scraping and cleaning the surface and applying putty coats where necessary.","m2",140,null,{"$f":"D45*E45","v":0}]
[null,"دهان الجدران والاسقف وجهين (الاول أساس) بعد تنظيف وحف ووضع معجونة حيث يلزم"]
["Unforseen Works (أعمال غير منظورة)"]
[20,"Supply and install wooden false ceiling made of 18mm wood sheet panels including all necessary fittings and accessories to engineer's approval.","m2",20,null,{"$f":"D48*E48","v":0}]
[{"$nulls":4},"Total",{"$f":"SUM(F4:F48)","v":0}]

{"sheet":"OS-3B","index":3,"n_rows":58,"n_cols":6,"rows_kept":58,"merged":[[0,0,0,2],[0,3,0,5],[2,0,2,5],[4,0,4,5],[7,0,7,5],[8,0,9,0],[8,2,9,2],[8,3,9,3],[8,4,9,4],[8,5,9,5],[10,0,10,5],[11,0,12,0],[11,2,12,2],[11,3,12,3],[11,4,12,4],[11,5,12,5],[13,0,14,0],[13,2,14,2],[13,3,14,3],[13,4,14,4],[13,5,14,5],[15,0,15,5],[16,0,17,0],[16,2,17,2],[16,3,17,3],[16,4,17,4],[16,5,17,5],[18,0,18,5],[19,0,20,0],[19,2,20,2],[19,3,20,3],[19,4,20,4],[19,5,20,5],[21,0,21,5],[22,0,23,0],[22,2,23,2],[22,3,23,3],[22,4,23,4],[22,5,23,5],[24,0,24,5],[25,0,26,0],[25,2,26,2],[25,3,26,3],[25,4,26,4],[25,5,26,5],[27,0,28,0],[27,2,28,2],[27,3,28,3],[27,4,28,4],[27,5,28,5],[29,0,30,0],[29,2,30,2],[29,3,30,3],[29,4,30,4],[29,5,30,5],[31,0,32,0],[31,2,32,2],[31,3,32,3],[31,4,32,4],[31,5,32,5],[33,0,34,0],[33,2,34,2],[33,3,34,3],[33,4,34,4],[33,5,34,5],[35,0,36,0],[35,2,36,2],[35,3,36,3],[35,4,36,4],[35,5,36,5],[37,0,38,0],[37,2,38,2],[37,3,38,3],[37,4,38,4],[37,5,38,5],[39,0,40,0],[39,2,40,2],[39,3,40,3],[39,4,40,4],[39,5,40,5],[41,0,42,0],[41,2,42,2],[41,3,42,3],[41,4,42,4],[41,5,42,5],[43,0,44,0],[43,2,44,2],[43,3,44,3],[43,4,44,4],[43,5,44,5],[46,0,46,5],[48,0,49,0],[48,2,49,2],[48,3,49,3],[48,4,49,4],[48,5,49,5],[50,0,50,5],[51,0,52,0],[51,2,52,2],[51,3,52,3],[51,4,52,4],[51,5,52,5],[54,0,54,5],[55,0,56,0],[55,2,56,2],[55,3,56,3],[55,4,56,4],[55,5,56,5]]}
["Name: May Afif el Zein",null,null,"Code: OS-3B P1+"]
["Item","Description","Unit","Quantity","U.Price","T.Price"]
["Demolishing Work (اعمال الهدم و ازالة الردميات)"]
[1,"Carefully demolish existing damaged concrete slab complete with removing all steel reinforcement and material arising from site.\n تكسير ارضية من الباطون المسلّح ونقل الردم الى المكب","m2",85,null,{"$f":"E4*D4","v":0}]
["Concrete Work (اعمال باطون)"]
[2,"Reinforced concrete works (15cm thick concrete ceiling slab), including high yield steel reinforcement to Engineer's approval.\n سقف 15سم) أعمال باطون مسلح تتضمن تسليح حديد) ","m2",85,null,{"$f":"D6*E6","v":0}]
[3,"Repair of ceiling concrete surfaces including treatment of rusted steel, removal of damaged concrete, treatment of concrete surface and making good as necessary (grout, plaster, etc.) and to the Engineer's approval.\nأعمال تصليح أسقف باطون مع معالجة الحديد و ازالة البطون (العاطل ومعالجة الأسقف بالمواد المناسبة (غراوت, باطون, الخ حسب توجيهات المهندس ","m2",16,null,{"$f":"E7*D7","v":0}]
["Waterproofing Work (اعمال منع النشّ)"]
[4,"Supply, apply and test roof waterproofing using PU material, the works including but not limited to cleaning, surface preparation works, drying, filling cavities with mortar, applying primer, angle fillets, plaster works for parapets and any other materials needed prior to the proper application of 3 layers of PU according to the manufacturer's data sheet and method statement and to the Engineer's approval.","m2",115,null,{"$f":"D9*E9","v":0}]
[null,"تقديم ودهان مواد عازلة PU على الاسطح بعد تنظيفها وتهيئة السطح لاعمال العزل واعمال ورقة حسب توجيهات المهندس"]
["Wood and other Works (اعمال خشبية وغيره)"]
[5,"Supply and install single leaf Wooden door (size 100cmx200cm) including subframe, Frame (Swedish), with complete ironmongery, Hinges, Handle and Keylock of approved quality (lock to be yale or equivalent) complete with painting by 2 coats of oil paint. All the wooden works to be initially cured and treated to resist humidity and insects.\nRepair, making good in case of damage to the surrounding walls to be included.","Pcs",5,null,{"$f":"D12*E12","v":0}]
[null,"تقديم وتركيب باب خشب قياس 100*200سم مع الاطار (سويد) مع جميع الاكسسوارات . مسكة , قفل يال أو ما يعادله مع دهان طبقتين من الدهان الزيتي ومعالجة كل الاضرار حول الباب في حال حصولها اثناء التركيب"]
[6,"Supply and install Wooden window including Shutters, Frame, glass panes, with complete ironmongery, Hinges, Handles  of approved quality complete with painting by 2 coats of oil paint. All the wooden works to be initially cured and treated to resist humidity and insects.\nRepair, making good in case of damage to the surrounding walls to be included. Window tile sills also to be included","m2",1,null,{"$f":"D14*E14","v":0}]
[null,"تقديم وتركيب شبّاك خشب مع الاطار مع جميع الاكسسوارات . مسكة  مع دهان طبقتين من الدهان الزيتي ومعالجة كل الاضرار حول الباب في حال حصولها اثناء التركيب"]
["Metal Work (اعمال حديدية)"]
[7,"Supply and install structural steel I/H beams (12cm*6cm) to support concrete ceiling slabs including all necessary fittings and accessories  needed to properly complete the works to the engineer's approval.","lm",27,null,{"$f":"D17*E17","v":0}]
[null,"تقديم وتركيب جسر حديد (12cm*6cm) لتدعيم أسقف الباطون المسلّح"]
["Tiling Work (اعمال بلاط)"]
[8,"Supply and Apply Ceramic tiles to floors and walls, including surface preparation, backing mortar/adhesive, grouting between tiles and any other application or materials needed to properly complete the works to the engineer's approval.","m2",4,null,{"$f":"D20*E20","v":0}]
[null,"تقديم وتركيب بلاط سيراميك في الحمامات فقط,بعد تهيئة الارضية وحسب تعليمات المهندس"]
["Plastering Work (اعمال ورقة)"]
[9,"Supply and apply Internal plastering works to ceiling and walls 15 to 20mm thick including steel mesh and corner/opening stops and accessories, curing, scaffolding, spraying when needed, filling of existing cavities, smoothing and any other application needed for the proper completion of the works.","m2",300,null,{"$f":"D23*E23","v":0}]
[null,"أعمال ورقة داخلية على الجدران 15-20ملم مع شبك معدني حسب توجيهات المهندس "]
["Sanitary Work (اعمال صحية)"]
[10,"Supply install, test and commission European WC seat Lecico (Saidon type) or equivalent complete with flushing cistern, plastic cover, water and sewer connections, with all necessary fittings and accessories. Adjacent walls and floors to be reinstated to their original condition in case of any damages. ","Pcs",1,null,{"$f":"D26*E26","v":0}]
[null,"تقديم وتركيب كرسي حمام أوروبي (صيدون أو ما يعادلها )مع جميع التوصيلات من قساطل PPR و4\"UPVC مع كل الاكسسوارات اللازمة من غطاء بلاستيك "]
[11,"Supply install, test and commission flushing hose pipe set 1/2\" internal diameter for WC, with rubber hose and chrome angle valve with all its connections and necessary fittings and accessories.","Pcs",1,null,{"$f":"D28*E28","v":0}]
[null,"تقديم وتركيب نربيش صحي (شطافة) مع جميع التوصيلات والاكسسوارات"]
[12,"Supply and Installation of wash basin mixer with all its connections.","Pcs",1,null,{"$f":"D30*E30","v":0}]
[null,"تقديم وتركيب خلاط مغسلة مع كل التوصيلات"]
[13,"Supply and Intallation of sink mixer of approved quality with all its connections.","Pcs",1,null,{"$f":"D32*E32","v":0}]
[null,"تقديم وتركيب خلاط مجلى مع كل التوصيلات"]
[14,"Supply and install Shower mixer medium quality with telephone shower.                  ","Pcs",1,null,{"$f":"D34*E34","v":0}]
[null,"تقديم وتركيب خلاط دوش مع كل التوصيلات والاكسسوارات "]
[15,"Supply, install, test and commission Wash bassin Lecico make or equivalent with all its connections to water supply and drainage connection to the sewage network with all necessary fittings and accessories (including steel support, chrome outlet, porcelain shelf, etc.). Adjacent walls and floors to be reinstated to their original condition in case of any damages.","Pcs",1,null,{"$f":"D36*E36","v":0}]
[null,"تقديم وتركيب مغسلة ليسيكو أو ما يعادلها مع كل التوصيلات المائية والصحية بالاضافة لرف بورسلان وخلاط"]
[16,"Supply, install, test and commission stainless steel kitchen sink (over all size 50cmx100cm) with all its connections to water supply and drainage connection to the sewage network with all necessary fittings and accessories (including steel support, etc.). Adjacent walls and floors to be reinstated to their original condition in case of any damages.","pcs",1,null,{"$f":"D38*E38","v":0}]
[null,"تقديم وتركيب مجلى ستانلس ستيل مع كل التوصيلات المائية والصحية وخلاط مع قاعدة حديد"]
[17,"Supply, install, test and commission trapped gully 4 inches including handhole 20x20cm with stainless steel cover including builders works such as drilling in concrete, fixing in slab by using high compressive mortar, levelling and connecting to the drain network.                                      ","Pcs",3,null,{"$f":"D40*E40","v":0}]
[null,"تقديم وتركيب ريكار4\",  20*20 سم مع غطاء ستانلس مع كل ما يلزم من حفر وتثبيت في الارضية وتوصيل الى الشبكة الصحية"]
[18,"Supply, install, test and commission drainage UPVC pipes 4 inches, PN 16bar, including all needed accessories (coupling, Tee, Elbow, seal ring, etc.). Works include connection to the existing manhole including builders works.\nOn slab installation to be protected with concrete, underceiling installation to have metallic support, vertical installation to be fixed on wall by clamps with anchors. Slope in flow direction should exceed 1cm per meter.","m",8,null,{"$f":"D42*E42","v":0}]
[null,"تقديم وتركيب مجرور بلاستك UPVC 4'PN16barمع جميع ما يلزم من اكسسوارات لتوصيله الى الريكار العام"]
[19,"Supply, install, test and commission PVC Water tank NTG 3 layer 1000 liters (certified for drinking water), light grey, complete with float valve, brass valves, overflow pipe, hard PVC cover including inlet & outlet connections and all necessary fittings and accessories.","Pcs",1,null,{"$f":"D44*E44","v":0}]
[null,"تقديم وتركيب خزان مياة 3طبقات NTG سعة 1000لتر لمياه الشرب لون رمادي فاتح مع طواشة وسكر وغطاء وجميع التوصيلات"]
[20,"Supply install, test and commission PPR network pipes 16mm for hot and cold water supply including all necessary fittings and accessories.تمديد شبكة مياه باردة وساخنة مع جميع الاكسسوارات اللازمة","Lm",12,null,{"$f":"D46*E46","v":0}]
["Electrical Work (اعمال كهربائية)"]
[21,"Supply and Apply Lighting, power socket or switch point including all conduiting, wiring, boxes, covers, with all necessary accessories and related works complete to engineer's approval all to be imbedded in walls including making good plaster and paint.     أعمال انارة وتتضمن تركيب مفاتيح وبرايزوعلب مع أغطية واسلاك وجميع الاكسسوارات على ان تكون جميع الاعمال مخفية داخل الجدران مع كافة اعمل الورقة والدهان اللازمة لاخفاء العيوب ","Pcs",12,null,{"$f":"D48*E48","v":0}]
[22,"Supply, Install, test and commission electrical Water heater 80L, 2mm galvanized bottle with resistance 1000w, with thermal insulation, thermostat, thermometer, with complete connections to water and power supply (with 10v circuit breaker) including all necessary fittings, supports and accessories. Proper removal of existing damaged heater (if any) to be also included.","Pcs",1,null,{"$f":"D49*E49","v":0}]
[null,"تركيب سخان 80 ليتر 2ملم 1000W معزول منظم حرارة وساعة حرارة مع جميع التوصيلات الكهربائية(ديجنتير 10 فولت) بالاضافة لتوصيل الماء"]
["Aluminum Work (اعمال المنيوم)"]
[23,"Supply and Install Accordeon hard plastic Door, overall size 80cmx200cm, complete with all material and accessories needed and making good around the frame.","pcs",2,null,{"$f":"D52*E52","v":0}]
[null,"تقديم ويركيب باب أكورديم 80*200سم مع كافة الاكسسوارات"]
[24,"Supply and Install 6mm tempered glass panes for existing doors and windows.تركيب زجاج 6ملم للابواب والشبابيك الموجودة","m2",3,null,{"$f":"D54*E54","v":0}]
["Painting Work (اعمال دهان)"]
[25,"Painting the ceiling and walls with two coats of paint (base and mat eggshell). Painting should be done after scraping and cleaning the surface and applying putty coats where necessary.","m2",300,null,{"$f":"E56*D56","v":0}]
[null,"دهان الجدران والاسقف وجهين (الاول أساس) بعد تنظيف وحف ووضع معجونة حيث يلزم"]
[{"$nulls":4},"Total",{"$f":"SUM(F43:F57)","v":0}]

{"sheet":"OS-4B","index":4,"n_rows":69,"n_cols":6,"rows_kept":69,"merged":[[0,0,0,2],[0,3,0,5],[2,0,2,5],[4,0,4,5],[6,0,6,5],[7,0,8,0],[7,2,8,2],[7,3,8,3],[7,4,8,4],[7,5,8,5],[9,0,9,5],[10,0,11,0],[10,2,11,2],[10,3,11,3],[10,4,11,4],[10,5,11,5],[12,0,13,0],[12,2,13,2],[12,3,13,3],[12,4,13,4],[12,5,13,5],[14,0,14,5],[15,0,16,0],[15,2,16,2],[15,3,16,3],[15,4,16,4],[15,5,16,5],[17,0,17,5],[18,0,19,0],[18,2,19,2],[18,3,19,3],[18,4,19,4],[18,5,19,5],[20,0,21,0],[20,2,21,2],[20,3,21,3],[20,4,21,4],[20,5,21,5],[22,0,22,5],[23,0,24,0],[23,2,24,2],[23,3,24,3],[23,4,24,4],[23,5,24,5],[25,0,26,0],[25,2,26,2],[25,3,26,3],[25,4,26,4],[25,5,26,5],[27,0,27,5],[28,0,29,0],[28,2,29,2],[28,3,29,3],[28,4,29,4],[28,5,29,5],[30,0,31,0],[30,2,31,2],[30,3,31,3],[30,4,31,4],[30,5,31,5],[32,0,33,0],[32,2,33,2],[32,3,33,3],[32,4,33,4],[32,5,33,5],[34,0,35,0],[34,2,35,2],[34,3,35,3],[34,4,35,4],[34,5,35,5],[36,0,37,0],[36,2,37,2],[36,3,37,3],[36,4,37,4],[36,5,37,5],[38,0,39,0],[38,2,39,2],[38,3,39,3],[38,4,39,4],[38,5,39,5],[40,0,41,0],[40,2,41,2],[40,3,41,3],[40,4,41,4],[40,5,41,5],[42,0,43,0],[42,2,43,2],[42,3,43,3],[42,4,43,4],[42,5,43,5],[44,0,45,0],[44,2,45,2],[44,3,45,3],[44,4,45,4],[44,5,45,5],[46,0,47,0],[46,2,47,2],[46,3,47,3],[46,4,47,4],[46,5,47,5],[48,0,49,0],[48,2,49,2],[48,3,49,3],[48,4,49,4],[48,5,49,5],[51,0,51,5],[53,0,54,0],[53,2,54,2],[53,3,54,3],[53,4,54,4],[53,5,54,5],[56,0,56,5],[57,0,58,0],[57,2,58,2],[57,3,58,3],[57,4,58,4],[57,5,58,5],[59,0,60,0],[59,2,60,2],[59,3,60,3],[59,4,60,4],[59,5,60,5],[61,0,61,5],[62,0,63,0],[62,2,63,2],[62,3,63,3],[62,4,63,4],[62,5,63,5],[64,0,64,5],[66,0,66,5]]}
["Name: Moustapha Farran",null,null,"Code: OS-4B P1+"]
["Item","Description","Unit","Quantity","U.Price","T.Price"]
["Demolishing Work (اعمال الهدم و ازالة الردميات)"]
[1,"Carefully demolish concrete block wall complete with removing all material arising from site and make good surrounding finish. Remove all existing debris from site.\n تكسير جدران من احجار الباطون ونقل الردم الى المكب","m2",4,null,{"$f":"E4*D4","v":0}]
["Concrete Work (اعمال باطون)"]
[2,"Repair of ceiling concrete surfaces including treatment of rusted steel, removal of damaged concrete, treatment of concrete surface and making good as necessary (grout, plaster, etc.) and to the Engineer's approval.\nأعمال تصليح أسقف باطون مع معالجة الحديد و ازالة البطون (العاطل ومعالجة الأسقف بالمواد المناسبة (غراوت, باطون, الخ حسب توجيهات المهندس ","m2",6,null,{"$f":"E6*D6","v":0}]
["Waterproofing Work (اعمال منع النشّ)"]
[3,"Supply, apply and test roof waterproofing using PU material, the works including but not limited to cleaning, surface preparation works, drying, filling cavities with mortar, applying primer, angle fillets, plaster works for parapets and any other materials needed prior to the proper application of 3 layers of PU according to the manufacturer's data sheet and method statement and to the Engineer's approval.","m2",30,null,{"$f":"D8*E8","v":0}]
[null,"تقديم ودهان مواد عازلة PU على الاسطح بعد تنظيفها وتهيئة السطح لاعمال العزل واعمال ورقة حسب توجيهات المهندس"]
["Wood and other Works (اعمال خشبية وغيره)"]
[4,"Supply and install single leaf Wooden door (size 100cmx200cm) including subframe, Frame (Swedish), with complete ironmongery, Hinges, Handle and Keylock of approved quality (lock to be yale or equivalent) complete with painting by 2 coats of oil paint. All the wooden works to be initially cured and treated to resist humidity and insects.\nRepair, making good in case of damage to the surrounding walls to be included.","Pcs",1,null,{"$f":"D11*E11","v":0}]
[null,"تقديم وتركيب باب خشب قياس 100*200سم مع الاطار (سويد) مع جميع الاكسسوارات . مسكة , قفل يال أو ما يعادله مع دهان طبقتين من الدهان الزيتي ومعالجة كل الاضرار حول الباب في حال حصولها اثناء التركيب"]
[5,"Supply and install Wooden window including Shutters, Frame, glass panes, with complete ironmongery, Hinges, Handles  of approved quality complete with painting by 2 coats of oil paint. All the wooden works to be initially cured and treated to resist humidity and insects.\nRepair, making good in case of damage to the surrounding walls to be included. Window tile sills also to be included","m2",5,null,{"$f":"D13*E13","v":0}]
[null,"تقديم وتركيب شبّاك خشب مع الاطار مع جميع الاكسسوارات . مسكة  مع دهان طبقتين من الدهان الزيتي ومعالجة كل الاضرار حول الباب في حال حصولها اثناء التركيب"]
["Metal Work (اعمال حديدية)"]
[6,"Supply and install structural steel I/H beams (12cm*6cm) to support concrete ceiling slabs including all necessary fittings and accessories  needed to properly complete the works to the engineer's approval.","lm",15,null,{"$f":"D16*E16","v":0}]
[null,"تقديم وتركيب جسر حديد (12cm*6cm) لتدعيم أسقف الباطون المسلّح"]
["Tiling Work (اعمال بلاط)"]
[7,"Supply and Apply Ceramic tiles to floors and walls, including surface preparation, backing mortar/adhesive, grouting between tiles and any other application or materials needed to properly complete the works to the engineer's approval.","m2",44,null,{"$f":"D19*E19","v":0}]
[null,"تقديم وتركيب بلاط سيراميك في الحمامات فقط,بعد تهيئة الارضية وحسب تعليمات المهندس"]
[8,"Supply and Install marble Threshold 10cm width and 2cm thickness  including mortar backing.","lm",1,null,{"$f":"D21*E21","v":0}]
[null," تقديم وتركيب برطاش من الرخام 2*10 سم"]
["Plastering Work (اعمال ورقة)"]
[9,"Supply and apply Internal plastering works to ceiling and walls (Saint Etienne - Traditional) 15 to 20mm thick including steel mesh and corner/opening stops and accessories, curing, scaffolding, spraying when needed, filling of existing cavities, smoothing and any other application needed for the proper completion of the works.","m2",50,null,{"$f":"D24*E24","v":0}]
[null,"أعمال ورقة داخلية على الجدران 15-20ملم مع شبك معدني حسب توجيهات المهندس "]
[10,"Supply and Apply External plastering works to walls (Saint Etienne - Traditional) 15 to 20mm thick including steel mesh and corner/opening stops and accessories, curing, scaffolding, spraying when needed, filling of existing cavities, smoothing and any other application needed for the proper completion of the works.","m2",40,null,{"$f":"E26*D26","v":0}]
[null,"أعمال ورقة خارجية 15-20ملم مع شبك معدني حسب توجيهات المهندس "]
["Sanitary Work (اعمال صحية)"]
[11,"Supply install, test and commission European WC seat Lecico (Saidon type) or equivalent complete with flushing cistern, plastic cover, water and sewer connections, with all necessary fittings and accessories. Adjacent walls and floors to be reinstated to their original condition in case of any damages. ","Pcs",1,null,{"$f":"D29*E29","v":0}]
[null,"تقديم وتركيب كرسي حمام أوروبي (صيدون أو ما يعادلها )مع جميع التوصيلات من قساطل PPR و4\"UPVC مع كل الاكسسوارات اللازمة من غطاء بلاستيك "]
[12,"Supply install, test and commission toilet tap with all its connections and necessary fittings and accessories.","Pcs",1,null,{"$f":"D31*E31","v":0}]
[null,"تركيب حنفية مع جميع الاكسسوارات"]
[13,"Supply install, test and commission flushing hose pipe set 1/2\" internal diameter for WC, with rubber hose and chrome angle valve with all its connections and necessary fittings and accessories.","Pcs",1,null,{"$f":"D33*E33","v":0}]
[null,"تقديم وتركيب نربيش صحي (شطافة) مع جميع التوصيلات والاكسسوارات"]
[14,"Supply and Installation of wash basin mixer with all its connections.","Pcs",1,null,{"$f":"D35*E35","v":0}]
[null,"تقديم وتركيب خلاط مغسلة مع كل التوصيلات"]
[15,"Supply and Intallation of sink mixer of approved quality with all its connections.","Pcs",1,null,{"$f":"D37*E37","v":0}]
[null,"تقديم وتركيب خلاط مجلى مع كل التوصيلات"]
[16,"Supply and install Shower mixer medium quality with telephone shower.                  ","Pcs",1,null,{"$f":"D39*E39","v":0}]
[null,"تقديم وتركيب خلاط دوش مع كل التوصيلات والاكسسوارات "]
[17,"Supply, install, test and commission Wash bassin Lecico make or equivalent with all its connections to water supply and drainage connection to the sewage network with all necessary fittings and accessories (including steel support, chrome outlet, porcelain shelf, etc.). Adjacent walls and floors to be reinstated to their original condition in case of any damages.","Pcs",1,null,{"$f":"D41*E41","v":0}]
[null,"تقديم وتركيب مغسلة ليسيكو أو ما يعادلها مع كل التوصيلات المائية والصحية بالاضافة لرف بورسلان وخلاط"]
[18,"Supply, install, test and commission stainless steel kitchen sink (over all size 50cmx100cm) with all its connections to water supply and drainage connection to the sewage network with all necessary fittings and accessories (including steel support, etc.). Adjacent walls and floors to be reinstated to their original condition in case of any damages.","pcs",1,null,{"$f":"D43*E43","v":0}]
[null,"تقديم وتركيب مجلى ستانلس ستيل مع كل التوصيلات المائية والصحية وخلاط مع قاعدة حديد"]
[19,"Supply, install, test and commission trapped gully 4 inches including handhole 20x20cm with stainless steel cover including builders works such as drilling in concrete, fixing in slab by using high compressive mortar, levelling and connecting to the drain network.                                      ","Pcs",3,null,{"$f":"D45*E45","v":0}]
[null,"تقديم وتركيب ريكار4\",  20*20 سم مع غطاء ستانلس مع كل ما يلزم من حفر وتثبيت في الارضية وتوصيل الى الشبكة الصحية"]
[20,"Supply, install, test and commission drainage UPVC pipes 4 inches, PN 16bar, including all needed accessories (coupling, Tee, Elbow, seal ring, etc.). Works include connection to the existing manhole including builders works.\nOn slab installation to be protected with concrete, underceiling installation to have metallic support, vertical installation to be fixed on wall by clamps with anchors. Slope in flow direction should exceed 1cm per meter.","m",8,null,{"$f":"D47*E47","v":0}]
[null,"تقديم وتركيب مجرور بلاستك UPVC 4'PN16barمع جميع ما يلزم من اكسسوارات لتوصيله الى الريكار العام"]
[21,"Supply, install, test and commission PVC Water tank NTG 3 layer 1000 liters (certified for drinking water), light grey, complete with float valve, brass valves, overflow pipe, hard PVC cover including inlet & outlet connections and all necessary fittings and accessories.","Pcs",1,null,{"$f":"D49*E49","v":0}]
[null,"تقديم وتركيب خزان مياة 3طبقات NTG سعة 1000لتر لمياه الشرب لون رمادي فاتح مع طواشة وسكر وغطاء وجميع التوصيلات"]
[22,"Supply install, test and commission PPR network pipes 16mm for hot and cold water supply including all necessary fittings and accessories.تمديد شبكة مياه باردة وساخنة مع جميع الاكسسوارات اللازمة","Lm",12,null,{"$f":"D51*E51","v":0}]
["Electrical Work (اعمال كهربائية)"]
[23,"Supply and Apply Lighting, power socket or switch point including all conduiting, wiring, boxes, covers, with all necessary accessories and related works complete to engineer's approval all to be imbedded in walls including making good plaster and paint.     أعمال انارة وتتضمن تركيب مفاتيح وبرايزوعلب مع أغطية واسلاك وجميع الاكسسوارات على ان تكون جميع الاعمال مخفية داخل الجدران مع كافة اعمل الورقة والدهان اللازمة لاخفاء العيوب ","Pcs",6,null,{"$f":"D53*E53","v":0}]
[24,"Supply, Install, test and commission electrical Water heater 80L, 2mm galvanized bottle with resistance 1000w, with thermal insulation, thermostat, thermometer, with complete connections to water and power supply (with 10v circuit breaker) including all necessary fittings, supports and accessories. Proper removal of existing damaged heater (if any) to be also included.","Pcs",1,null,{"$f":"D54*E54","v":0}]
[null,"تركيب سخان 80 ليتر 2ملم 1000W معزول منظم حرارة وساعة حرارة مع جميع التوصيلات الكهربائية(ديجنتير 10 فولت) بالاضافة لتوصيل الماء"]
[25,"Supply and install Electrical Exhaust Fan (20cm*20cm), with all its connections and accessories to make it serviceable , the works to include opening in the hollow block wall if necessary and making good the edges of the wall after installation.\n .تزويد وتركيب مروحة(شفاط) لسحب الهواء من الداخل الى الخارج.","Pcs",1,null,{"$f":"E56*D56","v":0}]
["Aluminum Work (اعمال المنيوم)"]
[26,"Supply and Install Accordeon hard plastic Door, overall size 80cmx200cm, complete with all material and accessories needed and making good around the frame.","pcs",2,null,{"$f":"D58*E58","v":0}]
[null,"تقديم ويركيب باب أكورديم 80*200سم مع كافة الاكسسوارات"]
[27,"Supply and Install Aluminum single glazed window with glass, (Sidem 2000) with frame, and all accessories needed for installation and proper use (Folda 1.6mm) including window tile sills.","m2",0.5,null,{"$f":"D60*E60","v":0}]
[null,"تركيب شباك المنيوم سيدم 2000 (1.6ملم) مع زجاج مفرد مع شعائر بلاط حول دائر الشباك"]
["Painting Work (اعمال دهان)"]
[28,"Painting the ceiling and walls with two coats of paint (base and mat eggshell). Painting should be done after scraping and cleaning the surface and applying putty coats where necessary.","m2",100,null,{"$f":"E63*D63","v":0}]
[null,"دهان الجدران والاسقف وجهين (الاول أساس) بعد تنظيف وحف ووضع معجونة حيث يلزم"]
["Roofing Work(أعمال الأسطح)"]
[29,"Supply and installation of zinc sheet roofing , including drain channel, supporting steel structure made out of (10x5x0.3)cm hollow steel elements all properly painted with antirust and oil paint (2 coats each). Structure to be covered with prepainted zinc panels with proper overlapping, complete with all fittings and accessories necessary for the proper execution of the works to engineer's approval.","m2",6,null,{"$f":"D66*E66","v":0}]
["Unforseen Works (أعمال غير منظورة)"]
[30,"Supply and install wooden false ceiling made of 18mm wood sheet panels including all necessary fittings and accessories to engineer's approval. Removal of old false ceiling to be included.","m2",20,null,{"$f":"E68*D68","v":0}]
[{"$nulls":4},"Total",{"$f":"SUM(F4:F68)","v":0}]

{"sheet":"OS-9B","index":5,"n_rows":65,"n_cols":6,"rows_kept":65,"merged":[[0,0,0,2],[0,3,0,5],[2,0,2,5],[4,0,4,5],[6,0,6,5],[7,0,8,0],[7,2,8,2],[7,3,8,3],[7,4,8,4],[7,5,8,5],[9,0,10,0],[9,2,10,2],[9,3,10,3],[9,4,10,4],[9,5,10,5],[11,0,11,5],[12,0,13,0],[12,2,13,2],[12,3,13,3],[12,4,13,4],[12,5,13,5],[14,0,15,0],[14,2,15,2],[14,3,15,3],[14,4,15,4],[14,5,15,5],[16,0,16,5],[17,0,18,0],[17,2,18,2],[17,3,18,3],[17,4,18,4],[17,5,18,5],[19,0,20,0],[19,2,20,2],[19,3,20,3],[19,4,20,4],[19,5,20,5],[21,0,21,5],[22,0,23,0],[22,2,23,2],[22,3,23,3],[22,4,23,4],[22,5,23,5],[24,0,25,0],[24,2,25,2],[24,3,25,3],[24,4,25,4],[24,5,25,5],[26,0,26,5],[27,0,28,0],[27,2,28,2],[27,3,28,3],[27,4,28,4],[27,5,28,5],[29,0,30,0],[29,2,30,2],[29,3,30,3],[29,4,30,4],[29,5,30,5],[31,0,32,0],[31,2,32,2],[31,3,32,3],[31,4,32,4],[31,5,32,5],[33,0,34,0],[33,2,34,2],[33,3,34,3],[33,4,34,4],[33,5,34,5],[35,0,36,0],[35,2,36,2],[35,3,36,3],[35,4,36,4],[35,5,36,5],[37,0,38,0],[37,2,38,2],[37,3,38,3],[37,4,38,4],[37,5,38,5],[39,0,40,0],[39,2,40,2],[39,3,40,3],[39,4,40,4],[39,5,40,5],[41,0,42,0],[41,2,42,2],[41,3,42,3],[41,4,42,4],[41,5,42,5],[43,0,44,0],[43,2,44,2],[43,3,44,3],[43,4,44,4],[43,5,44,5],[45,0,46,0],[45,2,46,2],[45,3,46,3],[45,4,46,4],[45,5,46,5],[48,0,48,5],[50,0,51,0],[50,2,51,2],[50,3,51,3],[50,4,51,4],[50,5,51,5],[52,0,52,5],[53,0,54,0],[53,2,54,2],[53,3,54,3],[53,4,54,4],[53,5,54,5],[55,0,56,0],[55,2,56,2],[55,3,56,3],[55,4,56,4],[55,5,56,5],[57,0,57,5],[58,0,59,0],[58,2,59,2],[58,3,59,3],[58,4,59,4],[58,5,59,5],[60,0,61,0],[60,2,61,2],[60,3,61,3],[60,4,61,4],[60,5,61,5],[62,0,62,5]]}
["Name: Khamis Mohamad Saadi + Son",null,null,"Code: OS-9B P1+"]
["Item","Description","Unit","Quantity","U.Price","T.Price"]
["Demolishing Work (اعمال الهدم و ازالة الردميات)"]
[1,"Carefully demolish concrete block wall complete with removing all material arising from site and make good surrounding finish. Remove all existing debris from site.\n تكسير جدران من احجار الباطون ونقل الردم الى المكب","m2",1,null,{"$f":"E4*D4","v":0}]
["Block Work (اعمال حجر)"]
[2,"Supply and install Hollow blocks walls 12 cm including sand-cement mortar, mesh, accessories, angle beads       تقديم وعمار حجر12 سم مع كل ما يلزم من مواد","m2",2,null,{"$f":"D6*E6","v":0}]
["Waterproofing Work (اعمال منع النشّ)"]
[3,"Supply, applyl, and test 4mm SBS membrane torch applied to vertical upstands with overlap as necessary including angle fillets, plastering and aluminum flashing all to engineer's approval. ","Lm",20,null,{"$f":"E8*D8","v":0}]
[null,"تقديم وتركيب واختبار طبقة عازلة 4mm SBS على الاماكن الشاقولية (عمامة السطح) مع تعبئة الزاوية واعمال ورقة وتثبيتها برقائق من الالمنيوم حسب توجيهات المهندس"]
[4,"Supply, apply and test roof waterproofing using PU material, the works including but not limited to cleaning, surface preparation works, drying, filling cavities with mortar, applying primer, angle fillets, plaster works for parapets and any other materials needed prior to the proper application of 3 layers of PU according to the manufacturer's data sheet and method statement and to the Engineer's approval.","m2",35,null,{"$f":"D10*E10","v":0}]
[null,"تقديم ودهان مواد عازلة PU على الاسطح بعد تنظيفها وتهيئة السطح لاعمال العزل واعمال ورقة حسب توجيهات المهندس"]
["Wood and other Works (اعمال خشبية وغيره)"]
[5,"Supply and install single leaf Wooden door (size 100cmx200cm) including subframe, Frame (Swedish), with complete ironmongery, Hinges, Handle and Keylock of approved quality (lock to be yale or equivalent) complete with painting by 2 coats of oil paint. All the wooden works to be initially cured and treated to resist humidity and insects.\nRepair, making good in case of damage to the surrounding walls to be included.","Pcs",2,null,{"$f":"D13*E13","v":0}]
[null,"تقديم وتركيب باب خشب قياس 100*200سم مع الاطار (سويد) مع جميع الاكسسوارات . مسكة , قفل يال أو ما يعادله مع دهان طبقتين من الدهان الزيتي ومعالجة كل الاضرار حول الباب في حال حصولها اثناء التركيب"]
[6,"Supply and install Wooden window including Shutters, Frame, glass panes, with complete ironmongery, Hinges, Handles  of approved quality complete with painting by 2 coats of oil paint. All the wooden works to be initially cured and treated to resist humidity and insects.\nRepair, making good in case of damage to the surrounding walls to be included. Window tile sills also to be included","m2",1,null,{"$f":"D15*E15","v":0}]
[null,"تقديم وتركيب شبّاك خشب مع الاطار مع جميع الاكسسوارات . مسكة  مع دهان طبقتين من الدهان الزيتي ومعالجة كل الاضرار حول الباب في حال حصولها اثناء التركيب"]
["Tiling Work (اعمال بلاط)"]
[7,"Supply and Apply Ceramic tiles to floors and walls, including surface preparation, backing mortar/adhesive, grouting between tiles and any other application or materials needed to properly complete the works to the engineer's approval.","m2",{"$f":"90+25","v":115},null,{"$f":"D18*E18","v":0}]
[null,"تقديم وتركيب بلاط سيراميك في الحمامات فقط,بعد تهيئة الارضية وحسب تعليمات المهندس"]
[8,"Supply and Install marble Threshold 10cm width and 2cm thickness  including mortar backing.","lm",2,null,{"$f":"D20*E20","v":0}]
[null," تقديم وتركيب برطاش من الرخام 2*10 سم"]
["Plastering Work (اعمال ورقة)"]
[9,"Supply and apply Internal plastering works to ceiling and walls (Saint Etienne - Traditional) 15 to 20mm thick including steel mesh and corner/opening stops and accessories, curing, scaffolding, spraying when needed, filling of existing cavities, smoothing and any other application needed for the proper completion of the works.","m2",170,null,{"$f":"D23*E23","v":0}]
[null,"أعمال ورقة داخلية على الجدران 15-20ملم مع شبك معدني حسب توجيهات المهندس "]
[10,"Supply and Apply External plastering works to walls 15 to 20mm thick including steel mesh and corner/opening stops and accessories, curing, scaffolding, spraying when needed, filling of existing cavities, smoothing and any other application needed for the proper completion of the works.","m2",45,null,{"$f":"D25*E25","v":0}]
[null,"أعمال ورقة خارجية على الاسقف 15-20ملم مع شبك معدني حسب توجيهات المهندس "]
["Sanitary Work (اعمال صحية)"]
[11,"Supply install, test and commission European WC seat Lecico (Saidon type) or equivalent complete with flushing cistern, plastic cover, water and sewer connections, with all necessary fittings and accessories. Adjacent walls and floors to be reinstated to their original condition in case of any damages. ","Pcs",1,null,{"$f":"D28*E28","v":0}]
[null,"تقديم وتركيب كرسي حمام أوروبي (صيدون أو ما يعادلها )مع جميع التوصيلات من قساطل PPR و4\"UPVC مع كل الاكسسوارات اللازمة من غطاء بلاستيك "]
[12,"Supply install, test and commission flushing hose pipe set 1/2\" internal diameter for WC, with rubber hose and chrome angle valve with all its connections and necessary fittings and accessories.","Pcs",1,null,{"$f":"D30*E30","v":0}]
[null,"تقديم وتركيب نربيش صحي (شطافة) مع جميع التوصيلات والاكسسوارات"]
[13,"Supply and Installation of wash basin mixer with all its connections.","Pcs",2,null,{"$f":"D32*E32","v":0}]
[null,"تقديم وتركيب خلاط مغسلة مع كل التوصيلات"]
[14,"Supply and Intallation of sink mixer of approved quality with all its connections.","Pcs",2,null,{"$f":"D34*E34","v":0}]
[null,"تقديم وتركيب خلاط مجلى مع كل التوصيلات"]
[15,"Supply and install Shower mixer medium quality with telephone shower.                  ","Pcs",2,null,{"$f":"D36*E36","v":0}]
[null,"تقديم وتركيب خلاط دوش مع كل التوصيلات والاكسسوارات "]
[16,"Supply, install, test and commission Wash bassin Lecico make or equivalent with all its connections to water supply and drainage connection to the sewage network with all necessary fittings and accessories (including steel support, chrome outlet, porcelain shelf, etc.). Adjacent walls and floors to be reinstated to their original condition in case of any damages.","Pcs",2,null,{"$f":"D38*E38","v":0}]
[null,"تقديم وتركيب مغسلة ليسيكو أو ما يعادلها مع كل التوصيلات المائية والصحية بالاضافة لرف بورسلان وخلاط"]
[17,"Supply, install, test and commission stainless steel kitchen sink (over all size 50cmx100cm) with all its connections to water supply and drainage connection to the sewage network with all necessary fittings and accessories (including steel support, etc.). Adjacent walls and floors to be reinstated to their original condition in case of any damages.","pcs",1,null,{"$f":"D40*E40","v":0}]
[null,"تقديم وتركيب مجلى ستانلس ستيل مع كل التوصيلات المائية والصحية وخلاط مع قاعدة حديد"]
[18,"Supply, install, test and commission trapped gully 4 inches including handhole 20x20cm with stainless steel cover including builders works such as drilling in concrete, fixing in slab by using high compressive mortar, levelling and connecting to the drain network.                                      ","Pcs",3,null,{"$f":"D42*E42","v":0}]
[null,"تقديم وتركيب ريكار4\",  20*20 سم مع غطاء ستانلس مع كل ما يلزم من حفر وتثبيت في الارضية وتوصيل الى الشبكة الصحية"]
[19,"Supply, install, test and commission drainage UPVC pipes 4 inches, PN 16bar, including all needed accessories (coupling, Tee, Elbow, seal ring, etc.). Works include connection to the existing manhole including builders works.\nOn slab installation to be protected with concrete, underceiling installation to have metallic support, vertical installation to be fixed on wall by clamps with anchors. Slope in flow direction should exceed 1cm per meter.","m",4,null,{"$f":"D44*E44","v":0}]
[null,"تقديم وتركيب مجرور بلاستك UPVC 4'PN16barمع جميع ما يلزم من اكسسوارات لتوصيله الى الريكار العام"]
[20,"Supply, install, test and commission PVC Water tank NTG 3 layer 500 liters (certified for drinking water), light grey, complete with float valve, brass valves, overflow pipe, hard PVC cover including inlet & outlet connections and all necessary fittings and accessories.","Pcs",1,null,{"$f":"D46*E46","v":0}]
[null,"تقديم وتركيب خزان مياة 3طبقات NTG سعة 500لتر لمياه الشرب لون رمادي فاتح مع طواشة وسكر وغطاء وجميع التوصيلات"]
[21,"Supply install, test and commission PPR network pipes 16mm for hot and cold water supply including all necessary fittings and accessories.تمديد شبكة مياه باردة وساخنة مع جميع الاكسسوارات اللازمة","Lm",15,null,{"$f":"D48*E48","v":0}]
["Electrical Work (اعمال كهربائية)"]
[22,"Supply and Apply Lighting, power socket or switch point including all conduiting, wiring, boxes, covers, with all necessary accessories and related works complete to engineer's approval all to be imbedded in walls including making good plaster and paint.     أعمال انارة وتتضمن تركيب مفاتيح وبرايزوعلب مع أغطية واسلاك وجميع الاكسسوارات على ان تكون جميع الاعمال مخفية داخل الجدران مع كافة اعمل الورقة والدهان اللازمة لاخفاء العيوب ","Pcs",8,null,{"$f":"D50*E50","v":0}]
[23,"Supply, Install, test and commission electrical Water heater 80L, 2mm galvanized bottle with resistance 1000w, with thermal insulation, thermostat, thermometer, with complete connections to water and power supply (with 10v circuit breaker) including all necessary fittings, supports and accessories. Proper removal of existing damaged heater (if any) to be also included.","Pcs",1,null,{"$f":"D51*E51","v":0}]
[null,"تركيب سخان 80 ليتر 2ملم 1000W معزول منظم حرارة وساعة حرارة مع جميع التوصيلات الكهربائية(ديجنتير 10 فولت) بالاضافة لتوصيل الماء"]
["Aluminum Work (اعمال المنيوم)"]
[24,"Supply and Install Accordeon hard plastic Door, overall size 80cmx200cm, complete with all material and accessories needed and making good around the frame.","pcs",2,null,{"$f":"D54*E54","v":0}]
[null,"تقديم ويركيب باب أكورديم 80*200سم مع كافة الاكسسوارات"]
[25,"Supply and Install Aluminum single glazed window with glass, (Sidem 2000) with frame, and all accessories needed for installation and proper use (Folda 1.6mm) including window tile sills.","m2",0.5,null,{"$f":"D56*E56","v":0}]
[null,"تركيب شباك المنيوم سيدم 2000 (1.6ملم) مع زجاج مفرد مع شعائر بلاط حول دائر الشباك"]
["Painting Work (اعمال دهان)"]
[26,"Painting the ceiling and walls with two coats of paint (base and mat eggshell). Painting should be done after scraping and cleaning the surface and applying putty coats where necessary.","m2",170,null,{"$f":"E59*D59","v":0}]
[null,"دهان الجدران والاسقف وجهين (الاول أساس) بعد تنظيف وحف ووضع معجونة حيث يلزم"]
[27,"External waterproof paint for walls with two coats of paint (base and mat eggshell). Painting should be done after scraping and cleaning the surface and applying putty coats where necessary.","m2",45,null,{"$f":"E61*D61","v":0}]
[null,"دهان خارجي الجدران وجهين (الاول أساس) بعد تنظيف وحف ووضع معجونة حيث يلزم"]
["Roofing Work(أعمال الأسطح)"]
[28,"Supply and installation of insulated zinc sheet roofing (i.e. sandwich panels), including rain water gutter/drain and removal of existing roofing, supporting steel structure made out of (10x5x0.3)cm hollow steel elements all properly painted with antirust and oil paint (2 coats each). Structure to be covered with prepainted insulated zinc panels with proper overlapping, complete with all fittings and accessories necessary for the proper execution of the works to engineer's approval.","m2",34,null,{"$f":"D64*E64","v":0}]
[{"$nulls":4},"Total",{"$f":"SUM(F4:F64)","v":0}]

{"sheet":"OS-10B","index":6,"n_rows":46,"n_cols":6,"rows_kept":46,"merged":[[0,0,0,2],[0,3,0,5],[2,0,2,5],[3,0,4,0],[3,2,4,2],[3,3,4,3],[3,4,4,4],[3,5,4,5],[5,0,6,0],[5,2,6,2],[5,3,6,3],[5,4,6,4],[5,5,6,5],[7,0,7,5],[8,0,9,0],[8,2,9,2],[8,3,9,3],[8,4,9,4],[8,5,9,5],[10,0,11,0],[10,2,11,2],[10,3,11,3],[10,4,11,4],[10,5,11,5],[12,0,12,5],[13,0,14,0],[13,2,14,2],[13,3,14,3],[13,4,14,4],[13,5,14,5],[15,0,16,0],[15,2,16,2],[15,3,16,3],[15,4,16,4],[15,5,16,5],[17,0,17,5],[18,0,19,0],[18,2,19,2],[18,3,19,3],[18,4,19,4],[18,5,19,5],[20,0,20,5],[21,0,22,0],[21,2,22,2],[21,3,22,3],[21,4,22,4],[21,5,22,5],[23,0,24,0],[23,2,24,2],[23,3,24,3],[23,4,24,4],[23,5,24,5],[25,0,26,0],[25,2,26,2],[25,3,26,3],[25,4,26,4],[25,5,26,5],[27,0,28,0],[27,2,28,2],[27,3,28,3],[27,4,28,4],[27,5,28,5],[29,0,30,0],[29,2,30,2],[29,3,30,3],[29,4,30,4],[29,5,30,5],[31,0,32,0],[31,2,32,2],[31,3,32,3],[31,4,32,4],[31,5,32,5],[34,0,34,5],[36,0,37,0],[36,2,37,2],[36,3,37,3],[36,4,37,4],[36,5,37,5],[38,0,38,5],[39,0,40,0],[39,2,40,2],[39,3,40,3],[39,4,40,4],[39,5,40,5],[42,0,42,5],[43,0,44,0],[43,2,44,2],[43,3,44,3],[43,4,44,4],[43,5,44,5]]}
["Name: Maher Saadi",null,null,"Code: OS-10B P1"]
["Item","Description","Unit","Quantity","U.Price","T.Price"]
["Wood and other Works (اعمال خشبية وغيره)"]
[1,"Supply and install single leaf Wooden door (size 100cmx200cm) including subframe, Frame (Swedish), with complete ironmongery, Hinges, Handle and Keylock of approved quality (lock to be yale or equivalent) complete with painting by 2 coats of oil paint. All the wooden works to be initially cured and treated to resist humidity and insects.\nRepair, making good in case of damage to the surrounding walls to be included.","Pcs",1,null,{"$f":"D4*E4","v":0}]
[null,"تقديم وتركيب باب خشب قياس 100*200سم مع الاطار (سويد) مع جميع الاكسسوارات . مسكة , قفل يال أو ما يعادله مع دهان طبقتين من الدهان الزيتي ومعالجة كل الاضرار حول الباب في حال حصولها اثناء التركيب"]
[2,"Supply and install Wooden window including Shutters, Frame, glass panes, with complete ironmongery, Hinges, Handles  of approved quality complete with painting by 2 coats of oil paint. All the wooden works to be initially cured and treated to resist humidity and insects.\nRepair, making good in case of damage to the surrounding walls to be included. Window tile sills also to be included","m2",2,null,{"$f":"D6*E6","v":0}]
[null,"تقديم وتركيب شبّاك خشب مع الاطار مع جميع الاكسسوارات . مسكة  مع دهان طبقتين من الدهان الزيتي ومعالجة كل الاضرار حول الباب في حال حصولها اثناء التركيب"]
["Metal Work (اعمال حديدية)"]
[3,"Repair steel door  including painting, handle and keylock.","pcs",1,null,{"$f":"D9*E9","v":0}]
[null,"اصلاح باب  حديد مع مسكة وقفل ودهان"]
[4,"Repair steel window including painting, handle and keylock.","pcs",1,null,{"$f":"D11*E11","v":0}]
[null,"اصلاح  شباك حديد مع مسكة وقفل ودهان"]
["Tiling Work (اعمال بلاط)"]
[5,"Supply and Apply Ceramic tiles to floors and walls, including surface preparation, backing mortar/adhesive, grouting between tiles and any other application or materials needed to properly complete the works to the engineer's approval.","m2",15,null,{"$f":"D14*E14","v":0}]
[null,"تقديم وتركيب بلاط سيراميك في الحمامات فقط,بعد تهيئة الارضية وحسب تعليمات المهندس"]
[6,"Supply and Install marble Threshold 10cm width and 2cm thickness  including mortar backing.","lm",1,null,{"$f":"D16*E16","v":0}]
[null," تقديم وتركيب برطاش من الرخام 2*10 سم"]
["Plastering Work (اعمال ورقة)"]
[7,"Supply and apply Internal plastering works to ceiling and walls (Saint Etienne - Traditional) 15 to 20mm thick including steel mesh and corner/opening stops and accessories, curing, scaffolding, spraying when needed, filling of existing cavities, smoothing and any other application needed for the proper completion of the works.","m2",8,null,{"$f":"D19*E19","v":0}]
[null,"أعمال ورقة داخلية على الجدران 15-20ملم مع شبك معدني حسب توجيهات المهندس "]
["Sanitary Work (اعمال صحية)"]
[8,"Supply install, test and commission European WC seat Lecico (Saidon type) or equivalent complete with flushing cistern, plastic cover, water and sewer connections, with all necessary fittings and accessories. Adjacent walls and floors to be reinstated to their original condition in case of any damages. ","Pcs",1,null,{"$f":"D22*E22","v":0}]
[null,"تقديم وتركيب كرسي حمام أوروبي (صيدون أو ما يعادلها )مع جميع التوصيلات من قساطل PPR و4\"UPVC مع كل الاكسسوارات اللازمة من غطاء بلاستيك "]
[9,"Supply install, test and commission flushing hose pipe set 1/2\" internal diameter for WC, with rubber hose and chrome angle valve with all its connections and necessary fittings and accessories.","Pcs",1,null,{"$f":"D24*E24","v":0}]
[null,"تقديم وتركيب نربيش صحي (شطافة) مع جميع التوصيلات والاكسسوارات"]
[10,"Supply and Installation of wash basin mixer with all its connections.","Pcs",1,null,{"$f":"D26*E26","v":0}]
[null,"تقديم وتركيب خلاط مغسلة مع كل التوصيلات"]
[11,"Supply and install Shower mixer medium quality with telephone shower.                  ","Pcs",1,null,{"$f":"D28*E28","v":0}]
[null,"تقديم وتركيب خلاط دوش مع كل التوصيلات والاكسسوارات "]
[12,"Supply, install, test and commission trapped gully 4 inches including handhole 20x20cm with stainless steel cover including builders works such as drilling in concrete, fixing in slab by using high compressive mortar, levelling and connecting to the drain network.                                      ","Pcs",2,null,{"$f":"D30*E30","v":0}]
[null,"تقديم وتركيب ريكار4\",  20*20 سم مع غطاء ستانلس مع كل ما يلزم من حفر وتثبيت في الارضية وتوصيل الى الشبكة الصحية"]
[13,"Supply, install, test and commission drainage UPVC pipes 4 inches, PN 16bar, including all needed accessories (coupling, Tee, Elbow, seal ring, etc.). Works include connection to the existing manhole including builders works.\nOn slab installation to be protected with concrete, underceiling installation to have metallic support, vertical installation to be fixed on wall by clamps with anchors. Slope in flow direction should exceed 1cm per meter.","m",4,null,{"$f":"D32*E32","v":0}]
[null,"تقديم وتركيب مجرور بلاستك UPVC 4'PN16barمع جميع ما يلزم من اكسسوارات لتوصيله الى الريكار العام"]
[14,"Supply install, test and commission PPR network pipes 16mm for hot and cold water supply including all necessary fittings and accessories.تمديد شبكة مياه باردة وساخنة مع جميع الاكسسوارات اللازمة","Lm",10,null,{"$f":"D34*E34","v":0}]
["Electrical Work (اعمال كهربائية)"]
[15,"Supply and Apply Lighting, power socket or switch point including all conduiting, wiring, boxes, covers, with all necessary accessories and related works complete to engineer's approval all to be imbedded in walls including making good plaster and paint.     أعمال انارة وتتضمن تركيب مفاتيح وبرايزوعلب مع أغطية واسلاك وجميع الاكسسوارات على ان تكون جميع الاعمال مخفية داخل الجدران مع كافة اعمل الورقة والدهان اللازمة لاخفاء العيوب ","Pcs",2,null,{"$f":"D36*E36","v":0}]
[16,"Supply, Install, test and commission electrical Water heater 80L, 2mm galvanized bottle with resistance 1000w, with thermal insulation, thermostat, thermometer, with complete connections to water and power supply (with 10v circuit breaker) including all necessary fittings, supports and accessories. Proper removal of existing damaged heater (if any) to be also included.","Pcs",1,null,{"$f":"D37*E37","v":0}]
[null,"تركيب سخان 80 ليتر 2ملم 1000W معزول منظم حرارة وساعة حرارة مع جميع التوصيلات الكهربائية(ديجنتير 10 فولت) بالاضافة لتوصيل الماء"]
["Aluminum Work (اعمال المنيوم)"]
[17,"Supply and Install Accordeon hard plastic Door, overall size 80cmx200cm, complete with all material and accessories needed and making good around the frame.","pcs",1,null,{"$f":"D40*E40","v":0}]
[null,"تقديم ويركيب باب أكورديم 80*200سم مع كافة الاكسسوارات"]
[18,"Supply and Install Aluminum door overall size 80cmx200cm with frame and all its accessories including tiling of door opening.\n   تركيب باب المنيوم مع جميع الاكسسوارات مع تبليط دائر فتحة الباب  ","pcs",1,null,{"$f":"D42*E42","v":0}]
["Painting Work (اعمال دهان)"]
[19,"Painting the ceiling and walls with two coats of paint (base and mat eggshell). Painting should be done after scraping and cleaning the surface and applying putty coats where necessary.","m2",40,null,{"$f":"E44*D44","v":0}]
[null,"دهان الجدران والاسقف وجهين (الاول أساس) بعد تنظيف وحف ووضع معجونة حيث يلزم"]
[{"$nulls":4},"Total",{"$f":"SUM(F4:F45)","v":0}]

{"sheet":"OS-11B","index":7,"n_rows":11,"n_cols":6,"rows_kept":11,"merged":[[0,0,0,2],[0,3,0,5],[2,0,2,5],[3,0,4,0],[3,2,4,2],[3,3,4,3],[3,4,4,4],[3,5,4,5],[5,0,6,0],[5,2,6,2],[5,3,6,3],[5,4,6,4],[5,5,6,5],[7,0,7,5],[8,0,9,0],[8,2,9,2],[8,3,9,3],[8,4,9,4],[8,5,9,5]]}
["Name: Nabil Khayzaran",null,null,"Code: OS-11B P1"]
["Item","Description","Unit","Quantity","U.Price","T.Price"]
["Metal Work (اعمال حديدية)"]
[1,"Supply and install structural steel I/H beams (16cm*8cm) to support concrete ceiling slabs including all necessary fittings and accessories  needed to properly complete the works to the engineer's approval.","lm",10,null,{"$f":"D4*E4","v":0}]
[null,"تقديم وتركيب جسر حديد (16cm*8cm) لتدعيم أسقف الباطون المسلّح"]
[2,"Supply and install steel handrail fixed to the walls of stairs (1.5\" diameter solid pipe),includind all fittings and bolts ,painting epoxy ,2 faces oil painting .","lm",7.5,null,{"$f":"D6*E6","v":0}]
[null,"تقديم وتركيب درابزين حديد (1.5\"انش قطر) مثبت على جدران الدرج  مع كل ما يلزم من براغي و توصيلات على الفواصل وطلاء ايبوكسي مع وجهين من الدهان الزيتي  "]
["Electrical Work (اعمال كهربائية)"]
[3,"Supply, Install, test and commission electrical Water heater 80L, 2mm galvanized bottle with resistance 1000w, with thermal insulation, thermostat, thermometer, with complete connections to water and power supply (with 10v circuit breaker) including all necessary fittings, supports and accessories. Proper removal of existing damaged heater (if any) to be also included.","Pcs",1,null,{"$f":"D9*E9","v":0}]
[null,"تركيب سخان 80 ليتر 2ملم 1000W معزول منظم حرارة وساعة حرارة مع جميع التوصيلات الكهربائية(ديجنتير 10 فولت) بالاضافة لتوصيل الماء"]
[{"$nulls":4},"Total",{"$f":"SUM(F4:F10)","v":0}]

{"sheet":"OS-14B","index":8,"n_rows":55,"n_cols":6,"rows_kept":55,"merged":[[0,0,0,2],[0,3,0,5],[2,0,2,5],[4,0,4,5],[7,0,7,5],[8,0,9,0],[8,2,9,2],[8,3,9,3],[8,4,9,4],[8,5,9,5],[10,0,10,5],[11,0,12,0],[11,2,12,2],[11,3,12,3],[11,4,12,4],[11,5,12,5],[13,0,14,0],[13,2,14,2],[13,3,14,3],[13,4,14,4],[13,5,14,5],[15,0,16,0],[15,2,16,2],[15,3,16,3],[15,4,16,4],[15,5,16,5],[17,0,18,0],[17,2,18,2],[17,3,18,3],[17,4,18,4],[17,5,18,5],[19,0,19,5],[20,0,21,0],[20,2,21,2],[20,3,21,3],[20,4,21,4],[20,5,21,5],[22,0,22,5],[23,0,24,0],[23,2,24,2],[23,3,24,3],[23,4,24,4],[23,5,24,5],[25,0,26,0],[25,2,26,2],[25,3,26,3],[25,4,26,4],[25,5,26,5],[27,0,27,5],[28,0,29,0],[28,2,29,2],[28,3,29,3],[28,4,29,4],[28,5,29,5],[30,0,31,0],[30,2,31,2],[30,3,31,3],[30,4,31,4],[30,5,31,5],[32,0,33,0],[32,2,33,2],[32,3,33,3],[32,4,33,4],[32,5,33,5],[34,0,35,0],[34,2,35,2],[34,3,35,3],[34,4,35,4],[34,5,35,5],[36,0,37,0],[36,2,37,2],[36,3,37,3],[36,4,37,4],[36,5,37,5],[38,0,39,0],[38,2,39,2],[38,3,39,3],[38,4,39,4],[38,5,39,5],[40,0,41,0],[40,2,41,2],[40,3,41,3],[40,4,41,4],[40,5,41,5],[42,0,43,0],[42,2,43,2],[42,3,43,3],[42,4,43,4],[42,5,43,5],[44,0,45,0],[44,2,45,2],[44,3,45,3],[44,4,45,4],[44,5,45,5],[46,0,47,0],[46,2,47,2],[46,3,47,3],[46,4,47,4],[46,5,47,5],[49,0,49,5],[51,0,51,5],[52,0,53,0],[52,2,53,2],[52,3,53,3],[52,4,53,4],[52,5,53,5]]}
["Name: Mohamad el Kabach",null,null,"Code: OS-14B P1++"]
["Item","Description","Unit","Quantity","U.Price","T.Price"]
["Demolishing Work (اعمال الهدم و ازالة الردميات)"]
[1,"Carefully demolish concrete block wall complete with removing all material arising from site and make good surrounding finish. Remove all existing debris from site.\n تكسير جدران من احجار الباطون ونقل الردم الى المكب","m2",2,null,{"$f":"E4*D4","v":0}]
["Concrete Work (اعمال باطون)"]
[2,"Reinforced concrete works (15cm thick concrete ceiling slab), including high yield steel reinforcement to Engineer's approval.\n سقف 15سم) أعمال باطون مسلح تتضمن تسليح حديد) ","m2",5,null,{"$f":"D6*E6","v":0}]
[3,"Repair of ceiling concrete surfaces including treatment of rusted steel, removal of damaged concrete, treatment of concrete surface and making good as necessary (grout, plaster, etc.) and to the Engineer's approval.\nأعمال تصليح أسقف باطون مع معالجة الحديد و ازالة البطون (العاطل ومعالجة الأسقف بالمواد المناسبة (غراوت, باطون, الخ حسب توجيهات المهندس ","m2",8,null,{"$f":"E7*D7","v":0}]
["Wood and other Works (اعمال خشبية وغيره)"]
[4,"Supply and install single leaf Wooden door (size 100cmx200cm) including subframe, Frame (Swedish), with complete ironmongery, Hinges, Handle and Keylock of approved quality (lock to be yale or equivalent) complete with painting by 2 coats of oil paint. All the wooden works to be initially cured and treated to resist humidity and insects.\nRepair, making good in case of damage to the surrounding walls to be included.","Pcs",1,null,{"$f":"D9*E9","v":0}]
[null,"تقديم وتركيب باب خشب قياس 100*200سم مع الاطار (سويد) مع جميع الاكسسوارات . مسكة , قفل يال أو ما يعادله مع دهان طبقتين من الدهان الزيتي ومعالجة كل الاضرار حول الباب في حال حصولها اثناء التركيب"]
["Metal Work (اعمال حديدية)"]
[5,"Supply and install single panel half glazed external steel door, dimensions adjusted to existing opening (around 100cmx220cm), thickness 3mm, complete with frame, ironmongery, hardware, obscure glass with wire mesh, handle cylinder  lock, provided with anti corrosion painting  by brush two coats.\nRepair, making good in case of damage to the surrounding walls to be included.","pcs",3,null,{"$f":"D12*E12","v":0}]
[null,"تقديم وتركيب بوابة حديد حسب القياس سماكة 3ملم ,مع زجاج محجر ومشرط في القسم العلوي مع مسكة وقفل ودهان طبقتين بمواد مقاومة للصدأ ومعالجة كل الاضرار حول الباب في حال حصولها اثناء التركيب"]
[6,"Supply and install steel window, dimensions adjusted to existing opening, complete with frame, ironmongery, hardware, obscure glass with wire mesh, handle, provided with anti corrosion painting by brush two coats.","m2",2,null,{"$f":"D14*E14","v":0}]
[null,"تقديم وتركيب شباك حديد حسب القياس ,مع زجاج محجر ومشرط مع مسكة  ودهان طبقتين بمواد مقاومة للصدأ "]
[7,"Repair steel window including painting, handle and keylock.","pcs",1,null,{"$f":"D16*E16","v":0}]
[null,"اصلاح  شباك حديد مع مسكة وقفل ودهان"]
[8,"Supply and install structural steel I/H beams (14cm*7cm) to support concrete ceiling slabs including all necessary fittings and accessories  needed to properly complete the works to the engineer's approval.","lm",4,null,{"$f":"D18*E18","v":0}]
[null,"تقديم وتركيب جسر حديد (14cm*7cm) لتدعيم أسقف الباطون المسلّح"]
["Tiling Work (اعمال بلاط)"]
[9,"Supply and Apply Ceramic tiles to floors and walls, including surface preparation, backing mortar/adhesive, grouting between tiles and any other application or materials needed to properly complete the works to the engineer's approval.","m2",42,null,{"$f":"D21*E21","v":0}]
[null,"تقديم وتركيب بلاط سيراميك في الحمامات فقط,بعد تهيئة الارضية وحسب تعليمات المهندس"]
["Plastering Work (اعمال ورقة)"]
[10,"Supply and apply Internal plastering works to ceiling and walls (Saint Etienne - Traditional) 15 to 20mm thick including steel mesh and corner/opening stops and accessories, curing, scaffolding, spraying when needed, filling of existing cavities, smoothing and any other application needed for the proper completion of the works.","m2",65,null,{"$f":"D24*E24","v":0}]
[null,"أعمال ورقة داخلية على الجدران 15-20ملم مع شبك معدني حسب توجيهات المهندس "]
[11,"Supply and Apply Internal plastering works to ceilings 15 to 20mm thick including steel mesh and corner/opening stops and accessories, curing, scaffolding, spraying when needed, filling of existing cavities, smoothing and any other application needed for the proper completion of the works.","m2",50,null,{"$f":"D26*E26","v":0}]
[null,"أعمال ورقة داخلية على الاسقف 15-20ملم مع شبك معدني حسب توجيهات المهندس "]
["Sanitary Work (اعمال صحية)"]
[12,"Supply install, test and commission European WC seat Lecico (Saidon type) or equivalent complete with flushing cistern, plastic cover, water and sewer connections, with all necessary fittings and accessories. Adjacent walls and floors to be reinstated to their original condition in case of any damages. ","Pcs",1,null,{"$f":"D29*E29","v":0}]
[null,"تقديم وتركيب كرسي حمام أوروبي (صيدون أو ما يعادلها )مع جميع التوصيلات من قساطل PPR و4\"UPVC مع كل الاكسسوارات اللازمة من غطاء بلاستيك "]
[13,"Supply install, test and commission flushing hose pipe set 1/2\" internal diameter for WC, with rubber hose and chrome angle valve with all its connections and necessary fittings and accessories.","Pcs",1,null,{"$f":"D31*E31","v":0}]
[null,"تقديم وتركيب نربيش صحي (شطافة) مع جميع التوصيلات والاكسسوارات"]
[14,"Supply and Installation of wash basin mixer with all its connections.","Pcs",1,null,{"$f":"D33*E33","v":0}]
[null,"تقديم وتركيب خلاط مغسلة مع كل التوصيلات"]
[15,"Supply and Intallation of sink mixer of approved quality with all its connections.","Pcs",1,null,{"$f":"D35*E35","v":0}]
[null,"تقديم وتركيب خلاط مجلى مع كل التوصيلات"]
[16,"Supply and install Shower mixer medium quality with telephone shower.                  ","Pcs",1,null,{"$f":"D37*E37","v":0}]
[null,"تقديم وتركيب خلاط دوش مع كل التوصيلات والاكسسوارات "]
[17,"Supply, install, test and commission Wash bassin Lecico make or equivalent with all its connections to water supply and drainage connection to the sewage network with all necessary fittings and accessories (including steel support, chrome outlet, porcelain shelf, etc.). Adjacent walls and floors to be reinstated to their original condition in case of any damages.","Pcs",1,null,{"$f":"D39*E39","v":0}]
[null,"تقديم وتركيب مغسلة ليسيكو أو ما يعادلها مع كل التوصيلات المائية والصحية بالاضافة لرف بورسلان وخلاط"]
[18,"Supply, install, test and commission stainless steel kitchen sink (over all size 50cmx100cm) with all its connections to water supply and drainage connection to the sewage network with all necessary fittings and accessories (including steel support, etc.). Adjacent walls and floors to be reinstated to their original condition in case of any damages.","pcs",1,null,{"$f":"D41*E41","v":0}]
[null,"تقديم وتركيب مجلى ستانلس ستيل مع كل التوصيلات المائية والصحية وخلاط مع قاعدة حديد"]
[19,"Supply, install, test and commission trapped gully 4 inches including handhole 20x20cm with stainless steel cover including builders works such as drilling in concrete, fixing in slab by using high compressive mortar, levelling and connecting to the drain network.                                      ","Pcs",3,null,{"$f":"D43*E43","v":0}]
[null,"تقديم وتركيب ريكار4\",  20*20 سم مع غطاء ستانلس مع كل ما يلزم من حفر وتثبيت في الارضية وتوصيل الى الشبكة الصحية"]
[20,"Supply, install, test and commission drainage UPVC pipes 4 inches, PN 16bar, including all needed accessories (coupling, Tee, Elbow, seal ring, etc.). Works include connection to the existing manhole including builders works.\nOn slab installation to be protected with concrete, underceiling installation to have metallic support, vertical installation to be fixed on wall by clamps with anchors. Slope in flow direction should exceed 1cm per meter.","m",3,null,{"$f":"D45*E45","v":0}]
[null,"تقديم وتركيب مجرور بلاستك UPVC 4'PN16barمع جميع ما يلزم من اكسسوارات لتوصيله الى الريكار العام"]
[21,"Supply, install, test and commission PVC Water tank NTG 3 layer 1000 liters (certified for drinking water), light grey, complete with float valve, brass valves, overflow pipe, hard PVC cover including inlet & outlet connections and all necessary fittings and accessories.","Pcs",1,null,{"$f":"D47*E47","v":0}]
[null,"تقديم وتركيب خزان مياة 3طبقات NTG سعة 1000لتر لمياه الشرب لون رمادي فاتح مع طواشة وسكر وغطاء وجميع التوصيلات"]
[22,"Supply install, test and commission PPR network pipes 16mm for hot and cold water supply including all necessary fittings and accessories.تمديد شبكة مياه باردة وساخنة مع جميع الاكسسوارات اللازمة","Lm",8,null,{"$f":"D49*E49","v":0}]
["Electrical Work (اعمال كهربائية)"]
[23,"Supply and Apply Lighting, power socket or switch point including all conduiting, wiring, boxes, covers, with all necessary accessories and related works complete to engineer's approval all to be imbedded in walls including making good plaster and paint.     أعمال انارة وتتضمن تركيب مفاتيح وبرايزوعلب مع أغطية واسلاك وجميع الاكسسوارات على ان تكون جميع الاعمال مخفية داخل الجدران مع كافة اعمل الورقة والدهان اللازمة لاخفاء العيوب ","Pcs",12,null,{"$f":"D51*E51","v":0}]
["Painting Work (اعمال دهان)"]
[24,"Painting the ceiling and walls with two coats of paint (base and mat eggshell). Painting should be done after scraping and cleaning the surface and applying putty coats where necessary.","m2",105,null,{"$f":"E53*D53","v":0}]
[null,"دهان الجدران والاسقف وجهين (الاول أساس) بعد تنظيف وحف ووضع معجونة حيث يلزم"]
[{"$nulls":4},"Total",{"$f":"SUM(F4:F54)","v":0}]

{"sheet":"OS-17B","index":9,"n_rows":49,"n_cols":6,"rows_kept":49,"merged":[[0,0,0,2],[0,3,0,5],[2,0,2,5],[4,0,4,5],[5,0,6,0],[5,2,6,2],[5,3,6,3],[5,4,6,4],[5,5,6,5],[7,0,7,5],[8,0,9,0],[8,2,9,2],[8,3,9,3],[8,4,9,4],[8,5,9,5],[10,0,11,0],[10,2,11,2],[10,3,11,3],[10,4,11,4],[10,5,11,5],[12,0,13,0],[12,2,13,2],[12,3,13,3],[12,4,13,4],[12,5,13,5],[14,0,14,5],[15,0,16,0],[15,2,16,2],[15,3,16,3],[15,4,16,4],[15,5,16,5],[17,0,18,0],[19,0,19,5],[20,0,21,0],[20,2,21,2],[20,3,21,3],[20,4,21,4],[20,5,21,5],[22,0,23,0],[22,2,23,2],[22,3,23,3],[22,4,23,4],[22,5,23,5],[24,0,24,5],[25,0,26,0],[25,2,26,2],[25,3,26,3],[25,4,26,4],[25,5,26,5],[27,0,28,0],[27,2,28,2],[27,3,28,3],[27,4,28,4],[27,5,28,5],[29,0,29,5],[30,0,31,0],[30,2,31,2],[30,3,31,3],[30,4,31,4],[30,5,31,5],[32,0,33,0],[32,2,33,2],[32,3,33,3],[32,4,33,4],[32,5,33,5],[34,0,35,0],[34,2,35,2],[34,3,35,3],[34,4,35,4],[34,5,35,5],[36,0,37,0],[36,2,37,2],[36,3,37,3],[36,4,37,4],[36,5,37,5],[38,0,38,5],[40,0,41,0],[40,2,41,2],[40,3,41,3],[40,4,41,4],[40,5,41,5],[42,0,42,5],[43,0,44,0],[43,2,44,2],[43,3,44,3],[43,4,44,4],[43,5,44,5],[45,0,45,5],[46,0,47,0],[46,2,47,2],[46,3,47,3],[46,4,47,4],[46,5,47,5]]}
["Name: Nasser Jomaa",null,null,"Code: OS-17B P1+"]
["Item","Description","Unit","Quantity","U.Price","T.Price"]
["Concrete Work (اعمال باطون)"]
[1,"Repair of ceiling concrete surfaces including treatment of rusted steel, removal of damaged concrete, treatment of concrete surface and making good as necessary (grout, plaster, etc.) and to the Engineer's approval.\nأعمال تصليح أسقف باطون مع معالجة الحديد و ازالة البطون (العاطل ومعالجة الأسقف بالمواد المناسبة (غراوت, باطون, الخ حسب توجيهات المهندس ","m2",20,null,{"$f":"E4*D4","v":0}]
["Waterproofing Work (اعمال منع النشّ)"]
[2,"Supply, apply and test roof waterproofing using PU material, the works including but not limited to cleaning, surface preparation works, drying, filling cavities with mortar, applying primer, angle fillets, plaster works for parapets and any other materials needed prior to the proper application of 3 layers of PU according to the manufacturer's data sheet and method statement and to the Engineer's approval.","m2",80,null,{"$f":"D6*E6","v":0}]
[null,"تقديم ودهان مواد عازلة PU على الاسطح بعد تنظيفها وتهيئة السطح لاعمال العزل واعمال ورقة حسب توجيهات المهندس"]
["Wood and other Works (اعمال خشبية وغيره)"]
[3,"Supply and install single leaf Wooden door (size 100cmx200cm) including subframe, Frame (Swedish), with complete ironmongery, Hinges, Handle and Keylock of approved quality (lock to be yale or equivalent) complete with painting by 2 coats of oil paint. All the wooden works to be initially cured and treated to resist humidity and insects.\nRepair, making good in case of damage to the surrounding walls to be included.","Pcs",2,null,{"$f":"D9*E9","v":0}]
[null,"تقديم وتركيب باب خشب قياس 100*200سم مع الاطار (سويد) مع جميع الاكسسوارات . مسكة , قفل يال أو ما يعادله مع دهان طبقتين من الدهان الزيتي ومعالجة كل الاضرار حول الباب في حال حصولها اثناء التركيب"]
[4,"Supply and install Wooden window including Shutters, Frame, glass panes, with complete ironmongery, Hinges, Handles  of approved quality complete with painting by 2 coats of oil paint. All the wooden works to be initially cured and treated to resist humidity and insects.\nRepair, making good in case of damage to the surrounding walls to be included. Window tile sills also to be included","m2",1.5,null,{"$f":"D11*E11","v":0}]
[null,"تقديم وتركيب شبّاك خشب مع الاطار مع جميع الاكسسوارات . مسكة  مع دهان طبقتين من الدهان الزيتي ومعالجة كل الاضرار حول الباب في حال حصولها اثناء التركيب"]
[5,"Repair wooden door (size 100cmx200cm) including painting, hinges, handles and locks.","Pcs",2,null,{"$f":"D13*E13","v":0}]
[null,"اصلاح باب خشب قياس 100*200سم مع دهان تركيب مسكة وقفل ومفصلات"]
["Metal Work (اعمال حديدية)"]
[6,"Supply and install structural steel I/H beams (14cm*7cm) to support concrete ceiling slabs including all necessary fittings and accessories  needed to properly complete the works to the engineer's approval.","lm",10,null,{"$f":"D16*E16","v":0}]
[null,"تقديم وتركيب جسر حديد (14cm*7cm) لتدعيم أسقف الباطون المسلّح"]
[7,"Supply and install steel handrail fixed to the walls of stairs (1.5\" diameter solid pipe),includind all fittings and bolts ,painting epoxy ,2 faces oil painting .","lm",5,null,{"$f":"D18*E18","v":0}]
[null,"تقديم وتركيب درابزين حديد (1.5\"انش قطر) مثبت على جدران الدرج  مع كل ما يلزم من براغي و توصيلات على الفواصل وطلاء ايبوكسي مع وجهين من الدهان الزيتي  "]
["Tiling Work (اعمال بلاط)"]
[8,"Supply and Apply Ceramic tiles to floors and walls, including surface preparation, backing mortar/adhesive, grouting between tiles and any other application or materials needed to properly complete the works to the engineer's approval.","m2",60,null,{"$f":"D21*E21","v":0}]
[null,"تقديم وتركيب بلاط سيراميك في الحمامات فقط,بعد تهيئة الارضية وحسب تعليمات المهندس"]
[9,"Supply and Install marble Threshold 10cm width and 2cm thickness  including mortar backing.","lm",2,null,{"$f":"D23*E23","v":0}]
[null," تقديم وتركيب برطاش من الرخام 2*10 سم"]
["Plastering Work (اعمال ورقة)"]
[10,"Supply and apply Internal plastering works to ceiling and walls (Saint Etienne - Traditional) 15 to 20mm thick including steel mesh and corner/opening stops and accessories, curing, scaffolding, spraying when needed, filling of existing cavities, smoothing and any other application needed for the proper completion of the works.","m2",150,null,{"$f":"D26*E26","v":0}]
[null,"أعمال ورقة داخلية على الجدران 15-20ملم مع شبك معدني حسب توجيهات المهندس "]
[11,"Supply and Apply External plastering works to walls (Saint Etienne - Traditional) 15 to 20mm thick including steel mesh and corner/opening stops and accessories, curing, scaffolding, spraying when needed, filling of existing cavities, smoothing and any other application needed for the proper completion of the works.","m2",100,null,{"$f":"D28*E28","v":0}]
[null,"أعمال ورقة خارجية على الجدران 15-20ملم مع شبك معدني حسب توجيهات المهندس "]
["Sanitary Work (اعمال صحية)"]
[12,"Supply install, test and commission European WC seat Lecico (Saidon type) or equivalent complete with flushing cistern, plastic cover, water and sewer connections, with all necessary fittings and accessories. Adjacent walls and floors to be reinstated to their original condition in case of any damages. ","Pcs",1,null,{"$f":"D31*E31","v":0}]
[null,"تقديم وتركيب كرسي حمام أوروبي (صيدون أو ما يعادلها )مع جميع التوصيلات من قساطل PPR و4\"UPVC مع كل الاكسسوارات اللازمة من غطاء بلاستيك "]
[13,"Supply and Installation of wash basin mixer with all its connections.","Pcs",1,null,{"$f":"D33*E33","v":0}]
[null,"تقديم وتركيب خلاط مغسلة مع كل التوصيلات"]
[14,"Supply and install Shower mixer medium quality with telephone shower.                  ","Pcs",1,null,{"$f":"D35*E35","v":0}]
[null,"تقديم وتركيب خلاط دوش مع كل التوصيلات والاكسسوارات "]
[15,"Supply, install, test and commission Wash bassin Lecico make or equivalent with all its connections to water supply and drainage connection to the sewage network with all necessary fittings and accessories (including steel support, chrome outlet, porcelain shelf, etc.). Adjacent walls and floors to be reinstated to their original condition in case of any damages.","Pcs",1,null,{"$f":"D37*E37","v":0}]
[null,"تقديم وتركيب مغسلة ليسيكو أو ما يعادلها مع كل التوصيلات المائية والصحية بالاضافة لرف بورسلان وخلاط"]
["Electrical Work (اعمال كهربائية)"]
[16,"Supply and Apply Lighting, power socket or switch point including all conduiting, wiring, boxes, covers, with all necessary accessories and related works complete to engineer's approval all to be imbedded in walls including making good plaster and paint.     أعمال انارة وتتضمن تركيب مفاتيح وبرايزوعلب مع أغطية واسلاك وجميع الاكسسوارات على ان تكون جميع الاعمال مخفية داخل الجدران مع كافة اعمل الورقة والدهان اللازمة لاخفاء العيوب ","Pcs",10,null,{"$f":"D40*E40","v":0}]
[17,"Supply, Install, test and commission electrical Water heater 80L, 2mm galvanized bottle with resistance 1000w, with thermal insulation, thermostat, thermometer, with complete connections to water and power supply (with 10v circuit breaker) including all necessary fittings, supports and accessories. Proper removal of existing damaged heater (if any) to be also included.","Pcs",1,null,{"$f":"D41*E41","v":0}]
[null,"تركيب سخان 80 ليتر 2ملم 1000W معزول منظم حرارة وساعة حرارة مع جميع التوصيلات الكهربائية(ديجنتير 10 فولت) بالاضافة لتوصيل الماء"]
["Aluminum Work (اعمال المنيوم)"]
[18,"Supply and Install Accordeon hard plastic Door, overall size 80cmx200cm, complete with all material and accessories needed and making good around the frame.","pcs",2,null,{"$f":"D44*E44","v":0}]
[null,"تقديم ويركيب باب أكورديم 80*200سم مع كافة الاكسسوارات"]
["Painting Work (اعمال دهان)"]
[19,"Painting the ceiling and walls with two coats of paint (base and mat eggshell). Painting should be done after scraping and cleaning the surface and applying putty coats where necessary.","m2",180,null,{"$f":"E47*D47","v":0}]
[null,"دهان الجدران والاسقف وجهين (الاول أساس) بعد تنظيف وحف ووضع معجونة حيث يلزم"]
[{"$nulls":4},"Total",{"$f":"SUM(F4:F48)","v":0}]

{"sheet":"OS-18B","index":10,"n_rows":55,"n_cols":6,"rows_kept":55,"merged":[[0,0,0,2],[0,3,0,5],[2,0,2,5],[4,0,4,5],[7,0,7,5],[8,0,9,0],[8,2,9,2],[8,3,9,3],[8,4,9,4],[8,5,9,5],[10,0,11,0],[10,2,11,2],[10,3,11,3],[10,4,11,4],[10,5,11,5],[12,0,12,5],[13,0,14,0],[13,2,14,2],[13,3,14,3],[13,4,14,4],[13,5,14,5],[15,0,15,5],[16,0,17,0],[16,2,17,2],[16,3,17,3],[16,4,17,4],[16,5,17,5],[18,0,19,0],[18,2,19,2],[18,3,19,3],[18,4,19,4],[18,5,19,5],[20,0,20,5],[21,0,22,0],[21,2,22,2],[21,3,22,3],[21,4,22,4],[21,5,22,5],[23,0,24,0],[23,2,24,2],[23,3,24,3],[23,4,24,4],[23,5,24,5],[25,0,25,5],[26,0,27,0],[26,2,27,2],[26,3,27,3],[26,4,27,4],[26,5,27,5],[28,0,29,0],[28,2,29,2],[28,3,29,3],[28,4,29,4],[28,5,29,5],[30,0,31,0],[30,2,31,2],[30,3,31,3],[30,4,31,4],[30,5,31,5],[32,0,33,0],[32,2,33,2],[32,3,33,3],[32,4,33,4],[32,5,33,5],[34,0,35,0],[34,2,35,2],[34,3,35,3],[34,4,35,4],[34,5,35,5],[36,0,37,0],[36,2,37,2],[36,3,37,3],[36,4,37,4],[36,5,37,5],[38,0,39,0],[38,2,39,2],[38,3,39,3],[38,4,39,4],[38,5,39,5],[40,0,41,0],[40,2,41,2],[40,3,41,3],[40,4,41,4],[40,5,41,5],[42,0,43,0],[42,2,43,2],[42,3,43,3],[42,4,43,4],[42,5,43,5],[45,0,45,5],[47,0,48,0],[47,2,48,2],[47,3,48,3],[47,4,48,4],[47,5,48,5],[49,0,49,5],[51,0,51,5],[52,0,53,0],[52,2,53,2],[52,3,53,3],[52,4,53,4],[52,5,53,5]]}
["Name: Fatima Masri Nadar",null,null,"Code: OS-18B P1+"]
["Item","Description","Unit","Quantity","U.Price","T.Price"]
["Demolishing Work (اعمال الهدم و ازالة الردميات)"]
[1,"Carefully demolish existing damaged concrete slab complete with removing all steel reinforcement and material arising from site.\n تكسير ارضية من الباطون المسلّح ونقل الردم الى المكب","m2",8,null,{"$f":"E4*D4","v":0}]
["Concrete Work (اعمال باطون)"]
[2,"Reinforced concrete works (15cm thick concrete ceiling slab), including high yield steel reinforcement to Engineer's approval.\n سقف 15سم) أعمال باطون مسلح تتضمن تسليح حديد) ","m2",4,null,{"$f":"D6*E6","v":0}]
[3,"Repair of ceiling concrete surfaces including treatment of rusted steel, removal of damaged concrete, treatment of concrete surface and making good as necessary (grout, plaster, etc.) and to the Engineer's approval.\nأعمال تصليح أسقف باطون مع معالجة الحديد و ازالة البطون (العاطل ومعالجة الأسقف بالمواد المناسبة (غراوت, باطون, الخ حسب توجيهات المهندس ","m2",40,null,{"$f":"E7*D7","v":0}]
["Wood and other Works (اعمال خشبية وغيره)"]
[4,"Supply and install single leaf Wooden door (size 100cmx200cm) including subframe, Frame (Swedish), with complete ironmongery, Hinges, Handle and Keylock of approved quality (lock to be yale or equivalent) complete with painting by 2 coats of oil paint. All the wooden works to be initially cured and treated to resist humidity and insects.\nRepair, making good in case of damage to the surrounding walls to be included.","Pcs",5,null,{"$f":"D9*E9","v":0}]
[null,"تقديم وتركيب باب خشب قياس 100*200سم مع الاطار (سويد) مع جميع الاكسسوارات . مسكة , قفل يال أو ما يعادله مع دهان طبقتين من الدهان الزيتي ومعالجة كل الاضرار حول الباب في حال حصولها اثناء التركيب"]
[5,"Supply and install Wooden window including Shutters, Frame, glass panes, with complete ironmongery, Hinges, Handles  of approved quality complete with painting by 2 coats of oil paint. All the wooden works to be initially cured and treated to resist humidity and insects.\nRepair, making good in case of damage to the surrounding walls to be included. Window tile sills also to be included","m2",12,null,{"$f":"D11*E11","v":0}]
[null,"تقديم وتركيب شبّاك خشب مع الاطار مع جميع الاكسسوارات . مسكة  مع دهان طبقتين من الدهان الزيتي ومعالجة كل الاضرار حول الباب في حال حصولها اثناء التركيب"]
["Metal Work (اعمال حديدية)"]
[6,"Supply and install structural steel I/H beams (14cm*7cm) to support concrete ceiling slabs including removal of existing damaged steel beams (9 lm) and including all necessary fittings and accessories  needed to properly complete the works to the engineer's approval.","lm",23,null,{"$f":"D14*E14","v":0}]
[null,"تقديم وتركيب جسر حديد (14cm*7cm) لتدعيم أسقف الباطون المسلّح"]
["Tiling Work (اعمال بلاط)"]
[7,"Supply and Apply Ceramic tiles to floors and walls, including surface preparation, backing mortar/adhesive, grouting between tiles and any other application or materials needed to properly complete the works to the engineer's approval.","m2",70,null,{"$f":"D17*E17","v":0}]
[null,"تقديم وتركيب بلاط سيراميك في الحمامات فقط,بعد تهيئة الارضية وحسب تعليمات المهندس"]
[8,"Supply and Install marble Threshold 10cm width and 2cm thickness  including mortar backing.","lm",2,null,{"$f":"D19*E19","v":0}]
[null," تقديم وتركيب برطاش من الرخام 2*10 سم"]
["Plastering Work (اعمال ورقة)"]
[9,"Supply and apply Internal plastering works to ceiling and walls (Saint Etienne - Traditional) 15 to 20mm thick including steel mesh and corner/opening stops and accessories, curing, scaffolding, spraying when needed, filling of existing cavities, smoothing and any other application needed for the proper completion of the works.","m2",180,null,{"$f":"D22*E22","v":0}]
[null,"أعمال ورقة داخلية على الجدران 15-20ملم مع شبك معدني حسب توجيهات المهندس "]
[10,"Supply and Apply External plastering works to walls 15 to 20mm thick including steel mesh and corner/opening stops and accessories, curing, scaffolding, spraying when needed, filling of existing cavities, smoothing and any other application needed for the proper completion of the works.","m2",40,null,{"$f":"D24*E24","v":0}]
[null,"أعمال ورقة خارجية على الجدران 15-20ملم مع شبك معدني حسب توجيهات المهندس "]
["Sanitary Work (اعمال صحية)"]
[11,"Supply install, test and commission European WC seat Lecico (Saidon type) or equivalent complete with flushing cistern, plastic cover, water and sewer connections, with all necessary fittings and accessories. Adjacent walls and floors to be reinstated to their original condition in case of any damages. ","Pcs",1,null,{"$f":"D27*E27","v":0}]
[null,"تقديم وتركيب كرسي حمام أوروبي (صيدون أو ما يعادلها )مع جميع التوصيلات من قساطل PPR و4\"UPVC مع كل الاكسسوارات اللازمة من غطاء بلاستيك "]
[12,"Supply install, test and commission flushing hose pipe set 1/2\" internal diameter for WC, with rubber hose and chrome angle valve with all its connections and necessary fittings and accessories.","Pcs",1,null,{"$f":"D29*E29","v":0}]
[null,"تقديم وتركيب نربيش صحي (شطافة) مع جميع التوصيلات والاكسسوارات"]
[13,"Supply and Installation of wash basin mixer with all its connections.","Pcs",1,null,{"$f":"D31*E31","v":0}]
[null,"تقديم وتركيب خلاط مغسلة مع كل التوصيلات"]
[14,"Supply and Intallation of sink mixer of approved quality with all its connections.","Pcs",1,null,{"$f":"D33*E33","v":0}]
[null,"تقديم وتركيب خلاط مجلى مع كل التوصيلات"]
[15,"Supply, install, test and commission Wash bassin Lecico make or equivalent with all its connections to water supply and drainage connection to the sewage network with all necessary fittings and accessories (including steel support, chrome outlet, porcelain shelf, etc.). Adjacent walls and floors to be reinstated to their original condition in case of any damages.","Pcs",1,null,{"$f":"D35*E35","v":0}]
[null,"تقديم وتركيب مغسلة ليسيكو أو ما يعادلها مع كل التوصيلات المائية والصحية بالاضافة لرف بورسلان وخلاط"]
[16,"Supply, install, test and commission stainless steel kitchen sink (over all size 50cmx100cm) with all its connections to water supply and drainage connection to the sewage network with all necessary fittings and accessories (including steel support, etc.). Adjacent walls and floors to be reinstated to their original condition in case of any damages.","pcs",1,null,{"$f":"D37*E37","v":0}]
[null,"تقديم وتركيب مجلى ستانلس ستيل مع كل التوصيلات المائية والصحية وخلاط مع قاعدة حديد"]
[17,"Supply, install, test and commission trapped gully 4 inches including handhole 20x20cm with stainless steel cover including builders works such as drilling in concrete, fixing in slab by using high compressive mortar, levelling and connecting to the drain network.                                      ","Pcs",3,null,{"$f":"D39*E39","v":0}]
[null,"تقديم وتركيب ريكار4\",  20*20 سم مع غطاء ستانلس مع كل ما يلزم من حفر وتثبيت في الارضية وتوصيل الى الشبكة الصحية"]
[18,"Supply, install, test and commission drainage UPVC pipes 4 inches, PN 16bar, including all needed accessories (coupling, Tee, Elbow, seal ring, etc.). Works include connection to the existing manhole including builders works.\nOn slab installation to be protected with concrete, underceiling installation to have metallic support, vertical installation to be fixed on wall by clamps with anchors. Slope in flow direction should exceed 1cm per meter.","m",6,null,{"$f":"D41*E41","v":0}]
[null,"تقديم وتركيب مجرور بلاستك UPVC 4'PN16barمع جميع ما يلزم من اكسسوارات لتوصيله الى الريكار العام"]
[19,"Supply, install, test and commission PVC Water tank NTG 3 layer 500 liters (certified for drinking water), light grey, complete with float valve, brass valves, overflow pipe, hard PVC cover including inlet & outlet connections and all necessary fittings and accessories.","Pcs",1,null,{"$f":"D43*E43","v":0}]
[null,"تقديم وتركيب خزان مياة 3طبقات NTG سعة 500لتر لمياه الشرب لون رمادي فاتح مع طواشة وسكر وغطاء وجميع التوصيلات"]
[20,"Supply install, test and commission PPR network pipes 16mm for hot and cold water supply including all necessary fittings and accessories.تمديد شبكة مياه باردة وساخنة مع جميع الاكسسوارات اللازمة","Lm",16,null,{"$f":"D45*E45","v":0}]
["Electrical Work (اعمال كهربائية)"]
[21,"Supply and Apply Lighting, power socket or switch point including all conduiting, wiring, boxes, covers, with all necessary accessories and related works complete to engineer's approval all to be imbedded in walls including making good plaster and paint.     أعمال انارة وتتضمن تركيب مفاتيح وبرايزوعلب مع أغطية واسلاك وجميع الاكسسوارات على ان تكون جميع الاعمال مخفية داخل الجدران مع كافة اعمل الورقة والدهان اللازمة لاخفاء العيوب ","Pcs",10,null,{"$f":"D47*E47","v":0}]
[22,"Supply, Install, test and commission electrical Water heater 80L, 2mm galvanized bottle with resistance 1000w, with thermal insulation, thermostat, thermometer, with complete connections to water and power supply (with 10v circuit breaker) including all necessary fittings, supports and accessories. Proper removal of existing damaged heater (if any) to be also included.","Pcs",1,null,{"$f":"D48*E48","v":0}]
[null,"تركيب سخان 80 ليتر 2ملم 1000W معزول منظم حرارة وساعة حرارة مع جميع التوصيلات الكهربائية(ديجنتير 10 فولت) بالاضافة لتوصيل الماء"]
["Aluminum Work (اعمال المنيوم)"]
[23,"Supply and Install Aluminum door overall size 80cmx200cm with frame and all its accessories including tiling of door opening.\n   تركيب باب المنيوم مع جميع الاكسسوارات مع تبليط دائر فتحة الباب  ","pcs",1,null,{"$f":"D51*E51","v":0}]
["Painting Work (اعمال دهان)"]
[24,"Painting the ceiling and walls with two coats of paint (base and mat eggshell). Painting should be done after scraping and cleaning the surface and applying putty coats where necessary.","m2",200,null,{"$f":"E53*D53","v":0}]
[null,"دهان الجدران والاسقف وجهين (الاول أساس) بعد تنظيف وحف ووضع معجونة حيث يلزم"]
[{"$nulls":4},"Total",{"$f":"SUM(F4:F54)","v":0}]

{"sheet":"OS-19B","index":11,"n_rows":55,"n_cols":6,"rows_kept":55,"merged":[[0,0,0,2],[0,3,0,5],[2,0,2,5],[4,0,4,5],[6,0,6,5],[7,0,8,0],[7,2,8,2],[7,3,8,3],[7,4,8,4],[7,5,8,5],[9,0,9,5],[10,0,11,0],[10,2,11,2],[10,3,11,3],[10,4,11,4],[10,5,11,5],[12,0,13,0],[12,2,13,2],[12,3,13,3],[12,4,13,4],[12,5,13,5],[14,0,14,5],[15,0,16,0],[15,2,16,2],[15,3,16,3],[15,4,16,4],[15,5,16,5],[17,0,18,0],[17,2,18,2],[17,3,18,3],[17,4,18,4],[17,5,18,5],[19,0,19,5],[20,0,21,0],[20,2,21,2],[20,3,21,3],[20,4,21,4],[20,5,21,5],[22,0,22,5],[23,0,24,0],[23,2,24,2],[23,3,24,3],[23,4,24,4],[23,5,24,5],[25,0,25,5],[26,0,27,0],[26,2,27,2],[26,3,27,3],[26,4,27,4],[26,5,27,5],[28,0,29,0],[28,2,29,2],[28,3,29,3],[28,4,29,4],[28,5,29,5],[30,0,31,0],[30,2,31,2],[30,3,31,3],[30,4,31,4],[30,5,31,5],[32,0,33,0],[32,2,33,2],[32,3,33,3],[32,4,33,4],[32,5,33,5],[34,0,35,0],[34,2,35,2],[34,3,35,3],[34,4,35,4],[34,5,35,5],[36,0,37,0],[36,2,37,2],[36,3,37,3],[36,4,37,4],[36,5,37,5],[38,0,39,0],[38,2,39,2],[38,3,39,3],[38,4,39,4],[38,5,39,5],[40,0,41,0],[40,2,41,2],[40,3,41,3],[40,4,41,4],[40,5,41,5],[43,0,43,5],[45,0,46,0],[45,2,46,2],[45,3,46,3],[45,4,46,4],[45,5,46,5],[47,0,47,5],[48,0,49,0],[48,2,49,2],[48,3,49,3],[48,4,49,4],[48,5,49,5],[51,0,51,5],[52,0,53,0],[52,2,53,2],[52,3,53,3],[52,4,53,4],[52,5,53,5]]}
["Name: Walid Ahmad el Hodari",null,null,"Code: OS-19B P1"]
["Item","Description","Unit","Quantity","U.Price","T.Price"]
["Demolishing Work (اعمال الهدم و ازالة الردميات)"]
[1,"Dismantle and remove from site existing zinco sheet-layered roofs and filling material including existing steel beams or supports.فك الزينكو القديم وعناصر الحديد القديمة وازالتها من الموقع","m2",20,null,{"$f":"D4*E4","v":0}]
["Concrete Work (اعمال باطون)"]
[2,"Repair of ceiling concrete surfaces including treatment of rusted steel, removal of damaged concrete, treatment of concrete surface and making good as necessary (grout, plaster, etc.) and to the Engineer's approval.\nأعمال تصليح أسقف باطون مع معالجة الحديد و ازالة البطون (العاطل ومعالجة الأسقف بالمواد المناسبة (غراوت, باطون, الخ حسب توجيهات المهندس ","m2",10,null,{"$f":"E6*D6","v":0}]
["Waterproofing Work (اعمال منع النشّ)"]
[3,"Supply, apply and test roof waterproofing using PU material, the works including but not limited to cleaning, surface preparation works, drying, filling cavities with mortar, applying primer, angle fillets, plaster works for parapets and any other materials needed prior to the proper application of 3 layers of PU according to the manufacturer's data sheet and method statement and to the Engineer's approval.","m2",50,null,{"$f":"D8*E8","v":0}]
[null,"تقديم ودهان مواد عازلة PU على الاسطح بعد تنظيفها وتهيئة السطح لاعمال العزل واعمال ورقة حسب توجيهات المهندس"]
["Wood and other Works (اعمال خشبية وغيره)"]
[4,"Supply and install single leaf Wooden door (size 100cmx200cm) including subframe, Frame (Swedish), with complete ironmongery, Hinges, Handle and Keylock of approved quality (lock to be yale or equivalent) complete with painting by 2 coats of oil paint. All the wooden works to be initially cured and treated to resist humidity and insects.\nRepair, making good in case of damage to the surrounding walls to be included.","Pcs",1,null,{"$f":"D11*E11","v":0}]
[null,"تقديم وتركيب باب خشب قياس 100*200سم مع الاطار (سويد) مع جميع الاكسسوارات . مسكة , قفل يال أو ما يعادله مع دهان طبقتين من الدهان الزيتي ومعالجة كل الاضرار حول الباب في حال حصولها اثناء التركيب"]
[5,"Repair wooden door (size 100cmx200cm) including painting, hinges, handles and locks.","Pcs",1,null,{"$f":"D13*E13","v":0}]
[null,"اصلاح باب خشب قياس 100*200سم مع دهان تركيب مسكة وقفل ومفصلات"]
["Metal Work (اعمال حديدية)"]
[6,"Repair steel window including painting, handle and keylock.","pcs",6,null,{"$f":"D16*E16","v":0}]
[null,"اصلاح  شباك حديد مع مسكة وقفل ودهان"]
[7,"Supply and install structural steel I/H beams (14cm*7cm) to support concrete ceiling slabs including all necessary fittings and accessories  needed to properly complete the works to the engineer's approval.","lm",7,null,{"$f":"D18*E18","v":0}]
[null,"تقديم وتركيب جسر حديد (14cm*7cm) لتدعيم أسقف الباطون المسلّح"]
["Tiling Work (اعمال بلاط)"]
[8,"Supply and Apply Ceramic tiles to floors and walls, including surface preparation, backing mortar/adhesive, grouting between tiles and any other application or materials needed to properly complete the works to the engineer's approval.","m2",20,null,{"$f":"D21*E21","v":0}]
[null,"تقديم وتركيب بلاط سيراميك في الحمامات فقط,بعد تهيئة الارضية وحسب تعليمات المهندس"]
["Plastering Work (اعمال ورقة)"]
[9,"Supply and apply Internal plastering works to ceiling and walls (Saint Etienne - Traditional) 15 to 20mm thick including steel mesh and corner/opening stops and accessories, curing, scaffolding, spraying when needed, filling of existing cavities, smoothing and any other application needed for the proper completion of the works.","m2",50,null,{"$f":"D24*E24","v":0}]
[null,"أعمال ورقة داخلية على الجدران 15-20ملم مع شبك معدني حسب توجيهات المهندس "]
["Sanitary Work (اعمال صحية)"]
[10,"Supply install, test and commission European WC seat Lecico (Saidon type) or equivalent complete with flushing cistern, plastic cover, water and sewer connections, with all necessary fittings and accessories. Adjacent walls and floors to be reinstated to their original condition in case of any damages. ","Pcs",1,null,{"$f":"D27*E27","v":0}]
[null,"تقديم وتركيب كرسي حمام أوروبي (صيدون أو ما يعادلها )مع جميع التوصيلات من قساطل PPR و4\"UPVC مع كل الاكسسوارات اللازمة من غطاء بلاستيك "]
[11,"Supply install, test and commission flushing hose pipe set 1/2\" internal diameter for WC, with rubber hose and chrome angle valve with all its connections and necessary fittings and accessories.","Pcs",1,null,{"$f":"D29*E29","v":0}]
[null,"تقديم وتركيب نربيش صحي (شطافة) مع جميع التوصيلات والاكسسوارات"]
[12,"Supply and Installation of wash basin mixer with all its connections.","Pcs",1,null,{"$f":"D31*E31","v":0}]
[null,"تقديم وتركيب خلاط مغسلة مع كل التوصيلات"]
[13,"Supply and Intallation of sink mixer of approved quality with all its connections.","Pcs",1,null,{"$f":"D33*E33","v":0}]
[null,"تقديم وتركيب خلاط مجلى مع كل التوصيلات"]
[14,"Supply, install, test and commission Wash bassin Lecico make or equivalent with all its connections to water supply and drainage connection to the sewage network with all necessary fittings and accessories (including steel support, chrome outlet, porcelain shelf, etc.). Adjacent walls and floors to be reinstated to their original condition in case of any damages.","Pcs",1,null,{"$f":"D35*E35","v":0}]
[null,"تقديم وتركيب مغسلة ليسيكو أو ما يعادلها مع كل التوصيلات المائية والصحية بالاضافة لرف بورسلان وخلاط"]
[15,"Supply, install, test and commission trapped gully 4 inches including handhole 20x20cm with stainless steel cover including builders works such as drilling in concrete, fixing in slab by using high compressive mortar, levelling and connecting to the drain network.                                      ","Pcs",3,null,{"$f":"D37*E37","v":0}]
[null,"تقديم وتركيب ريكار4\",  20*20 سم مع غطاء ستانلس مع كل ما يلزم من حفر وتثبيت في الارضية وتوصيل الى الشبكة الصحية"]
[16,"Supply, install, test and commission drainage UPVC pipes 4 inches, PN 16bar, including all needed accessories (coupling, Tee, Elbow, seal ring, etc.). Works include connection to the existing manhole including builders works.\nOn slab installation to be protected with concrete, underceiling installation to have metallic support, vertical installation to be fixed on wall by clamps with anchors. Slope in flow direction should exceed 1cm per meter.","m",6,null,{"$f":"D39*E39","v":0}]
[null,"تقديم وتركيب مجرور بلاستك UPVC 4'PN16barمع جميع ما يلزم من اكسسوارات لتوصيله الى الريكار العام"]
[17,"Supply, install, test and commission PVC Water tank NTG 3 layer 1000 liters (certified for drinking water), light grey, complete with float valve, brass valves, overflow pipe, hard PVC cover including inlet & outlet connections and all necessary fittings and accessories.","Pcs",1,null,{"$f":"D41*E41","v":0}]
[null,"تقديم وتركيب خزان مياة 3طبقات NTG سعة 1000لتر لمياه الشرب لون رمادي فاتح مع طواشة وسكر وغطاء وجميع التوصيلات"]
[18,"Supply install, test and commission PPR network pipes 16mm for hot and cold water supply including all necessary fittings and accessories.تمديد شبكة مياه باردة وساخنة مع جميع الاكسسوارات اللازمة","Lm",10,null,{"$f":"D43*E43","v":0}]
["Electrical Work (اعمال كهربائية)"]
[19,"Supply and Apply Lighting, power socket or switch point including all conduiting, wiring, boxes, covers, with all necessary accessories and related works complete to engineer's approval all to be imbedded in walls including making good plaster and paint.     أعمال انارة وتتضمن تركيب مفاتيح وبرايزوعلب مع أغطية واسلاك وجميع الاكسسوارات على ان تكون جميع الاعمال مخفية داخل الجدران مع كافة اعمل الورقة والدهان اللازمة لاخفاء العيوب ","Pcs",6,null,{"$f":"D45*E45","v":0}]
[20,"Supply, Install, test and commission electrical Water heater 80L, 2mm galvanized bottle with resistance 1000w, with thermal insulation, thermostat, thermometer, with complete connections to water and power supply (with 10v circuit breaker) including all necessary fittings, supports and accessories. Proper removal of existing damaged heater (if any) to be also included.","Pcs",1,null,{"$f":"D46*E46","v":0}]
[null,"تركيب سخان 80 ليتر 2ملم 1000W معزول منظم حرارة وساعة حرارة مع جميع التوصيلات الكهربائية(ديجنتير 10 فولت) بالاضافة لتوصيل الماء"]
["Aluminum Work (اعمال المنيوم)"]
[21,"Supply and Install Accordeon hard plastic Door, overall size 80cmx200cm, complete with all material and accessories needed and making good around the frame.","pcs",1,null,{"$f":"D49*E49","v":0}]
[null,"تقديم ويركيب باب أكورديم 80*200سم مع كافة الاكسسوارات"]
[22,"Supply and Install Aluminum door overall size 80cmx200cm with frame and all its accessories including tiling of door opening.\n   تركيب باب المنيوم مع جميع الاكسسوارات مع تبليط دائر فتحة الباب  ","pcs",1,null,{"$f":"D51*E51","v":0}]
["Painting Work (اعمال دهان)"]
[23,"Painting the ceiling and walls with two coats of paint (base and mat eggshell). Painting should be done after scraping and cleaning the surface and applying putty coats where necessary.","m2",100,null,{"$f":"E53*D53","v":0}]
[null,"دهان الجدران والاسقف وجهين (الاول أساس) بعد تنظيف وحف ووضع معجونة حيث يلزم"]
[{"$nulls":4},"Total",{"$f":"SUM(F4:F54)","v":0}]

{"sheet":"OS-25B","index":12,"n_rows":45,"n_cols":6,"rows_kept":45,"merged":[[0,0,0,2],[0,3,0,5],[2,0,2,5],[5,0,5,5],[7,0,7,5],[8,0,9,0],[8,2,9,2],[8,3,9,3],[8,4,9,4],[8,5,9,5],[10,0,10,5],[11,0,12,0],[11,2,12,2],[11,3,12,3],[11,4,12,4],[11,5,12,5],[13,0,14,0],[13,2,14,2],[13,3,14,3],[13,4,14,4],[13,5,14,5],[15,0,16,0],[15,2,16,2],[15,3,16,3],[15,4,16,4],[15,5,16,5],[17,0,17,5],[18,0,19,0],[18,2,19,2],[18,3,19,3],[18,4,19,4],[18,5,19,5],[20,0,21,0],[20,2,21,2],[20,3,21,3],[20,4,21,4],[20,5,21,5],[22,0,22,5],[23,0,24,0],[23,2,24,2],[23,3,24,3],[23,4,24,4],[23,5,24,5],[25,0,26,0],[25,2,26,2],[25,3,26,3],[25,4,26,4],[25,5,26,5],[28,0,28,5],[29,0,30,0],[29,2,30,2],[29,3,30,3],[29,4,30,4],[29,5,30,5],[31,0,32,0],[31,2,32,2],[31,3,32,3],[31,4,32,4],[31,5,32,5],[34,0,34,5],[36,0,37,0],[36,2,37,2],[36,3,37,3],[36,4,37,4],[36,5,37,5],[38,0,38,5],[39,0,40,0],[39,2,40,2],[39,3,40,3],[39,4,40,4],[39,5,40,5],[41,0,41,5],[42,0,43,0],[42,2,43,2],[42,3,43,3],[42,4,43,4],[42,5,43,5]]}
["Name: Khaled Moustafa (Owner - Said Makkawi)",null,null,"Code: OS-25B P1+"]
["Item","Description","Unit","Quantity","U.Price","T.Price"]
["Demolishing Work (اعمال الهدم و ازالة الردميات)"]
[1,"Carefully demolish concrete block wall complete with removing all material arising from site and make good surrounding finish. Remove all existing debris from site.\n تكسير جدران من احجار الباطون ونقل الردم الى المكب","m2",5,null,{"$f":"E4*D4","v":0}]
[2,"Carefully demolish existing damaged concrete slab complete with removing all steel reinforcement and material arising from site.\n تكسير ارضية من الباطون المسلّح ونقل الردم الى المكب","m2",12,null,{"$f":"E5*D5","v":0}]
["Concrete Work (اعمال باطون)"]
[3,"Reinforced concrete works (15cm thick concrete ceiling slab), including high yield steel reinforcement to Engineer's approval.\n سقف 15سم) أعمال باطون مسلح تتضمن تسليح حديد) ","m2",12,null,{"$f":"D7*E7","v":0}]
["Waterproofing Work (اعمال منع النشّ)"]
[4,"Supply, apply and test roof waterproofing using PU material, the works including but not limited to cleaning, surface preparation works, drying, filling cavities with mortar, applying primer, angle fillets, plaster works for parapets and any other materials needed prior to the proper application of 3 layers of PU according to the manufacturer's data sheet and method statement and to the Engineer's approval.","m2",12,null,{"$f":"D9*E9","v":0}]
[null,"تقديم ودهان مواد عازلة PU على الاسطح بعد تنظيفها وتهيئة السطح لاعمال العزل واعمال ورقة حسب توجيهات المهندس"]
["Wood and other Works (اعمال خشبية وغيره)"]
[5,"Supply and install single leaf Wooden door (size 100cmx200cm) including subframe, Frame (Swedish), with complete ironmongery, Hinges, Handle and Keylock of approved quality (lock to be yale or equivalent) complete with painting by 2 coats of oil paint. All the wooden works to be initially cured and treated to resist humidity and insects.\nRepair, making good in case of damage to the surrounding walls to be included.","Pcs",1,null,{"$f":"D12*E12","v":0}]
[null,"تقديم وتركيب باب خشب قياس 100*200سم مع الاطار (سويد) مع جميع الاكسسوارات . مسكة , قفل يال أو ما يعادله مع دهان طبقتين من الدهان الزيتي ومعالجة كل الاضرار حول الباب في حال حصولها اثناء التركيب"]
[6,"Repair wooden door (size 100cmx200cm) including painting, hinges, handles and locks.","Pcs",1,null,{"$f":"D14*E14","v":0}]
[null,"اصلاح باب خشب قياس 100*200سم مع دهان تركيب مسكة وقفل ومفصلات"]
[7,"Repair wooden window including painting, hinges, handles and glass panes.","Pcs",1,null,{"$f":"D16*E16","v":0}]
[null,"اصلاح شباك خشب قياس مع دهان تركيب مسكة ومفصلات و زجاج"]
["Tiling Work (اعمال بلاط)"]
[8,"Supply and Apply Ceramic tiles to floors and walls, including surface preparation, backing mortar/adhesive, grouting between tiles and any other application or materials needed to properly complete the works to the engineer's approval.","m2",25,null,{"$f":"D19*E19","v":0}]
[null,"تقديم وتركيب بلاط سيراميك في الحمامات فقط,بعد تهيئة الارضية وحسب تعليمات المهندس"]
[9,"Supply and Install marble Threshold 10cm width and 2cm thickness  including mortar backing.","lm",2,null,{"$f":"D21*E21","v":0}]
[null," تقديم وتركيب برطاش من الرخام 2*10 سم"]
["Plastering Work (اعمال ورقة)"]
[10,"Supply and apply Internal plastering works to ceiling and walls (Saint Etienne - Traditional) 15 to 20mm thick including steel mesh and corner/opening stops and accessories, curing, scaffolding, spraying when needed, filling of existing cavities, smoothing and any other application needed for the proper completion of the works.","m2",30,null,{"$f":"D24*E24","v":0}]
[null,"أعمال ورقة داخلية على الجدران 15-20ملم مع شبك معدني حسب توجيهات المهندس "]
[11,"Supply and apply Internal plastering works to ceiling and walls 15 to 20mm thick including steel mesh and corner/opening stops and accessories, curing, scaffolding, spraying when needed, filling of existing cavities, smoothing and any other application needed for the proper completion of the works.","m2",12,null,{"$f":"D26*E26","v":0}]
[null,"أعمال ورقة داخلية على الجدران 15-20ملم مع شبك معدني حسب توجيهات المهندس "]
[12,"Treatment of existing cracks (internally or externally) by breaking out and removing any loose and defective parts, replastering using wire mesh where necessary, applying anti-leakage putty and paint, then making good finish to engineer's approval.  معالجة التشققات الداخلية والخارجية بواسطة توسيعها وتنظيفها وحشوها بمواد مناسبة واستعمال مايلزم من مواد حسب تعليمات المهندس","Lm",12,null,{"$f":"D28*E28","v":0}]
["Sanitary Work (اعمال صحية)"]
[13,"Supply install, test and commission European WC seat Lecico (Saidon type) or equivalent complete with flushing cistern, plastic cover, water and sewer connections, with all necessary fittings and accessories. Adjacent walls and floors to be reinstated to their original condition in case of any damages. ","Pcs",1,null,{"$f":"D30*E30","v":0}]
[null,"تقديم وتركيب كرسي حمام أوروبي (صيدون أو ما يعادلها )مع جميع التوصيلات من قساطل PPR و4\"UPVC مع كل الاكسسوارات اللازمة من غطاء بلاستيك "]
[14,"Supply and install Shower mixer medium quality with telephone shower.                  ","Pcs",1,null,{"$f":"D32*E32","v":0}]
[null,"تقديم وتركيب خلاط دوش مع كل التوصيلات والاكسسوارات "]
[15,"Supply install, test and commission PPR network pipes 16mm for hot and cold water supply including all necessary fittings and accessories.تمديد شبكة مياه باردة وساخنة مع جميع الاكسسوارات اللازمة","Lm",10,null,{"$f":"D34*E34","v":0}]
["Electrical Work (اعمال كهربائية)"]
[16,"Supply and Apply Lighting, power socket or switch point including all conduiting, wiring, boxes, covers, with all necessary accessories and related works complete to engineer's approval all to be imbedded in walls including making good plaster and paint.     أعمال انارة وتتضمن تركيب مفاتيح وبرايزوعلب مع أغطية واسلاك وجميع الاكسسوارات على ان تكون جميع الاعمال مخفية داخل الجدران مع كافة اعمل الورقة والدهان اللازمة لاخفاء العيوب ","Pcs",6,null,{"$f":"D36*E36","v":0}]
[17,"Supply, Install, test and commission electrical Water heater 80L, 2mm galvanized bottle with resistance 1000w, with thermal insulation, thermostat, thermometer, with complete connections to water and power supply (with 10v circuit breaker) including all necessary fittings, supports and accessories. Proper removal of existing damaged heater (if any) to be also included.","Pcs",2,null,{"$f":"D37*E37","v":0}]
[null,"تركيب سخان 80 ليتر 2ملم 1000W معزول منظم حرارة وساعة حرارة مع جميع التوصيلات الكهربائية(ديجنتير 10 فولت) بالاضافة لتوصيل الماء"]
["Aluminum Work (اعمال المنيوم)"]
[18,"Supply and Install Accordeon hard plastic Door, overall size 80cmx200cm, complete with all material and accessories needed and making good around the frame.","pcs",3,null,{"$f":"D40*E40","v":0}]
[null,"تقديم ويركيب باب أكورديم 80*200سم مع كافة الاكسسوارات"]
["Painting Work (اعمال دهان)"]
[19,"Painting the ceiling and walls with two coats of paint (base and mat eggshell). Painting should be done after scraping and cleaning the surface and applying putty coats where necessary.","m2",80,null,{"$f":"E43*D43","v":0}]
[null,"دهان الجدران والاسقف وجهين (الاول أساس) بعد تنظيف وحف ووضع معجونة حيث يلزم"]
[{"$nulls":4},"Total",{"$f":"SUM(F4:F43)","v":0}]

{"sheet":"OS-34B","index":13,"n_rows":50,"n_cols":6,"rows_kept":50,"merged":[[0,0,0,2],[0,3,0,5],[2,0,2,5],[5,0,5,5],[8,0,8,5],[10,0,10,5],[11,0,12,0],[11,2,12,2],[11,3,12,3],[11,4,12,4],[11,5,12,5],[13,0,13,5],[14,0,15,0],[14,2,15,2],[14,3,15,3],[14,4,15,4],[14,5,15,5],[16,0,17,0],[16,2,17,2],[16,3,17,3],[16,4,17,4],[16,5,17,5],[18,0,18,5],[19,0,20,0],[19,2,20,2],[19,3,20,3],[19,4,20,4],[19,5,20,5],[21,0,22,0],[21,2,22,2],[21,3,22,3],[21,4,22,4],[21,5,22,5],[23,0,23,5],[24,0,25,0],[24,2,25,2],[24,3,25,3],[24,4,25,4],[24,5,25,5],[26,0,26,5],[27,0,28,0],[27,2,28,2],[27,3,28,3],[27,4,28,4],[27,5,28,5],[29,0,30,0],[29,2,30,2],[29,3,30,3],[29,4,30,4],[29,5,30,5],[31,0,32,0],[31,2,32,2],[31,3,32,3],[31,4,32,4],[31,5,32,5],[33,0,34,0],[33,2,34,2],[33,3,34,3],[33,4,34,4],[33,5,34,5],[35,0,36,0],[35,2,36,2],[35,3,36,3],[35,4,36,4],[35,5,36,5],[37,0,38,0],[37,2,38,2],[37,3,38,3],[37,4,38,4],[37,5,38,5],[39,0,40,0],[39,2,40,2],[39,3,40,3],[39,4,40,4],[39,5,40,5],[42,0,42,5],[44,0,44,5],[46,0,46,5],[47,0,48,0],[47,2,48,2],[47,3,48,3],[47,4,48,4],[47,5,48,5]]}
["Name: Hanane Abou Sikkineh",null,null,"Code: OS-34B P1+"]
["Item","Description","Unit","Quantity","U.Price","T.Price"]
["Demolishing Work (اعمال الهدم و ازالة الردميات)"]
[1,"Carefully demolish concrete block wall complete with removing all material arising from site and make good surrounding finish. Remove all existing debris from site.\n تكسير جدران من احجار الباطون ونقل الردم الى المكب","m2",15,null,{"$f":"E4*D4","v":0}]
[2,"Carefully demolish existing damaged concrete slab complete with removing all steel reinforcement and material arising from site.\n تكسير ارضية من الباطون المسلّح ونقل الردم الى المكب","m2",35,null,{"$f":"E5*D5","v":0}]
["Concrete Work (اعمال باطون)"]
[3,"Reinforced concrete works (15cm thick concrete ceiling slab), including high yield steel reinforcement to Engineer's approval.\n سقف 15سم) أعمال باطون مسلح تتضمن تسليح حديد) ","m2",35,null,{"$f":"D7*E7","v":0}]
[4,"Repair of ceiling concrete surfaces including treatment of rusted steel, removal of damaged concrete, treatment of concrete surface and making good as necessary (grout, plaster, etc.) and to the Engineer's approval.\nأعمال تصليح أسقف باطون مع معالجة الحديد و ازالة البطون (العاطل ومعالجة الأسقف بالمواد المناسبة (غراوت, باطون, الخ حسب توجيهات المهندس ","m2",6,null,{"$f":"E8*D8","v":0}]
["Block Work (اعمال حجر)"]
[5,"Supply and install Hollow blocks walls 12 cm including sand-cement mortar, mesh, accessories, angle beads       تقديم وعمار حجر12 سم مع كل ما يلزم من مواد","m2",5,null,{"$f":"D10*E10","v":0}]
["Waterproofing Work (اعمال منع النشّ)"]
[6,"Supply, apply and test roof waterproofing using PU material, the works including but not limited to cleaning, surface preparation works, drying, filling cavities with mortar, applying primer, angle fillets, plaster works for parapets and any other materials needed prior to the proper application of 3 layers of PU according to the manufacturer's data sheet and method statement and to the Engineer's approval.","m2",35,null,{"$f":"D12*E12","v":0}]
[null,"تقديم ودهان مواد عازلة PU على الاسطح بعد تنظيفها وتهيئة السطح لاعمال العزل واعمال ورقة حسب توجيهات المهندس"]
["Wood and other Works (اعمال خشبية وغيره)"]
[7,"Supply and install single leaf Wooden door (size 100cmx200cm) including subframe, Frame (Swedish), with complete ironmongery, Hinges, Handle and Keylock of approved quality (lock to be yale or equivalent) complete with painting by 2 coats of oil paint. All the wooden works to be initially cured and treated to resist humidity and insects.\nRepair, making good in case of damage to the surrounding walls to be included.","Pcs",2,null,{"$f":"D15*E15","v":0}]
[null,"تقديم وتركيب باب خشب قياس 100*200سم مع الاطار (سويد) مع جميع الاكسسوارات . مسكة , قفل يال أو ما يعادله مع دهان طبقتين من الدهان الزيتي ومعالجة كل الاضرار حول الباب في حال حصولها اثناء التركيب"]
[8,"Supply and install Wooden window including Shutters, Frame, glass panes, with complete ironmongery, Hinges, Handles  of approved quality complete with painting by 2 coats of oil paint. All the wooden works to be initially cured and treated to resist humidity and insects.\nRepair, making good in case of damage to the surrounding walls to be included. Window tile sills also to be included","m2",3,null,{"$f":"D17*E17","v":0}]
[null,"تقديم وتركيب شبّاك خشب مع الاطار مع جميع الاكسسوارات . مسكة  مع دهان طبقتين من الدهان الزيتي ومعالجة كل الاضرار حول الباب في حال حصولها اثناء التركيب"]
["Tiling Work (اعمال بلاط)"]
[9,"Supply and Apply Ceramic tiles to floors and walls, including surface preparation, backing mortar/adhesive, grouting between tiles and any other application or materials needed to properly complete the works to the engineer's approval.","m2",35,null,{"$f":"D20*E20","v":0}]
[null,"تقديم وتركيب بلاط سيراميك في الحمامات فقط,بعد تهيئة الارضية وحسب تعليمات المهندس"]
[10,"Supply and Install marble Threshold 10cm width and 2cm thickness  including mortar backing.","lm",1,null,{"$f":"D22*E22","v":0}]
[null," تقديم وتركيب برطاش من الرخام 2*10 سم"]
["Plastering Work (اعمال ورقة)"]
[11,"Supply and apply Internal plastering works to ceiling and walls 15 to 20mm thick including steel mesh and corner/opening stops and accessories, curing, scaffolding, spraying when needed, filling of existing cavities, smoothing and any other application needed for the proper completion of the works.","m2",55,null,{"$f":"D25*E25","v":0}]
[null,"أعمال ورقة داخلية على الجدران 15-20ملم مع شبك معدني حسب توجيهات المهندس "]
["Sanitary Work (اعمال صحية)"]
[12,"Supply install, test and commission European WC seat Lecico (Saidon type) or equivalent complete with flushing cistern, plastic cover, water and sewer connections, with all necessary fittings and accessories. Adjacent walls and floors to be reinstated to their original condition in case of any damages. ","Pcs",1,null,{"$f":"D28*E28","v":0}]
[null,"تقديم وتركيب كرسي حمام أوروبي (صيدون أو ما يعادلها )مع جميع التوصيلات من قساطل PPR و4\"UPVC مع كل الاكسسوارات اللازمة من غطاء بلاستيك "]
[13,"Supply install, test and commission flushing hose pipe set 1/2\" internal diameter for WC, with rubber hose and chrome angle valve with all its connections and necessary fittings and accessories.","Pcs",1,null,{"$f":"D30*E30","v":0}]
[null,"تقديم وتركيب نربيش صحي (شطافة) مع جميع التوصيلات والاكسسوارات"]
[14,"Supply and Installation of wash basin mixer with all its connections.","Pcs",1,null,{"$f":"D32*E32","v":0}]
[null,"تقديم وتركيب خلاط مغسلة مع كل التوصيلات"]
[15,"Supply and install Shower mixer medium quality with telephone shower.                  ","Pcs",1,null,{"$f":"D34*E34","v":0}]
[null,"تقديم وتركيب خلاط دوش مع كل التوصيلات والاكسسوارات "]
[16,"Supply, install, test and commission Wash bassin Lecico make or equivalent with all its connections to water supply and drainage connection to the sewage network with all necessary fittings and accessories (including steel support, chrome outlet, porcelain shelf, etc.). Adjacent walls and floors to be reinstated to their original condition in case of any damages.","Pcs",1,null,{"$f":"D36*E36","v":0}]
[null,"تقديم وتركيب مغسلة ليسيكو أو ما يعادلها مع كل التوصيلات المائية والصحية بالاضافة لرف بورسلان وخلاط"]
[17,"Supply, install, test and commission trapped gully 4 inches including handhole 20x20cm with stainless steel cover including builders works such as drilling in concrete, fixing in slab by using high compressive mortar, levelling and connecting to the drain network.                                      ","Pcs",2,null,{"$f":"D38*E38","v":0}]
[null,"تقديم وتركيب ريكار4\",  20*20 سم مع غطاء ستانلس مع كل ما يلزم من حفر وتثبيت في الارضية وتوصيل الى الشبكة الصحية"]
[18,"Supply, install, test and commission drainage UPVC pipes 4 inches, PN 16bar, including all needed accessories (coupling, Tee, Elbow, seal ring, etc.). Works include connection to the existing manhole including builders works.\nOn slab installation to be protected with concrete, underceiling installation to have metallic support, vertical installation to be fixed on wall by clamps with anchors. Slope in flow direction should exceed 1cm per meter.","m",3,null,{"$f":"D40*E40","v":0}]
[null,"تقديم وتركيب مجرور بلاستك UPVC 4'PN16barمع جميع ما يلزم من اكسسوارات لتوصيله الى الريكار العام"]
[19,"Supply install, test and commission PPR network pipes 16mm for hot and cold water supply including all necessary fittings and accessories.تمديد شبكة مياه باردة وساخنة مع جميع الاكسسوارات اللازمة","Lm",8,null,{"$f":"D42*E42","v":0}]
["Electrical Work (اعمال كهربائية)"]
[20,"Supply and Apply Lighting, power socket or switch point including all conduiting, wiring, boxes, covers, with all necessary accessories and related works complete to engineer's approval all to be imbedded in walls including making good plaster and paint.     أعمال انارة وتتضمن تركيب مفاتيح وبرايزوعلب مع أغطية واسلاك وجميع الاكسسوارات على ان تكون جميع الاعمال مخفية داخل الجدران مع كافة اعمل الورقة والدهان اللازمة لاخفاء العيوب ","Pcs",10,null,{"$f":"D44*E44","v":0}]
["Aluminum Work (اعمال المنيوم)"]
[21,"Supply and Install Aluminum door overall size 80cmx200cm with frame and all its accessories including tiling of door opening.\n   تركيب باب المنيوم مع جميع الاكسسوارات مع تبليط دائر فتحة الباب  ","pcs",1,null,{"$f":"D46*E46","v":0}]
["Painting Work (اعمال دهان)"]
[22,"Painting the ceiling and walls with two coats of paint (base and mat eggshell). Painting should be done after scraping and cleaning the surface and applying putty coats where necessary.","m2",200,null,{"$f":"E48*D48","v":0}]
[null,"دهان الجدران والاسقف وجهين (الاول أساس) بعد تنظيف وحف ووضع معجونة حيث يلزم"]
[{"$nulls":4},"Total",{"$f":"SUM(F4:F49)","v":0}]

{"sheet":"OS-35B","index":14,"n_rows":59,"n_cols":6,"rows_kept":59,"merged":[[0,0,0,2],[0,3,0,5],[2,0,2,5],[3,0,4,0],[3,2,4,2],[3,3,4,3],[3,4,4,4],[3,5,4,5],[5,0,6,0],[5,2,6,2],[5,3,6,3],[5,4,6,4],[5,5,6,5],[7,0,8,0],[7,2,8,2],[7,3,8,3],[7,4,8,4],[7,5,8,5],[9,0,10,0],[9,2,10,2],[9,3,10,3],[9,4,10,4],[9,5,10,5],[11,0,11,5],[12,0,13,0],[12,2,13,2],[12,3,13,3],[12,4,13,4],[12,5,13,5],[14,0,15,0],[14,2,15,2],[14,3,15,3],[14,4,15,4],[14,5,15,5],[16,0,16,5],[17,0,18,0],[17,2,18,2],[17,3,18,3],[17,4,18,4],[17,5,18,5],[19,0,20,0],[19,2,20,2],[19,3,20,3],[19,4,20,4],[19,5,20,5],[21,0,21,5],[22,0,23,0],[22,2,23,2],[22,3,23,3],[22,4,23,4],[22,5,23,5],[24,0,24,5],[25,0,26,0],[25,2,26,2],[25,3,26,3],[25,4,26,4],[25,5,26,5],[27,0,28,0],[27,2,28,2],[27,3,28,3],[27,4,28,4],[27,5,28,5],[29,0,30,0],[29,2,30,2],[29,3,30,3],[29,4,30,4],[29,5,30,5],[31,0,32,0],[31,2,32,2],[31,3,32,3],[31,4,32,4],[31,5,32,5],[33,0,34,0],[33,2,34,2],[33,3,34,3],[33,4,34,4],[33,5,34,5],[35,0,36,0],[35,2,36,2],[35,3,36,3],[35,4,36,4],[35,5,36,5],[37,0,38,0],[37,2,38,2],[37,3,38,3],[37,4,38,4],[37,5,38,5],[39,0,40,0],[39,2,40,2],[39,3,40,3],[39,4,40,4],[39,5,40,5],[41,0,42,0],[41,2,42,2],[41,3,42,3],[41,4,42,4],[41,5,42,5],[43,0,44,0],[43,2,44,2],[43,3,44,3],[43,4,44,4],[43,5,44,5],[46,0,46,5],[48,0,49,0],[48,2,49,2],[48,3,49,3],[48,4,49,4],[48,5,49,5],[50,0,50,5],[52,0,52,5],[53,0,54,0],[53,2,54,2],[53,3,54,3],[53,4,54,4],[53,5,54,5],[55,0,55,5]]}
["Name: Mohamad Tantawi",null,null,"Code: OS-35B P1++"]
["Item","Description","Unit","Quantity","U.Price","T.Price"]
["Wood and other Works (اعمال خشبية وغيره)"]
[1,"Supply and install single leaf Wooden door (size 100cmx200cm) including subframe, Frame (Swedish), with complete ironmongery, Hinges, Handle and Keylock of approved quality (lock to be yale or equivalent) complete with painting by 2 coats of oil paint. All the wooden works to be initially cured and treated to resist humidity and insects.\nRepair, making good in case of damage to the surrounding walls to be included.","Pcs",2,null,{"$f":"D4*E4","v":0}]
[null,"تقديم وتركيب باب خشب قياس 100*200سم مع الاطار (سويد) مع جميع الاكسسوارات . مسكة , قفل يال أو ما يعادله مع دهان طبقتين من الدهان الزيتي ومعالجة كل الاضرار حول الباب في حال حصولها اثناء التركيب"]
[2,"Supply and install Wooden window including Shutters, Frame, glass panes, with complete ironmongery, Hinges, Handles  of approved quality complete with painting by 2 coats of oil paint. All the wooden works to be initially cured and treated to resist humidity and insects.\nRepair, making good in case of damage to the surrounding walls to be included. Window tile sills also to be included","m2",2.5,null,{"$f":"D6*E6","v":0}]
[null,"تقديم وتركيب شبّاك خشب مع الاطار مع جميع الاكسسوارات . مسكة  مع دهان طبقتين من الدهان الزيتي ومعالجة كل الاضرار حول الباب في حال حصولها اثناء التركيب"]
[3,"Repair wooden window including painting, hinges, handles and glass panes.","Pcs",3,null,{"$f":"D8*E8","v":0}]
[null,"اصلاح شباك خشب قياس مع دهان تركيب مسكة ومفصلات و زجاج"]
[4,"Supply and Install Wooden partition with plywood 18mm. 1 sheet of black plywood 18mm, dimension equal to 244cmx122cm . Plywood sheets will be fixed vertically or horizontally between Wooden columns/beams of dimensions 400x8x8cm.","m2",2,null,{"$f":"D10*E10","v":0}]
[null,"تقديم وتركيب فواصل خشبيّة"]
["Metal Work (اعمال حديدية)"]
[5,"Supply and install steel window, dimensions adjusted to existing opening, complete with frame, ironmongery, hardware, obscure glass with wire mesh, handle, provided with anti corrosion painting by brush two coats.","m2",1,null,{"$f":"D13*E13","v":0}]
[null,"تقديم وتركيب شباك حديد حسب القياس ,مع زجاج محجر ومشرط مع مسكة  ودهان طبقتين بمواد مقاومة للصدأ "]
[6,"Supply and install structural steel I/H beams (14cm*7cm) to support concrete ceiling slabs including all necessary fittings and accessories  needed to properly complete the works to the engineer's approval.","lm",3,null,{"$f":"D15*E15","v":0}]
[null,"تقديم وتركيب جسر حديد (14cm*7cm) لتدعيم أسقف الباطون المسلّح"]
["Tiling Work (اعمال بلاط)"]
[7,"Supply and Apply Ceramic tiles to floors and walls, including surface preparation, backing mortar/adhesive, grouting between tiles and any other application or materials needed to properly complete the works to the engineer's approval.","m2",24,null,{"$f":"D18*E18","v":0}]
[null,"تقديم وتركيب بلاط سيراميك في الحمامات فقط,بعد تهيئة الارضية وحسب تعليمات المهندس"]
[8,"Supply and Install marble Threshold 10cm width and 2cm thickness  including mortar backing.","lm",1,null,{"$f":"D20*E20","v":0}]
[null," تقديم وتركيب برطاش من الرخام 2*10 سم"]
["Plastering Work (اعمال ورقة)"]
[9,"Supply and apply Internal plastering works to ceiling and walls (Saint Etienne - Traditional) 15 to 20mm thick including steel mesh and corner/opening stops and accessories, curing, scaffolding, spraying when needed, filling of existing cavities, smoothing and any other application needed for the proper completion of the works.","m2",5,null,{"$f":"D23*E23","v":0}]
[null,"أعمال ورقة داخلية على الجدران 15-20ملم مع شبك معدني حسب توجيهات المهندس "]
["Sanitary Work (اعمال صحية)"]
[10,"Supply install, test and commission European WC seat Lecico (Saidon type) or equivalent complete with flushing cistern, plastic cover, water and sewer connections, with all necessary fittings and accessories. Adjacent walls and floors to be reinstated to their original condition in case of any damages. ","Pcs",1,null,{"$f":"D26*E26","v":0}]
[null,"تقديم وتركيب كرسي حمام أوروبي (صيدون أو ما يعادلها )مع جميع التوصيلات من قساطل PPR و4\"UPVC مع كل الاكسسوارات اللازمة من غطاء بلاستيك "]
[11,"Supply install, test and commission toilet tap with all its connections and necessary fittings and accessories.","Pcs",1,null,{"$f":"D28*E28","v":0}]
[null,"تركيب حنفية مع جميع الاكسسوارات"]
[12,"Supply install, test and commission flushing hose pipe set 1/2\" internal diameter for WC, with rubber hose and chrome angle valve with all its connections and necessary fittings and accessories.","Pcs",1,null,{"$f":"D30*E30","v":0}]
[null,"تقديم وتركيب نربيش صحي (شطافة) مع جميع التوصيلات والاكسسوارات"]
[13,"Supply and Installation of wash basin mixer with all its connections.","Pcs",1,null,{"$f":"D32*E32","v":0}]
[null,"تقديم وتركيب خلاط مغسلة مع كل التوصيلات"]
[14,"Supply and Intallation of sink mixer of approved quality with all its connections.","Pcs",1,null,{"$f":"D34*E34","v":0}]
[null,"تقديم وتركيب خلاط مجلى مع كل التوصيلات"]
[15,"Supply and install Shower mixer medium quality with telephone shower.                  ","Pcs",1,null,{"$f":"D36*E36","v":0}]
[null,"تقديم وتركيب خلاط دوش مع كل التوصيلات والاكسسوارات "]
[16,"Supply, install, test and commission Wash bassin Lecico make or equivalent with all its connections to water supply and drainage connection to the sewage network with all necessary fittings and accessories (including steel support, chrome outlet, porcelain shelf, etc.). Adjacent walls and floors to be reinstated to their original condition in case of any damages.","Pcs",1,null,{"$f":"D38*E38","v":0}]
[null,"تقديم وتركيب مغسلة ليسيكو أو ما يعادلها مع كل التوصيلات المائية والصحية بالاضافة لرف بورسلان وخلاط"]
[17,"Supply, install, test and commission trapped gully 4 inches including handhole 20x20cm with stainless steel cover including builders works such as drilling in concrete, fixing in slab by using high compressive mortar, levelling and connecting to the drain network.                                      ","Pcs",2,null,{"$f":"D40*E40","v":0}]
[null,"تقديم وتركيب ريكار4\",  20*20 سم مع غطاء ستانلس مع كل ما يلزم من حفر وتثبيت في الارضية وتوصيل الى الشبكة الصحية"]
[18,"Supply, install, test and commission drainage UPVC pipes 4 inches, PN 16bar, including all needed accessories (coupling, Tee, Elbow, seal ring, etc.). Works include connection to the existing manhole including builders works.\nOn slab installation to be protected with concrete, underceiling installation to have metallic support, vertical installation to be fixed on wall by clamps with anchors. Slope in flow direction should exceed 1cm per meter.","m",3,null,{"$f":"D42*E42","v":0}]
[null,"تقديم وتركيب مجرور بلاستك UPVC 4'PN16barمع جميع ما يلزم من اكسسوارات لتوصيله الى الريكار العام"]
[19,"Supply, install, test and commission PVC Water tank NTG 3 layer 500 liters (certified for drinking water), light grey, complete with float valve, brass valves, overflow pipe, hard PVC cover including inlet & outlet connections and all necessary fittings and accessories.","Pcs",1,null,{"$f":"D44*E44","v":0}]
[null,"تقديم وتركيب خزان مياة 3طبقات NTG سعة 500لتر لمياه الشرب لون رمادي فاتح مع طواشة وسكر وغطاء وجميع التوصيلات"]
[20,"Supply install, test and commission PPR network pipes 16mm for hot and cold water supply including all necessary fittings and accessories.تمديد شبكة مياه باردة وساخنة مع جميع الاكسسوارات اللازمة","Lm",15,null,{"$f":"D46*E46","v":0}]
["Electrical Work (اعمال كهربائية)"]
[21,"Supply and Apply Lighting, power socket or switch point including all conduiting, wiring, boxes, covers, with all necessary accessories and related works complete to engineer's approval all to be imbedded in walls including making good plaster and paint.     أعمال انارة وتتضمن تركيب مفاتيح وبرايزوعلب مع أغطية واسلاك وجميع الاكسسوارات على ان تكون جميع الاعمال مخفية داخل الجدران مع كافة اعمل الورقة والدهان اللازمة لاخفاء العيوب ","Pcs",8,null,{"$f":"D48*E48","v":0}]
[22,"Supply, Install, test and commission electrical Water heater 80L, 2mm galvanized bottle with resistance 1000w, with thermal insulation, thermostat, thermometer, with complete connections to water and power supply (with 10v circuit breaker) including all necessary fittings, supports and accessories. Proper removal of existing damaged heater (if any) to be also included.","Pcs",1,null,{"$f":"D49*E49","v":0}]
[null,"تركيب سخان 80 ليتر 2ملم 1000W معزول منظم حرارة وساعة حرارة مع جميع التوصيلات الكهربائية(ديجنتير 10 فولت) بالاضافة لتوصيل الماء"]
["Aluminum Work (اعمال المنيوم)"]
[23,"Supply and Install Aluminum door overall size 80cmx200cm with frame and all its accessories including tiling of door opening.\n   تركيب باب المنيوم مع جميع الاكسسوارات مع تبليط دائر فتحة الباب  ","pcs",1,null,{"$f":"D52*E52","v":0}]
["Painting Work (اعمال دهان)"]
[24,"Painting the ceiling and walls with two coats of paint (base and mat eggshell). Painting should be done after scraping and cleaning the surface and applying putty coats where necessary.","m2",130,null,{"$f":"E54*D54","v":0}]
[null,"دهان الجدران والاسقف وجهين (الاول أساس) بعد تنظيف وحف ووضع معجونة حيث يلزم"]
["Unforseen Works (أعمال غير منظورة)"]
[25,"Repair and support old damaged ceiling made of wood beams/planks and stuffed with soil.\nتصليح و تدعيم سقف خشب وطين قديم","m2",5,null,{"$f":"D57*E57","v":0}]
[26,"Supply and install wooden false ceiling made of 18mm wood sheet panels including all necessary fittings and accessories to engineer's approval.","m2",5,null,{"$f":"E58*D58","v":0}]
[{"$nulls":4},"Total",{"$f":"SUM(F4:F58)","v":0}]

{"sheet":"OS-36B","index":15,"n_rows":58,"n_cols":6,"rows_kept":58,"merged":[[0,0,0,2],[0,3,0,5],[2,0,2,5],[4,0,4,5],[6,0,6,5],[7,0,8,0],[7,2,8,2],[7,3,8,3],[7,4,8,4],[7,5,8,5],[9,0,10,0],[9,2,10,2],[9,3,10,3],[9,4,10,4],[9,5,10,5],[11,0,11,5],[12,0,13,0],[12,2,13,2],[12,3,13,3],[12,4,13,4],[12,5,13,5],[14,0,15,0],[14,2,15,2],[14,3,15,3],[14,4,15,4],[14,5,15,5],[16,0,17,0],[16,2,17,2],[16,3,17,3],[16,4,17,4],[16,5,17,5],[18,0,19,0],[18,2,19,2],[18,3,19,3],[18,4,19,4],[18,5,19,5],[20,0,20,5],[21,0,22,0],[21,2,22,2],[21,3,22,3],[21,4,22,4],[21,5,22,5],[23,0,23,5],[24,0,25,0],[24,2,25,2],[24,3,25,3],[24,4,25,4],[24,5,25,5],[26,0,27,0],[26,2,27,2],[26,3,27,3],[26,4,27,4],[26,5,27,5],[28,0,29,0],[28,2,29,2],[28,3,29,3],[28,4,29,4],[28,5,29,5],[30,0,31,0],[30,2,31,2],[30,3,31,3],[30,4,31,4],[30,5,31,5],[32,0,33,0],[32,2,33,2],[32,3,33,3],[32,4,33,4],[32,5,33,5],[34,0,35,0],[34,2,35,2],[34,3,35,3],[34,4,35,4],[34,5,35,5],[36,0,37,0],[36,2,37,2],[36,3,37,3],[36,4,37,4],[36,5,37,5],[38,0,39,0],[38,2,39,2],[38,3,39,3],[38,4,39,4],[38,5,39,5],[40,0,41,0],[40,2,41,2],[40,3,41,3],[40,4,41,4],[40,5,41,5],[43,0,43,5],[45,0,46,0],[45,2,46,2],[45,3,46,3],[45,4,46,4],[45,5,46,5],[47,0,47,5],[48,0,49,0],[48,2,49,2],[48,3,49,3],[48,4,49,4],[48,5,49,5],[50,0,51,0],[50,2,51,2],[50,3,51,3],[50,4,51,4],[50,5,51,5],[52,0,52,5],[53,0,54,0],[53,2,54,2],[53,3,54,3],[53,4,54,4],[53,5,54,5],[55,0,55,5]]}
["Name: Samer al Kallas",null,null,"Code: OS-36B P1+"]
["Item","Description","Unit","Quantity","U.Price","T.Price"]
["Concrete Work (اعمال باطون)"]
[1,"Reinforced concrete works (15cm thick concrete ceiling slab), including high yield steel reinforcement to Engineer's approval.\n سقف 15سم) أعمال باطون مسلح تتضمن تسليح حديد) ","m2",4,null,{"$f":"D4*E4","v":0}]
["Block Work (اعمال حجر)"]
[2,"Supply and install Hollow blocks walls 12 cm including sand-cement mortar, mesh, accessories, angle beads       تقديم وعمار حجر12 سم مع كل ما يلزم من مواد","m2",4,null,{"$f":"D6*E6","v":0}]
["Wood and other Works (اعمال خشبية وغيره)"]
[3,"Supply and install single leaf Wooden door (size 100cmx200cm) including subframe, Frame (Swedish), with complete ironmongery, Hinges, Handle and Keylock of approved quality (lock to be yale or equivalent) complete with painting by 2 coats of oil paint. All the wooden works to be initially cured and treated to resist humidity and insects.\nRepair, making good in case of damage to the surrounding walls to be included.","Pcs",2,null,{"$f":"D8*E8","v":0}]
[null,"تقديم وتركيب باب خشب قياس 100*200سم مع الاطار (سويد) مع جميع الاكسسوارات . مسكة , قفل يال أو ما يعادله مع دهان طبقتين من الدهان الزيتي ومعالجة كل الاضرار حول الباب في حال حصولها اثناء التركيب"]
[4,"Supply and install Wooden window including Shutters, Frame, glass panes, with complete ironmongery, Hinges, Handles  of approved quality complete with painting by 2 coats of oil paint. All the wooden works to be initially cured and treated to resist humidity and insects.\nRepair, making good in case of damage to the surrounding walls to be included. Window tile sills also to be included","m2",4,null,{"$f":"D10*E10","v":0}]
[null,"تقديم وتركيب شبّاك خشب مع الاطار مع جميع الاكسسوارات . مسكة  مع دهان طبقتين من الدهان الزيتي ومعالجة كل الاضرار حول الباب في حال حصولها اثناء التركيب"]
["Metal Work (اعمال حديدية)"]
[5,"Supply and install single panel half glazed external steel door, dimensions adjusted to existing opening (around 100cmx220cm), thickness 3mm, complete with frame, ironmongery, hardware, obscure glass with wire mesh, handle cylinder  lock, provided with anti corrosion painting  by brush two coats.\nRepair, making good in case of damage to the surrounding walls to be included.","pcs",1,null,{"$f":"D13*E13","v":0}]
[null,"تقديم وتركيب بوابة حديد حسب القياس سماكة 3ملم ,مع زجاج محجر ومشرط في القسم العلوي مع مسكة وقفل ودهان طبقتين بمواد مقاومة للصدأ ومعالجة كل الاضرار حول الباب في حال حصولها اثناء التركيب"]
[6,"Supply and install steel window, dimensions adjusted to existing opening, complete with frame, ironmongery, hardware, obscure glass with wire mesh, handle, provided with anti corrosion painting by brush two coats.","m2",2,null,{"$f":"D15*E15","v":0}]
[null,"تقديم وتركيب شباك حديد حسب القياس ,مع زجاج محجر ومشرط مع مسكة  ودهان طبقتين بمواد مقاومة للصدأ "]
[7,"Supply and install structural steel I/H beams (14cm*7cm) to support concrete ceiling slabs including all necessary fittings and accessories  needed to properly complete the works to the engineer's approval.","lm",12,null,{"$f":"D17*E17","v":0}]
[null,"تقديم وتركيب جسر حديد (14cm*7cm) لتدعيم أسقف الباطون المسلّح"]
[8,"Supply and install steel handrail fixed to the walls of stairs (1.5\" diameter solid pipe),includind all fittings and bolts ,painting epoxy ,2 faces oil painting .","lm",4,null,{"$f":"D19*E19","v":0}]
[null,"تقديم وتركيب درابزين حديد (1.5\"انش قطر) مثبت على جدران الدرج  مع كل ما يلزم من براغي و توصيلات على الفواصل وطلاء ايبوكسي مع وجهين من الدهان الزيتي  "]
["Plastering Work (اعمال ورقة)"]
[9,"Supply and apply Internal plastering works to ceiling and walls (Saint Etienne - Traditional) 15 to 20mm thick including steel mesh and corner/opening stops and accessories, curing, scaffolding, spraying when needed, filling of existing cavities, smoothing and any other application needed for the proper completion of the works.","m2",20,null,{"$f":"D22*E22","v":0}]
[null,"أعمال ورقة داخلية على الجدران 15-20ملم مع شبك معدني حسب توجيهات المهندس "]
["Sanitary Work (اعمال صحية)"]
[10,"Supply install, test and commission European WC seat Lecico (Saidon type) or equivalent complete with flushing cistern, plastic cover, water and sewer connections, with all necessary fittings and accessories. Adjacent walls and floors to be reinstated to their original condition in case of any damages. ","Pcs",2,null,{"$f":"D25*E25","v":0}]
[null,"تقديم وتركيب كرسي حمام أوروبي (صيدون أو ما يعادلها )مع جميع التوصيلات من قساطل PPR و4\"UPVC مع كل الاكسسوارات اللازمة من غطاء بلاستيك "]
[11,"Supply install, test and commission flushing hose pipe set 1/2\" internal diameter for WC, with rubber hose and chrome angle valve with all its connections and necessary fittings and accessories.","Pcs",2,null,{"$f":"D27*E27","v":0}]
[null,"تقديم وتركيب نربيش صحي (شطافة) مع جميع التوصيلات والاكسسوارات"]
[12,"Supply and Installation of wash basin mixer with all its connections.","Pcs",2,null,{"$f":"D29*E29","v":0}]
[null,"تقديم وتركيب خلاط مغسلة مع كل التوصيلات"]
[13,"Supply and Intallation of sink mixer of approved quality with all its connections.","Pcs",1,null,{"$f":"D31*E31","v":0}]
[null,"تقديم وتركيب خلاط مجلى مع كل التوصيلات"]
[14,"Supply and install Shower mixer medium quality with telephone shower.                  ","Pcs",1,null,{"$f":"D33*E33","v":0}]
[null,"تقديم وتركيب خلاط دوش مع كل التوصيلات والاكسسوارات "]
[15,"Supply, install, test and commission Wash bassin Lecico make or equivalent with all its connections to water supply and drainage connection to the sewage network with all necessary fittings and accessories (including steel support, chrome outlet, porcelain shelf, etc.). Adjacent walls and floors to be reinstated to their original condition in case of any damages.","Pcs",2,null,{"$f":"D35*E35","v":0}]
[null,"تقديم وتركيب مغسلة ليسيكو أو ما يعادلها مع كل التوصيلات المائية والصحية بالاضافة لرف بورسلان وخلاط"]
[16,"Supply, install, test and commission stainless steel kitchen sink (over all size 50cmx100cm) with all its connections to water supply and drainage connection to the sewage network with all necessary fittings and accessories (including steel support, etc.). Adjacent walls and floors to be reinstated to their original condition in case of any damages.","pcs",1,null,{"$f":"D37*E37","v":0}]
[null,"تقديم وتركيب مجلى ستانلس ستيل مع كل التوصيلات المائية والصحية وخلاط مع قاعدة حديد"]
[17,"Supply, install, test and commission trapped gully 4 inches including handhole 20x20cm with stainless steel cover including builders works such as drilling in concrete, fixing in slab by using high compressive mortar, levelling and connecting to the drain network.                                      ","Pcs",3,null,{"$f":"D39*E39","v":0}]
[null,"تقديم وتركيب ريكار4\",  20*20 سم مع غطاء ستانلس مع كل ما يلزم من حفر وتثبيت في الارضية وتوصيل الى الشبكة الصحية"]
[18,"Supply, install, test and commission drainage UPVC pipes 4 inches, PN 16bar, including all needed accessories (coupling, Tee, Elbow, seal ring, etc.). Works include connection to the existing manhole including builders works.\nOn slab installation to be protected with concrete, underceiling installation to have metallic support, vertical installation to be fixed on wall by clamps with anchors. Slope in flow direction should exceed 1cm per meter.","m",4,null,{"$f":"D41*E41","v":0}]
[null,"تقديم وتركيب مجرور بلاستك UPVC 4'PN16barمع جميع ما يلزم من اكسسوارات لتوصيله الى الريكار العام"]
[19,"Supply install, test and commission PPR network pipes 16mm for hot and cold water supply including all necessary fittings and accessories.تمديد شبكة مياه باردة وساخنة مع جميع الاكسسوارات اللازمة","Lm",6,null,{"$f":"D43*E43","v":0}]
["Electrical Work (اعمال كهربائية)"]
[20,"Supply and Apply Lighting, power socket or switch point including all conduiting, wiring, boxes, covers, with all necessary accessories and related works complete to engineer's approval all to be imbedded in walls including making good plaster and paint.     أعمال انارة وتتضمن تركيب مفاتيح وبرايزوعلب مع أغطية واسلاك وجميع الاكسسوارات على ان تكون جميع الاعمال مخفية داخل الجدران مع كافة اعمل الورقة والدهان اللازمة لاخفاء العيوب ","Pcs",10,null,{"$f":"D45*E45","v":0}]
[21,"Supply, Install, test and commission electrical Water heater 80L, 2mm galvanized bottle with resistance 1000w, with thermal insulation, thermostat, thermometer, with complete connections to water and power supply (with 10v circuit breaker) including all necessary fittings, supports and accessories. Proper removal of existing damaged heater (if any) to be also included.","Pcs",1,null,{"$f":"D46*E46","v":0}]
[null,"تركيب سخان 80 ليتر 2ملم 1000W معزول منظم حرارة وساعة حرارة مع جميع التوصيلات الكهربائية(ديجنتير 10 فولت) بالاضافة لتوصيل الماء"]
["Aluminum Work (اعمال المنيوم)"]
[22,"Supply and Install Accordeon hard plastic Door, overall size 80cmx200cm, complete with all material and accessories needed and making good around the frame.","pcs",2,null,{"$f":"D49*E49","v":0}]
[null,"تقديم ويركيب باب أكورديم 80*200سم مع كافة الاكسسوارات"]
[23,"Supply and Install Aluminum single glazed window with glass, (Sidem 2000) with frame, and all accessories needed for installation and proper use (Folda 1.6mm) including window tile sills.","m2",3,null,{"$f":"D51*E51","v":0}]
[null,"تركيب شباك المنيوم سيدم 2000 (1.6ملم) مع زجاج مفرد مع شعائر بلاط حول دائر الشباك"]
["Painting Work (اعمال دهان)"]
[24,"Painting the ceiling and walls with two coats of paint (base and mat eggshell). Painting should be done after scraping and cleaning the surface and applying putty coats where necessary.","m2",100,null,{"$f":"E54*D54","v":0}]
[null,"دهان الجدران والاسقف وجهين (الاول أساس) بعد تنظيف وحف ووضع معجونة حيث يلزم"]
["Unforseen Works (أعمال غير منظورة)"]
[25,"Supply and install wooden false ceiling made of 18mm wood sheet panels including removal of old false ceiling and including all necessary fittings and accessories to engineer's approval.","m2",18,null,{"$f":"E57*D57","v":0}]
[{"$nulls":4},"Total",{"$f":"SUM(F4:F57)","v":0}]

{"sheet":"OS-39B","index":16,"n_rows":55,"n_cols":6,"rows_kept":55,"merged":[[0,0,0,2],[0,3,0,5],[2,0,2,5],[4,0,4,5],[5,0,6,0],[5,2,6,2],[5,3,6,3],[5,4,6,4],[5,5,6,5],[7,0,7,5],[8,0,9,0],[8,2,9,2],[8,3,9,3],[8,4,9,4],[8,5,9,5],[10,0,11,0],[10,2,11,2],[10,3,11,3],[10,4,11,4],[10,5,11,5],[12,0,13,0],[12,2,13,2],[12,3,13,3],[12,4,13,4],[12,5,13,5],[14,0,14,5],[15,0,16,0],[15,2,16,2],[15,3,16,3],[15,4,16,4],[15,5,16,5],[17,0,18,0],[17,2,18,2],[17,3,18,3],[17,4,18,4],[17,5,18,5],[19,0,19,5],[20,0,21,0],[20,2,21,2],[20,3,21,3],[20,4,21,4],[20,5,21,5],[22,0,22,5],[23,0,24,0],[23,2,24,2],[23,3,24,3],[23,4,24,4],[23,5,24,5],[25,0,25,5],[26,0,27,0],[26,2,27,2],[26,3,27,3],[26,4,27,4],[26,5,27,5],[28,0,29,0],[28,2,29,2],[28,3,29,3],[28,4,29,4],[28,5,29,5],[30,0,31,0],[30,2,31,2],[30,3,31,3],[30,4,31,4],[30,5,31,5],[32,0,33,0],[32,2,33,2],[32,3,33,3],[32,4,33,4],[32,5,33,5],[34,0,35,0],[34,2,35,2],[34,3,35,3],[34,4,35,4],[34,5,35,5],[36,0,37,0],[36,2,37,2],[36,3,37,3],[36,4,37,4],[36,5,37,5],[38,0,39,0],[38,2,39,2],[38,3,39,3],[38,4,39,4],[38,5,39,5],[40,0,41,0],[40,2,41,2],[40,3,41,3],[40,4,41,4],[40,5,41,5],[42,0,43,0],[42,2,43,2],[42,3,43,3],[42,4,43,4],[42,5,43,5],[45,0,45,5],[47,0,47,5],[48,0,49,0],[48,2,49,2],[48,3,49,3],[48,4,49,4],[48,5,49,5],[51,0,51,5],[52,0,53,0],[52,2,53,2],[52,3,53,3],[52,4,53,4],[52,5,53,5]]}
["Name: Samih Ali Zaghloul",null,null,"Code: OS-39B P1+"]
["Item","Description","Unit","Quantity","U.Price","T.Price"]
["Concrete Work (اعمال باطون)"]
[1,"Repair of ceiling concrete surfaces including treatment of rusted steel, removal of damaged concrete, treatment of concrete surface and making good as necessary (grout, plaster, etc.) and to the Engineer's approval.\nأعمال تصليح أسقف باطون مع معالجة الحديد و ازالة البطون (العاطل ومعالجة الأسقف بالمواد المناسبة (غراوت, باطون, الخ حسب توجيهات المهندس ","m2",10,null,{"$f":"E4*D4","v":0}]
["Waterproofing Work (اعمال منع النشّ)"]
[2,"Supply, apply and test roof waterproofing using PU material, the works including but not limited to cleaning, surface preparation works, drying, filling cavities with mortar, applying primer, angle fillets, plaster works for parapets and any other materials needed prior to the proper application of 3 layers of PU according to the manufacturer's data sheet and method statement and to the Engineer's approval.","m2",30,null,{"$f":"D6*E6","v":0}]
[null,"تقديم ودهان مواد عازلة PU على الاسطح بعد تنظيفها وتهيئة السطح لاعمال العزل واعمال ورقة حسب توجيهات المهندس"]
["Wood and other Works (اعمال خشبية وغيره)"]
[3,"Supply and install single leaf Wooden door (size 100cmx200cm) including subframe, Frame (Swedish), with complete ironmongery, Hinges, Handle and Keylock of approved quality (lock to be yale or equivalent) complete with painting by 2 coats of oil paint. All the wooden works to be initially cured and treated to resist humidity and insects.\nRepair, making good in case of damage to the surrounding walls to be included.","Pcs",1,null,{"$f":"D9*E9","v":0}]
[null,"تقديم وتركيب باب خشب قياس 100*200سم مع الاطار (سويد) مع جميع الاكسسوارات . مسكة , قفل يال أو ما يعادله مع دهان طبقتين من الدهان الزيتي ومعالجة كل الاضرار حول الباب في حال حصولها اثناء التركيب"]
[4,"Supply and install Wooden window including Shutters, Frame, glass panes, with complete ironmongery, Hinges, Handles  of approved quality complete with painting by 2 coats of oil paint. All the wooden works to be initially cured and treated to resist humidity and insects.\nRepair, making good in case of damage to the surrounding walls to be included. Window tile sills also to be included","m2",3.5,null,{"$f":"D11*E11","v":0}]
[null,"تقديم وتركيب شبّاك خشب مع الاطار مع جميع الاكسسوارات . مسكة  مع دهان طبقتين من الدهان الزيتي ومعالجة كل الاضرار حول الباب في حال حصولها اثناء التركيب"]
[5,"Supply and Install Wooden partition with plywood 18mm. 1 sheet of black plywood 18mm, dimension equal to 244cmx122cm . Plywood sheets will be fixed vertically or horizontally between Wooden columns/beams of dimensions 400x8x8cm.","m2",10,null,{"$f":"D13*E13","v":0}]
[null,"تقديم وتركيب فواصل خشبيّة"]
["Metal Work (اعمال حديدية)"]
[6,"Supply and install single panel half glazed external steel door, dimensions adjusted to existing opening (around 100cmx220cm), thickness 3mm, complete with frame, ironmongery, hardware, obscure glass with wire mesh, handle cylinder  lock, provided with anti corrosion painting  by brush two coats.\nRepair, making good in case of damage to the surrounding walls to be included.","pcs",1,null,{"$f":"D16*E16","v":0}]
[null,"تقديم وتركيب بوابة حديد حسب القياس سماكة 3ملم ,مع زجاج محجر ومشرط في القسم العلوي مع مسكة وقفل ودهان طبقتين بمواد مقاومة للصدأ ومعالجة كل الاضرار حول الباب في حال حصولها اثناء التركيب"]
[7,"Supply and install structural steel I/H beams (14cm*7cm) to support concrete ceiling slabs including all necessary fittings and accessories  needed to properly complete the works to the engineer's approval.","lm",18,null,{"$f":"D18*E18","v":0}]
[null,"تقديم وتركيب جسر حديد (14cm*7cm) لتدعيم أسقف الباطون المسلّح"]
["Tiling Work (اعمال بلاط)"]
[8,"Supply and Apply Ceramic tiles to floors and walls, including surface preparation, backing mortar/adhesive, grouting between tiles and any other application or materials needed to properly complete the works to the engineer's approval.","m2",25,null,{"$f":"D21*E21","v":0}]
[null,"تقديم وتركيب بلاط سيراميك في الحمامات فقط,بعد تهيئة الارضية وحسب تعليمات المهندس"]
["Plastering Work (اعمال ورقة)"]
[9,"Supply and apply Internal plastering works to ceiling and walls (Saint Etienne - Traditional) 15 to 20mm thick including steel mesh and corner/opening stops and accessories, curing, scaffolding, spraying when needed, filling of existing cavities, smoothing and any other application needed for the proper completion of the works.","m2",40,null,{"$f":"D24*E24","v":0}]
[null,"أعمال ورقة داخلية على الجدران 15-20ملم مع شبك معدني حسب توجيهات المهندس "]
["Sanitary Work (اعمال صحية)"]
[10,"Supply install, test and commission European WC seat Lecico (Saidon type) or equivalent complete with flushing cistern, plastic cover, water and sewer connections, with all necessary fittings and accessories. Adjacent walls and floors to be reinstated to their original condition in case of any damages. ","Pcs",2,null,{"$f":"D27*E27","v":0}]
[null,"تقديم وتركيب كرسي حمام أوروبي (صيدون أو ما يعادلها )مع جميع التوصيلات من قساطل PPR و4\"UPVC مع كل الاكسسوارات اللازمة من غطاء بلاستيك "]
[11,"Supply install, test and commission flushing hose pipe set 1/2\" internal diameter for WC, with rubber hose and chrome angle valve with all its connections and necessary fittings and accessories.","Pcs",1,null,{"$f":"D29*E29","v":0}]
[null,"تقديم وتركيب نربيش صحي (شطافة) مع جميع التوصيلات والاكسسوارات"]
[12,"Supply and Installation of wash basin mixer with all its connections.","Pcs",1,null,{"$f":"D31*E31","v":0}]
[null,"تقديم وتركيب خلاط مغسلة مع كل التوصيلات"]
[13,"Supply and Intallation of sink mixer of approved quality with all its connections.","Pcs",2,null,{"$f":"D33*E33","v":0}]
[null,"تقديم وتركيب خلاط مجلى مع كل التوصيلات"]
[14,"Supply and install Shower mixer medium quality with telephone shower.                  ","Pcs",1,null,{"$f":"D35*E35","v":0}]
[null,"تقديم وتركيب خلاط دوش مع كل التوصيلات والاكسسوارات "]
[15,"Supply, install, test and commission Wash bassin Lecico make or equivalent with all its connections to water supply and drainage connection to the sewage network with all necessary fittings and accessories (including steel support, chrome outlet, porcelain shelf, etc.). Adjacent walls and floors to be reinstated to their original condition in case of any damages.","Pcs",1,null,{"$f":"D37*E37","v":0}]
[null,"تقديم وتركيب مغسلة ليسيكو أو ما يعادلها مع كل التوصيلات المائية والصحية بالاضافة لرف بورسلان وخلاط"]
[16,"Supply, install, test and commission stainless steel kitchen sink (over all size 50cmx100cm) with all its connections to water supply and drainage connection to the sewage network with all necessary fittings and accessories (including steel support, etc.). Adjacent walls and floors to be reinstated to their original condition in case of any damages.","pcs",2,null,{"$f":"D39*E39","v":0}]
[null,"تقديم وتركيب مجلى ستانلس ستيل مع كل التوصيلات المائية والصحية وخلاط مع قاعدة حديد"]
[17,"Supply, install, test and commission trapped gully 4 inches including handhole 20x20cm with stainless steel cover including builders works such as drilling in concrete, fixing in slab by using high compressive mortar, levelling and connecting to the drain network.                                      ","Pcs",3,null,{"$f":"D41*E41","v":0}]
[null,"تقديم وتركيب ريكار4\",  20*20 سم مع غطاء ستانلس مع كل ما يلزم من حفر وتثبيت في الارضية وتوصيل الى الشبكة الصحية"]
[18,"Supply, install, test and commission drainage UPVC pipes 4 inches, PN 16bar, including all needed accessories (coupling, Tee, Elbow, seal ring, etc.). Works include connection to the existing manhole including builders works.\nOn slab installation to be protected with concrete, underceiling installation to have metallic support, vertical installation to be fixed on wall by clamps with anchors. Slope in flow direction should exceed 1cm per meter.","m",4,null,{"$f":"D43*E43","v":0}]
[null,"تقديم وتركيب مجرور بلاستك UPVC 4'PN16barمع جميع ما يلزم من اكسسوارات لتوصيله الى الريكار العام"]
[19,"Supply install, test and commission PPR network pipes 16mm for hot and cold water supply including all necessary fittings and accessories.تمديد شبكة مياه باردة وساخنة مع جميع الاكسسوارات اللازمة","Lm",10,null,{"$f":"D45*E45","v":0}]
["Electrical Work (اعمال كهربائية)"]
[20,"Supply and Apply Lighting, power socket or switch point including all conduiting, wiring, boxes, covers, with all necessary accessories and related works complete to engineer's approval all to be imbedded in walls including making good plaster and paint.     أعمال انارة وتتضمن تركيب مفاتيح وبرايزوعلب مع أغطية واسلاك وجميع الاكسسوارات على ان تكون جميع الاعمال مخفية داخل الجدران مع كافة اعمل الورقة والدهان اللازمة لاخفاء العيوب ","Pcs",8,null,{"$f":"D47*E47","v":0}]
["Aluminum Work (اعمال المنيوم)"]
[21,"Supply and Install Accordeon hard plastic Door, overall size 80cmx200cm, complete with all material and accessories needed and making good around the frame.","pcs",1,null,{"$f":"D49*E49","v":0}]
[null,"تقديم ويركيب باب أكورديم 80*200سم مع كافة الاكسسوارات"]
[22,"Supply and Install Aluminum door overall size 80cmx200cm with frame and all its accessories including tiling of door opening.\n   تركيب باب المنيوم مع جميع الاكسسوارات مع تبليط دائر فتحة الباب  ","pcs",1,null,{"$f":"D51*E51","v":0}]
["Painting Work (اعمال دهان)"]
[23,"Painting the ceiling and walls with two coats of paint (base and mat eggshell). Painting should be done after scraping and cleaning the surface and applying putty coats where necessary.","m2",60,null,{"$f":"E53*D53","v":0}]
[null,"دهان الجدران والاسقف وجهين (الاول أساس) بعد تنظيف وحف ووضع معجونة حيث يلزم"]
[{"$nulls":4},"Total",{"$f":"SUM(F4:F54)","v":0}]

{"sheet":"OS-40B","index":17,"n_rows":26,"n_cols":6,"rows_kept":26,"merged":[[0,0,0,2],[0,3,0,5],[2,0,2,5],[3,0,4,0],[3,2,4,2],[3,3,4,3],[3,4,4,4],[3,5,4,5],[5,0,5,5],[6,0,7,0],[6,2,7,2],[6,3,7,3],[6,4,7,4],[6,5,7,5],[8,0,8,5],[9,0,10,0],[9,2,10,2],[9,3,10,3],[9,4,10,4],[9,5,10,5],[11,0,12,0],[11,2,12,2],[11,3,12,3],[11,4,12,4],[11,5,12,5],[13,0,14,0],[13,2,14,2],[13,3,14,3],[13,4,14,4],[13,5,14,5],[15,0,16,0],[15,2,16,2],[15,3,16,3],[15,4,16,4],[15,5,16,5],[17,0,18,0],[17,2,18,2],[17,3,18,3],[17,4,18,4],[17,5,18,5],[19,0,20,0],[19,2,20,2],[19,3,20,3],[19,4,20,4],[19,5,20,5],[22,0,22,5],[23,0,24,0],[23,2,24,2],[23,3,24,3],[23,4,24,4],[23,5,24,5]]}
["Name: Fatima Redwan ",null,null,"Code: OS-40B P1+"]
["Item","Description","Unit","Quantity","U.Price","T.Price"]
["Metal Work (اعمال حديدية)"]
[1,"Supply and install structural steel I/H beams (14cm*7cm) to support concrete ceiling slabs including all necessary fittings and accessories  needed to properly complete the works to the engineer's approval.","lm",20,null,{"$f":"D4*E4","v":0}]
[null,"تقديم وتركيب جسر حديد (14cm*7cm) لتدعيم أسقف الباطون المسلّح"]
["Plastering Work (اعمال ورقة)"]
[2,"Supply and apply Internal plastering works to ceiling and walls (Saint Etienne - Traditional) 15 to 20mm thick including steel mesh and corner/opening stops and accessories, curing, scaffolding, spraying when needed, filling of existing cavities, smoothing and any other application needed for the proper completion of the works.","m2",120,null,{"$f":"D7*E7","v":0}]
[null,"أعمال ورقة داخلية على الجدران 15-20ملم مع شبك معدني حسب توجيهات المهندس "]
["Sanitary Work (اعمال صحية)"]
[3,"Supply install, test and commission European WC seat Lecico (Saidon type) or equivalent complete with flushing cistern, plastic cover, water and sewer connections, with all necessary fittings and accessories. Adjacent walls and floors to be reinstated to their original condition in case of any damages. ","Pcs",1,null,{"$f":"D10*E10","v":0}]
[null,"تقديم وتركيب كرسي حمام أوروبي (صيدون أو ما يعادلها )مع جميع التوصيلات من قساطل PPR و4\"UPVC مع كل الاكسسوارات اللازمة من غطاء بلاستيك "]
[4,"Supply install, test and commission toilet tap with all its connections and necessary fittings and accessories.","Pcs",1,null,{"$f":"D12*E12","v":0}]
[null,"تركيب حنفية مع جميع الاكسسوارات"]
[5,"Supply install, test and commission flushing hose pipe set 1/2\" internal diameter for WC, with rubber hose and chrome angle valve with all its connections and necessary fittings and accessories.","Pcs",1,null,{"$f":"D14*E14","v":0}]
[null,"تقديم وتركيب نربيش صحي (شطافة) مع جميع التوصيلات والاكسسوارات"]
[6,"Supply and Installation of wash basin mixer with all its connections.","Pcs",1,null,{"$f":"D16*E16","v":0}]
[null,"تقديم وتركيب خلاط مغسلة مع كل التوصيلات"]
[7,"Supply and Intallation of sink mixer of approved quality with all its connections.","Pcs",1,null,{"$f":"D18*E18","v":0}]
[null,"تقديم وتركيب خلاط مجلى مع كل التوصيلات"]
[8,"Supply, install, test and commission Wash bassin Lecico make or equivalent with all its connections to water supply and drainage connection to the sewage network with all necessary fittings and accessories (including steel support, chrome outlet, porcelain shelf, etc.). Adjacent walls and floors to be reinstated to their original condition in case of any damages.","Pcs",1,null,{"$f":"D20*E20","v":0}]
[null,"تقديم وتركيب مغسلة ليسيكو أو ما يعادلها مع كل التوصيلات المائية والصحية بالاضافة لرف بورسلان وخلاط"]
[9,"Supply install, test and commission PPR network pipes 16mm for hot and cold water supply including all necessary fittings and accessories.تمديد شبكة مياه باردة وساخنة مع جميع الاكسسوارات اللازمة","Lm",12,null,{"$f":"D22*E22","v":0}]
["Painting Work (اعمال دهان)"]
[10,"Painting the ceiling and walls with two coats of paint (base and mat eggshell). Painting should be done after scraping and cleaning the surface and applying putty coats where necessary.","m2",150,null,{"$f":"E24*D24","v":0}]
[null,"دهان الجدران والاسقف وجهين (الاول أساس) بعد تنظيف وحف ووضع معجونة حيث يلزم"]
[{"$nulls":4},"Total",{"$f":"SUM(F4:F25)","v":0}]

{"sheet":"OS-43B","index":18,"n_rows":53,"n_cols":6,"rows_kept":53,"merged":[[0,0,0,2],[0,3,0,5],[2,0,2,5],[3,0,4,0],[3,2,4,2],[3,3,4,3],[3,4,4,4],[3,5,4,5],[5,0,6,0],[5,2,6,2],[5,3,6,3],[5,4,6,4],[5,5,6,5],[7,0,8,0],[7,2,8,2],[7,3,8,3],[7,4,8,4],[7,5,8,5],[9,0,9,5],[10,0,11,0],[10,2,11,2],[10,3,11,3],[10,4,11,4],[10,5,11,5],[12,0,12,5],[13,0,14,0],[13,2,14,2],[13,3,14,3],[13,4,14,4],[13,5,14,5],[15,0,15,5],[16,0,17,0],[16,2,17,2],[16,3,17,3],[16,4,17,4],[16,5,17,5],[18,0,19,0],[18,2,19,2],[18,3,19,3],[18,4,19,4],[18,5,19,5],[20,0,20,5],[21,0,22,0],[21,2,22,2],[21,3,22,3],[21,4,22,4],[21,5,22,5],[23,0,24,0],[23,2,24,2],[23,3,24,3],[23,4,24,4],[23,5,24,5],[25,0,26,0],[25,2,26,2],[25,3,26,3],[25,4,26,4],[25,5,26,5],[27,0,28,0],[27,2,28,2],[27,3,28,3],[27,4,28,4],[27,5,28,5],[29,0,30,0],[29,2,30,2],[29,3,30,3],[29,4,30,4],[29,5,30,5],[31,0,32,0],[31,2,32,2],[31,3,32,3],[31,4,32,4],[31,5,32,5],[33,0,34,0],[33,2,34,2],[33,3,34,3],[33,4,34,4],[33,5,34,5],[35,0,36,0],[35,2,36,2],[35,3,36,3],[35,4,36,4],[35,5,36,5],[37,0,38,0],[37,2,38,2],[37,3,38,3],[37,4,38,4],[37,5,38,5],[39,0,40,0],[39,2,40,2],[39,3,40,3],[39,4,40,4],[39,5,40,5],[42,0,42,5],[44,0,45,0],[44,2,45,2],[44,3,45,3],[44,4,45,4],[44,5,45,5],[46,0,46,5],[49,0,49,5],[50,0,51,0],[50,2,51,2],[50,3,51,3],[50,4,51,4],[50,5,51,5]]}
["Name: Mohamad Fanas",null,null,"Code: OS-43B P1+"]
["Item","Description","Unit","Quantity","U.Price","T.Price"]
["Wood and other Works (اعمال خشبية وغيره)"]
[1,"Supply and install single leaf Wooden door (size 100cmx200cm) including subframe, Frame (Swedish), with complete ironmongery, Hinges, Handle and Keylock of approved quality (lock to be yale or equivalent) complete with painting by 2 coats of oil paint. All the wooden works to be initially cured and treated to resist humidity and insects.\nRepair, making good in case of damage to the surrounding walls to be included.","Pcs",1,null,{"$f":"D4*E4","v":0}]
[null,"تقديم وتركيب باب خشب قياس 100*200سم مع الاطار (سويد) مع جميع الاكسسوارات . مسكة , قفل يال أو ما يعادله مع دهان طبقتين من الدهان الزيتي ومعالجة كل الاضرار حول الباب في حال حصولها اثناء التركيب"]
[2,"Supply and install Wooden window including Shutters, Frame, glass panes, with complete ironmongery, Hinges, Handles  of approved quality complete with painting by 2 coats of oil paint. All the wooden works to be initially cured and treated to resist humidity and insects.\nRepair, making good in case of damage to the surrounding walls to be included. Window tile sills also to be included","m2",2,null,{"$f":"D6*E6","v":0}]
[null,"تقديم وتركيب شبّاك خشب مع الاطار مع جميع الاكسسوارات . مسكة  مع دهان طبقتين من الدهان الزيتي ومعالجة كل الاضرار حول الباب في حال حصولها اثناء التركيب"]
[3,"Supply and Install Wooden partition with plywood 18mm. 1 sheet of black plywood 18mm, dimension equal to 244cmx122cm . Plywood sheets will be fixed vertically or horizontally between Wooden columns/beams of dimensions 400x8x8cm.","m2",10,null,{"$f":"D8*E8","v":0}]
[null,"تقديم وتركيب فواصل خشبيّة"]
["Metal Work (اعمال حديدية)"]
[4,"Supply and install single panel half glazed external steel door, dimensions adjusted to existing opening (around 100cmx220cm), thickness 3mm, complete with frame, ironmongery, hardware, obscure glass with wire mesh, handle cylinder  lock, provided with anti corrosion painting  by brush two coats.\nRepair, making good in case of damage to the surrounding walls to be included.","pcs",1,null,{"$f":"D11*E11","v":0}]
[null,"تقديم وتركيب بوابة حديد حسب القياس سماكة 3ملم ,مع زجاج محجر ومشرط في القسم العلوي مع مسكة وقفل ودهان طبقتين بمواد مقاومة للصدأ ومعالجة كل الاضرار حول الباب في حال حصولها اثناء التركيب"]
["Tiling Work (اعمال بلاط)"]
[5,"Supply and Apply Ceramic tiles to floors and walls, including surface preparation, backing mortar/adhesive, grouting between tiles and any other application or materials needed to properly complete the works to the engineer's approval.","m2",30,null,{"$f":"D14*E14","v":0}]
[null,"تقديم وتركيب بلاط سيراميك في الحمامات فقط,بعد تهيئة الارضية وحسب تعليمات المهندس"]
["Plastering Work (اعمال ورقة)"]
[6,"Supply and apply Internal plastering works to ceiling and walls (Saint Etienne - Traditional) 15 to 20mm thick including steel mesh and corner/opening stops and accessories, curing, scaffolding, spraying when needed, filling of existing cavities, smoothing and any other application needed for the proper completion of the works.","m2",100,null,{"$f":"D17*E17","v":0}]
[null,"أعمال ورقة داخلية على الجدران 15-20ملم مع شبك معدني حسب توجيهات المهندس "]
[7,"Supply and Apply External plastering works to walls 15 to 20mm thick including steel mesh and corner/opening stops and accessories, curing, scaffolding, spraying when needed, filling of existing cavities, smoothing and any other application needed for the proper completion of the works.","m2",70,null,{"$f":"D19*E19","v":0}]
[null,"أعمال ورقة خارجية على الجدران 15-20ملم مع شبك معدني حسب توجيهات المهندس "]
["Sanitary Work (اعمال صحية)"]
[8,"Supply install, test and commission European WC seat Lecico (Saidon type) or equivalent complete with flushing cistern, plastic cover, water and sewer connections, with all necessary fittings and accessories. Adjacent walls and floors to be reinstated to their original condition in case of any damages. ","Pcs",1,null,{"$f":"D22*E22","v":0}]
[null,"تقديم وتركيب كرسي حمام أوروبي (صيدون أو ما يعادلها )مع جميع التوصيلات من قساطل PPR و4\"UPVC مع كل الاكسسوارات اللازمة من غطاء بلاستيك "]
[9,"Supply install, test and commission flushing hose pipe set 1/2\" internal diameter for WC, with rubber hose and chrome angle valve with all its connections and necessary fittings and accessories.","Pcs",1,null,{"$f":"D24*E24","v":0}]
[null,"تقديم وتركيب نربيش صحي (شطافة) مع جميع التوصيلات والاكسسوارات"]
[10,"Supply and Installation of wash basin mixer with all its connections.","Pcs",1,null,{"$f":"D26*E26","v":0}]
[null,"تقديم وتركيب خلاط مغسلة مع كل التوصيلات"]
[11,"Supply and Intallation of sink mixer of approved quality with all its connections.","Pcs",1,null,{"$f":"D28*E28","v":0}]
[null,"تقديم وتركيب خلاط مجلى مع كل التوصيلات"]
[12,"Supply and install Shower mixer medium quality with telephone shower.                  ","Pcs",1,null,{"$f":"D30*E30","v":0}]
[null,"تقديم وتركيب خلاط دوش مع كل التوصيلات والاكسسوارات "]
[13,"Supply, install, test and commission Wash bassin Lecico make or equivalent with all its connections to water supply and drainage connection to the sewage network with all necessary fittings and accessories (including steel support, chrome outlet, porcelain shelf, etc.). Adjacent walls and floors to be reinstated to their original condition in case of any damages.","Pcs",1,null,{"$f":"D32*E32","v":0}]
[null,"تقديم وتركيب مغسلة ليسيكو أو ما يعادلها مع كل التوصيلات المائية والصحية بالاضافة لرف بورسلان وخلاط"]
[14,"Supply, install, test and commission stainless steel kitchen sink (over all size 50cmx100cm) with all its connections to water supply and drainage connection to the sewage network with all necessary fittings and accessories (including steel support, etc.). Adjacent walls and floors to be reinstated to their original condition in case of any damages.","pcs",1,null,{"$f":"D34*E34","v":0}]
[null,"تقديم وتركيب مجلى ستانلس ستيل مع كل التوصيلات المائية والصحية وخلاط مع قاعدة حديد"]
[15,"Supply, install, test and commission trapped gully 4 inches including handhole 20x20cm with stainless steel cover including builders works such as drilling in concrete, fixing in slab by using high compressive mortar, levelling and connecting to the drain network.                                      ","Pcs",3,null,{"$f":"D36*E36","v":0}]
[null,"تقديم وتركيب ريكار4\",  20*20 سم مع غطاء ستانلس مع كل ما يلزم من حفر وتثبيت في الارضية وتوصيل الى الشبكة الصحية"]
[16,"Supply, install, test and commission drainage UPVC pipes 4 inches, PN 16bar, including all needed accessories (coupling, Tee, Elbow, seal ring, etc.). Works include connection to the existing manhole including builders works.\nOn slab installation to be protected with concrete, underceiling installation to have metallic support, vertical installation to be fixed on wall by clamps with anchors. Slope in flow direction should exceed 1cm per meter.","m",4,null,{"$f":"D38*E38","v":0}]
[null,"تقديم وتركيب مجرور بلاستك UPVC 4'PN16barمع جميع ما يلزم من اكسسوارات لتوصيله الى الريكار العام"]
[17,"Supply, install, test and commission PVC Water tank NTG 3 layer 500 liters (certified for drinking water), light grey, complete with float valve, brass valves, overflow pipe, hard PVC cover including inlet & outlet connections and all necessary fittings and accessories.","Pcs",1,null,{"$f":"D40*E40","v":0}]
[null,"تقديم وتركيب خزان مياة 3طبقات NTG سعة 500لتر لمياه الشرب لون رمادي فاتح مع طواشة وسكر وغطاء وجميع التوصيلات"]
[18,"Supply install, test and commission PPR network pipes 16mm for hot and cold water supply including all necessary fittings and accessories.تمديد شبكة مياه باردة وساخنة مع جميع الاكسسوارات اللازمة","Lm",12,null,{"$f":"D42*E42","v":0}]
["Electrical Work (اعمال كهربائية)"]
[19,"Supply and Apply Lighting, power socket or switch point including all conduiting, wiring, boxes, covers, with all necessary accessories and related works complete to engineer's approval all to be imbedded in walls including making good plaster and paint.     أعمال انارة وتتضمن تركيب مفاتيح وبرايزوعلب مع أغطية واسلاك وجميع الاكسسوارات على ان تكون جميع الاعمال مخفية داخل الجدران مع كافة اعمل الورقة والدهان اللازمة لاخفاء العيوب ","Pcs",6,null,{"$f":"D44*E44","v":0}]
[20,"Supply, Install, test and commission electrical Water heater 80L, 2mm galvanized bottle with resistance 1000w, with thermal insulation, thermostat, thermometer, with complete connections to water and power supply (with 10v circuit breaker) including all necessary fittings, supports and accessories. Proper removal of existing damaged heater (if any) to be also included.","Pcs",1,null,{"$f":"D45*E45","v":0}]
[null,"تركيب سخان 80 ليتر 2ملم 1000W معزول منظم حرارة وساعة حرارة مع جميع التوصيلات الكهربائية(ديجنتير 10 فولت) بالاضافة لتوصيل الماء"]
["Aluminum Work (اعمال المنيوم)"]
[21,"Supply and Install Aluminum door overall size 80cmx200cm with frame and all its accessories including tiling of door opening.\n   تركيب باب المنيوم مع جميع الاكسسوارات مع تبليط دائر فتحة الباب  ","pcs",1,null,{"$f":"D48*E48","v":0}]
[22,"Supply and Install 6mm Plexi Glass panes for shaft opening.\nتركيب زجاج \"بلكسي\" 6ملم لفتحة المنور الموجودة","m2",6,null,{"$f":"D49*E49","v":0}]
["Painting Work (اعمال دهان)"]
[23,"Painting the ceiling and walls with two coats of paint (base and mat eggshell). Painting should be done after scraping and cleaning the surface and applying putty coats where necessary.","m2",150,null,{"$f":"E51*D51","v":0}]
[null,"دهان الجدران والاسقف وجهين (الاول أساس) بعد تنظيف وحف ووضع معجونة حيث يلزم"]
[{"$nulls":4},"Total",{"$f":"SUM(F4:F52)","v":0}]

{"sheet":"OS-44B","index":19,"n_rows":49,"n_cols":6,"rows_kept":49,"merged":[[0,0,0,2],[0,3,0,5],[2,0,2,5],[4,0,4,5],[6,0,6,5],[7,0,8,0],[7,2,8,2],[7,3,8,3],[7,4,8,4],[7,5,8,5],[9,0,9,5],[10,0,11,0],[10,2,11,2],[10,3,11,3],[10,4,11,4],[10,5,11,5],[12,0,12,5],[13,0,14,0],[13,2,14,2],[13,3,14,3],[13,4,14,4],[13,5,14,5],[15,0,15,5],[16,0,17,0],[16,2,17,2],[16,3,17,3],[16,4,17,4],[16,5,17,5],[18,0,19,0],[18,2,19,2],[18,3,19,3],[18,4,19,4],[18,5,19,5],[20,0,21,0],[20,2,21,2],[20,3,21,3],[20,4,21,4],[20,5,21,5],[22,0,23,0],[22,2,23,2],[22,3,23,3],[22,4,23,4],[22,5,23,5],[24,0,25,0],[24,2,25,2],[24,3,25,3],[24,4,25,4],[24,5,25,5],[26,0,27,0],[26,2,27,2],[26,3,27,3],[26,4,27,4],[26,5,27,5],[28,0,29,0],[28,2,29,2],[28,3,29,3],[28,4,29,4],[28,5,29,5],[30,0,31,0],[30,2,31,2],[30,3,31,3],[30,4,31,4],[30,5,31,5],[32,0,33,0],[32,2,33,2],[32,3,33,3],[32,4,33,4],[32,5,33,5],[34,0,35,0],[34,2,35,2],[34,3,35,3],[34,4,35,4],[34,5,35,5],[37,0,37,5],[39,0,40,0],[39,2,40,2],[39,3,40,3],[39,4,40,4],[39,5,40,5],[41,0,41,5],[42,0,43,0],[42,2,43,2],[42,3,43,3],[42,4,43,4],[42,5,43,5],[45,0,45,5],[46,0,47,0],[46,2,47,2],[46,3,47,3],[46,4,47,4],[46,5,47,5]]}
["Name: Mahmoud Rahme",null,null,"Code: OS-44B P1"]
["Item","Description","Unit","Quantity","U.Price","T.Price"]
["Demolishing Work (اعمال الهدم و ازالة الردميات)"]
[1,"Carefully demolish existing damaged concrete slab complete with removing all steel reinforcement and material arising from site.\n تكسير ارضية من الباطون المسلّح ونقل الردم الى المكب","m2",5,null,{"$f":"E4*D4","v":0}]
["Concrete Work (اعمال باطون)"]
[2,"Reinforced concrete works (15cm thick concrete ceiling slab), including high yield steel reinforcement to Engineer's approval.\n سقف 15سم) أعمال باطون مسلح تتضمن تسليح حديد) ","m2",5,null,{"$f":"D6*E6","v":0}]
["Metal Work (اعمال حديدية)"]
[3,"Supply and install single panel half glazed external steel door, dimensions adjusted to existing opening (around 100cmx220cm), thickness 3mm, complete with frame, ironmongery, hardware, obscure glass with wire mesh, handle cylinder  lock, provided with anti corrosion painting  by brush two coats.\nRepair, making good in case of damage to the surrounding walls to be included.","pcs",1,null,{"$f":"D8*E8","v":0}]
[null,"تقديم وتركيب بوابة حديد حسب القياس سماكة 3ملم ,مع زجاج محجر ومشرط في القسم العلوي مع مسكة وقفل ودهان طبقتين بمواد مقاومة للصدأ ومعالجة كل الاضرار حول الباب في حال حصولها اثناء التركيب"]
["Tiling Work (اعمال بلاط)"]
[4,"Supply and Apply Ceramic tiles to floors and walls, including surface preparation, backing mortar/adhesive, grouting between tiles and any other application or materials needed to properly complete the works to the engineer's approval.","m2",30,null,{"$f":"D11*E11","v":0}]
[null,"تقديم وتركيب بلاط سيراميك في الحمامات فقط,بعد تهيئة الارضية وحسب تعليمات المهندس"]
["Plastering Work (اعمال ورقة)"]
[5,"Supply and apply Internal plastering works to ceiling and walls (Saint Etienne - Traditional) 15 to 20mm thick including steel mesh and corner/opening stops and accessories, curing, scaffolding, spraying when needed, filling of existing cavities, smoothing and any other application needed for the proper completion of the works.","m2",20,null,{"$f":"D14*E14","v":0}]
[null,"أعمال ورقة داخلية على الجدران 15-20ملم مع شبك معدني حسب توجيهات المهندس "]
["Sanitary Work (اعمال صحية)"]
[6,"Supply install, test and commission European WC seat Lecico (Saidon type) or equivalent complete with flushing cistern, plastic cover, water and sewer connections, with all necessary fittings and accessories. Adjacent walls and floors to be reinstated to their original condition in case of any damages. ","Pcs",1,null,{"$f":"D17*E17","v":0}]
[null,"تقديم وتركيب كرسي حمام أوروبي (صيدون أو ما يعادلها )مع جميع التوصيلات من قساطل PPR و4\"UPVC مع كل الاكسسوارات اللازمة من غطاء بلاستيك "]
[7,"Supply install, test and commission flushing hose pipe set 1/2\" internal diameter for WC, with rubber hose and chrome angle valve with all its connections and necessary fittings and accessories.","Pcs",1,null,{"$f":"D19*E19","v":0}]
[null,"تقديم وتركيب نربيش صحي (شطافة) مع جميع التوصيلات والاكسسوارات"]
[8,"Supply and Installation of wash basin mixer with all its connections.","Pcs",1,null,{"$f":"D21*E21","v":0}]
[null,"تقديم وتركيب خلاط مغسلة مع كل التوصيلات"]
[9,"Supply and Intallation of sink mixer of approved quality with all its connections.","Pcs",1,null,{"$f":"D23*E23","v":0}]
[null,"تقديم وتركيب خلاط مجلى مع كل التوصيلات"]
[10,"Supply and install Shower mixer medium quality with telephone shower.                  ","Pcs",1,null,{"$f":"D25*E25","v":0}]
[null,"تقديم وتركيب خلاط دوش مع كل التوصيلات والاكسسوارات "]
[11,"Supply, install, test and commission Wash bassin Lecico make or equivalent with all its connections to water supply and drainage connection to the sewage network with all necessary fittings and accessories (including steel support, chrome outlet, porcelain shelf, etc.). Adjacent walls and floors to be reinstated to their original condition in case of any damages.","Pcs",1,null,{"$f":"D27*E27","v":0}]
[null,"تقديم وتركيب مغسلة ليسيكو أو ما يعادلها مع كل التوصيلات المائية والصحية بالاضافة لرف بورسلان وخلاط"]
[12,"Supply, install, test and commission stainless steel kitchen sink (over all size 50cmx100cm) with all its connections to water supply and drainage connection to the sewage network with all necessary fittings and accessories (including steel support, etc.). Adjacent walls and floors to be reinstated to their original condition in case of any damages.","pcs",1,null,{"$f":"D29*E29","v":0}]
[null,"تقديم وتركيب مجلى ستانلس ستيل مع كل التوصيلات المائية والصحية وخلاط مع قاعدة حديد"]
[13,"Supply, install, test and commission trapped gully 4 inches including handhole 20x20cm with stainless steel cover including builders works such as drilling in concrete, fixing in slab by using high compressive mortar, levelling and connecting to the drain network.                                      ","Pcs",2,null,{"$f":"D31*E31","v":0}]
[null,"تقديم وتركيب ريكار4\",  20*20 سم مع غطاء ستانلس مع كل ما يلزم من حفر وتثبيت في الارضية وتوصيل الى الشبكة الصحية"]
[14,"Supply, install, test and commission drainage UPVC pipes 4 inches, PN 16bar, including all needed accessories (coupling, Tee, Elbow, seal ring, etc.). Works include connection to the existing manhole including builders works.\nOn slab installation to be protected with concrete, underceiling installation to have metallic support, vertical installation to be fixed on wall by clamps with anchors. Slope in flow direction should exceed 1cm per meter.","m",4,null,{"$f":"D33*E33","v":0}]
[null,"تقديم وتركيب مجرور بلاستك UPVC 4'PN16barمع جميع ما يلزم من اكسسوارات لتوصيله الى الريكار العام"]
[15,"Supply, install, test and commission PVC Water tank NTG 3 layer 1000 liters (certified for drinking water), light grey, complete with float valve, brass valves, overflow pipe, hard PVC cover including inlet & outlet connections and all necessary fittings and accessories.","Pcs",1,null,{"$f":"D35*E35","v":0}]
[null,"تقديم وتركيب خزان مياة 3طبقات NTG سعة 1000لتر لمياه الشرب لون رمادي فاتح مع طواشة وسكر وغطاء وجميع التوصيلات"]
[16,"Supply install, test and commission PPR network pipes 16mm for hot and cold water supply including all necessary fittings and accessories.تمديد شبكة مياه باردة وساخنة مع جميع الاكسسوارات اللازمة","Lm",8,null,{"$f":"D37*E37","v":0}]
["Electrical Work (اعمال كهربائية)"]
[17,"Supply and Apply Lighting, power socket or switch point including all conduiting, wiring, boxes, covers, with all necessary accessories and related works complete to engineer's approval all to be imbedded in walls including making good plaster and paint.     أعمال انارة وتتضمن تركيب مفاتيح وبرايزوعلب مع أغطية واسلاك وجميع الاكسسوارات على ان تكون جميع الاعمال مخفية داخل الجدران مع كافة اعمل الورقة والدهان اللازمة لاخفاء العيوب ","Pcs",6,null,{"$f":"D39*E39","v":0}]
[18,"Supply, Install, test and commission electrical Water heater 80L, 2mm galvanized bottle with resistance 1000w, with thermal insulation, thermostat, thermometer, with complete connections to water and power supply (with 10v circuit breaker) including all necessary fittings, supports and accessories. Proper removal of existing damaged heater (if any) to be also included.","Pcs",1,null,{"$f":"D40*E40","v":0}]
[null,"تركيب سخان 80 ليتر 2ملم 1000W معزول منظم حرارة وساعة حرارة مع جميع التوصيلات الكهربائية(ديجنتير 10 فولت) بالاضافة لتوصيل الماء"]
["Aluminum Work (اعمال المنيوم)"]
[19,"Supply and Install Aluminum single glazed window with glass, (Sidem 2000) with frame, and all accessories needed for installation and proper use (Folda 1.6mm) including window tile sills.","m2",0.5,null,{"$f":"D43*E43","v":0}]
[null,"تركيب شباك المنيوم سيدم 2000 (1.6ملم) مع زجاج مفرد مع شعائر بلاط حول دائر الشباك"]
[20,"Supply and Install Aluminum door overall size 80cmx200cm with frame and all its accessories including tiling of door opening.\n   تركيب باب المنيوم مع جميع الاكسسوارات مع تبليط دائر فتحة الباب  ","pcs",1,null,{"$f":"D45*E45","v":0}]
["Painting Work (اعمال دهان)"]
[21,"Painting the ceiling and walls with two coats of paint (base and mat eggshell). Painting should be done after scraping and cleaning the surface and applying putty coats where necessary.","m2",25,null,{"$f":"E47*D47","v":0}]
[null,"دهان الجدران والاسقف وجهين (الاول أساس) بعد تنظيف وحف ووضع معجونة حيث يلزم"]
[{"$nulls":4},"Total",{"$f":"SUM(F4:F48)","v":0}]

{"sheet":"OS-45C","index":20,"n_rows":58,"n_cols":6,"rows_kept":58,"merged":[[0,0,0,2],[0,3,0,5],[2,0,2,5],[5,0,5,5],[7,0,7,5],[8,0,9,0],[8,2,9,2],[8,3,9,3],[8,4,9,4],[8,5,9,5],[10,0,10,5],[11,0,12,0],[11,2,12,2],[11,3,12,3],[11,4,12,4],[11,5,12,5],[13,0,14,0],[13,2,14,2],[13,3,14,3],[13,4,14,4],[13,5,14,5],[15,0,15,5],[16,0,17,0],[16,2,17,2],[16,3,17,3],[16,4,17,4],[16,5,17,5],[18,0,18,5],[19,0,20,0],[19,2,20,2],[19,3,20,3],[19,4,20,4],[19,5,20,5],[21,0,22,0],[21,2,22,2],[21,3,22,3],[21,4,22,4],[21,5,22,5],[23,0,23,5],[24,0,25,0],[24,2,25,2],[24,3,25,3],[24,4,25,4],[24,5,25,5],[26,0,26,5],[27,0,28,0],[27,2,28,2],[27,3,28,3],[27,4,28,4],[27,5,28,5],[29,0,30,0],[29,2,30,2],[29,3,30,3],[29,4,30,4],[29,5,30,5],[31,0,32,0],[31,2,32,2],[31,3,32,3],[31,4,32,4],[31,5,32,5],[33,0,34,0],[33,2,34,2],[33,3,34,3],[33,4,34,4],[33,5,34,5],[35,0,36,0],[35,2,36,2],[35,3,36,3],[35,4,36,4],[35,5,36,5],[37,0,38,0],[37,2,38,2],[37,3,38,3],[37,4,38,4],[37,5,38,5],[39,0,40,0],[39,2,40,2],[39,3,40,3],[39,4,40,4],[39,5,40,5],[41,0,42,0],[41,2,42,2],[41,3,42,3],[41,4,42,4],[41,5,42,5],[43,0,44,0],[43,2,44,2],[43,3,44,3],[43,4,44,4],[43,5,44,5],[45,0,46,0],[45,2,46,2],[45,3,46,3],[45,4,46,4],[45,5,46,5],[48,0,48,5],[50,0,51,0],[50,2,51,2],[50,3,51,3],[50,4,51,4],[50,5,51,5],[52,0,52,5],[54,0,54,5],[55,0,56,0],[55,2,56,2],[55,3,56,3],[55,4,56,4],[55,5,56,5]]}
["Name: Mohamad Rafik el Sous",null,null,"Code: OS-45C P1"]
["Item","Description","Unit","Quantity","U.Price","T.Price"]
["Demolishing Work (اعمال الهدم و ازالة الردميات)"]
[1,"Carefully demolish existing damaged wooden slab complete with removing all supports and material arising from site.\n تكسير ارضية من الخشب القديم ونقل الردم الى المكب","m2",80,null,{"$f":"E4*D4","v":0}]
[2,"Dismantle and remove from site existing wooden false ceiling and wall cladding including supports.\nفك سقف وحائط الخشب المستعار وعناصر الدعم القديمة وازالتها من الموقع","m2",80,null,{"$f":"D5*E5","v":0}]
["Concrete Work (اعمال باطون)"]
[3,"Reinforced concrete works (15cm thick concrete ceiling slab), including high yield steel reinforcement to Engineer's approval.\n سقف 15سم) أعمال باطون مسلح تتضمن تسليح حديد) ","m2",80,null,{"$f":"D7*E7","v":0}]
["Waterproofing Work (اعمال منع النشّ)"]
[4,"Supply, apply and test roof waterproofing using PU material, the works including but not limited to cleaning, surface preparation works, drying, filling cavities with mortar, applying primer, angle fillets, plaster works for parapets and any other materials needed prior to the proper application of 3 layers of PU according to the manufacturer's data sheet and method statement and to the Engineer's approval.","m2",80,null,{"$f":"D9*E9","v":0}]
[null,"تقديم ودهان مواد عازلة PU على الاسطح بعد تنظيفها وتهيئة السطح لاعمال العزل واعمال ورقة حسب توجيهات المهندس"]
["Wood and other Works (اعمال خشبية وغيره)"]
[5,"Supply and install single leaf Wooden door (size 100cmx200cm) including subframe, Frame (Swedish), with complete ironmongery, Hinges, Handle and Keylock of approved quality (lock to be yale or equivalent) complete with painting by 2 coats of oil paint. All the wooden works to be initially cured and treated to resist humidity and insects.\nRepair, making good in case of damage to the surrounding walls to be included.","Pcs",1,null,{"$f":"D12*E12","v":0}]
[null,"تقديم وتركيب باب خشب قياس 100*200سم مع الاطار (سويد) مع جميع الاكسسوارات . مسكة , قفل يال أو ما يعادله مع دهان طبقتين من الدهان الزيتي ومعالجة كل الاضرار حول الباب في حال حصولها اثناء التركيب"]
[6,"Supply and install Wooden window including Frame, glass panes, with complete ironmongery, Hinges, Handles  of approved quality complete with painting by 2 coats of oil paint. All the wooden works to be initially cured and treated to resist humidity and insects.\nRepair, making good in case of damage to the surrounding walls to be included. Window tile sills also to be included","m2",4,null,{"$f":"D14*E14","v":0}]
[null,"تقديم وتركيب شبّاك خشب مع الاطار مع جميع الاكسسوارات . مسكة  مع دهان طبقتين من الدهان الزيتي ومعالجة كل الاضرار حول الباب في حال حصولها اثناء التركيب"]
["Metal Work (اعمال حديدية)"]
[7,"Supply and install single panel half glazed external steel door, dimensions adjusted to existing opening (around 100cmx220cm), thickness 3mm, complete with frame, ironmongery, hardware, obscure glass with wire mesh, handle cylinder  lock, provided with anti corrosion painting  by brush two coats.\nRepair, making good in case of damage to the surrounding walls to be included.","pcs",1,null,{"$f":"D17*E17","v":0}]
[null,"تقديم وتركيب بوابة حديد حسب القياس سماكة 3ملم ,مع زجاج محجر ومشرط في القسم العلوي مع مسكة وقفل ودهان طبقتين بمواد مقاومة للصدأ ومعالجة كل الاضرار حول الباب في حال حصولها اثناء التركيب"]
["Tiling Work (اعمال بلاط)"]
[8,"Supply and Apply Ceramic tiles to floors and walls, including surface preparation, backing mortar/adhesive, grouting between tiles and any other application or materials needed to properly complete the works to the engineer's approval.","m2",25,null,{"$f":"D20*E20","v":0}]
[null,"تقديم وتركيب بلاط سيراميك في الحمامات فقط,بعد تهيئة الارضية وحسب تعليمات المهندس"]
[9,"Supply and Install marble Threshold 10cm width and 2cm thickness  including mortar backing.","lm",1,null,{"$f":"D22*E22","v":0}]
[null," تقديم وتركيب برطاش من الرخام 2*10 سم"]
["Plastering Work (اعمال ورقة)"]
[10,"Supply and apply Internal plastering works to ceiling and walls 15 to 20mm thick including steel mesh and corner/opening stops and accessories, curing, scaffolding, spraying when needed, filling of existing cavities, smoothing and any other application needed for the proper completion of the works.","m2",80,null,{"$f":"D25*E25","v":0}]
[null,"أعمال ورقة داخلية على الجدران 15-20ملم مع شبك معدني حسب توجيهات المهندس "]
["Sanitary Work (اعمال صحية)"]
[11,"Supply install, test and commission European WC seat Lecico (Saidon type) or equivalent complete with flushing cistern, plastic cover, water and sewer connections, with all necessary fittings and accessories. Adjacent walls and floors to be reinstated to their original condition in case of any damages. ","Pcs",1,null,{"$f":"D28*E28","v":0}]
[null,"تقديم وتركيب كرسي حمام أوروبي (صيدون أو ما يعادلها )مع جميع التوصيلات من قساطل PPR و4\"UPVC مع كل الاكسسوارات اللازمة من غطاء بلاستيك "]
[12,"Supply install, test and commission flushing hose pipe set 1/2\" internal diameter for WC, with rubber hose and chrome angle valve with all its connections and necessary fittings and accessories.","Pcs",1,null,{"$f":"D30*E30","v":0}]
[null,"تقديم وتركيب نربيش صحي (شطافة) مع جميع التوصيلات والاكسسوارات"]
[13,"Supply and Installation of wash basin mixer with all its connections.","Pcs",1,null,{"$f":"D32*E32","v":0}]
[null,"تقديم وتركيب خلاط مغسلة مع كل التوصيلات"]
[14,"Supply and Intallation of sink mixer of approved quality with all its connections.","Pcs",1,null,{"$f":"D34*E34","v":0}]
[null,"تقديم وتركيب خلاط مجلى مع كل التوصيلات"]
[15,"Supply and install Shower mixer medium quality with telephone shower.                  ","Pcs",1,null,{"$f":"D36*E36","v":0}]
[null,"تقديم وتركيب خلاط دوش مع كل التوصيلات والاكسسوارات "]
[16,"Supply, install, test and commission Wash bassin Lecico make or equivalent with all its connections to water supply and drainage connection to the sewage network with all necessary fittings and accessories (including steel support, chrome outlet, porcelain shelf, etc.). Adjacent walls and floors to be reinstated to their original condition in case of any damages.","Pcs",1,null,{"$f":"D38*E38","v":0}]
[null,"تقديم وتركيب مغسلة ليسيكو أو ما يعادلها مع كل التوصيلات المائية والصحية بالاضافة لرف بورسلان وخلاط"]
[17,"Supply, install, test and commission stainless steel kitchen sink (over all size 50cmx100cm) with all its connections to water supply and drainage connection to the sewage network with all necessary fittings and accessories (including steel support, etc.). Adjacent walls and floors to be reinstated to their original condition in case of any damages.","pcs",1,null,{"$f":"D40*E40","v":0}]
[null,"تقديم وتركيب مجلى ستانلس ستيل مع كل التوصيلات المائية والصحية وخلاط مع قاعدة حديد"]
[18,"Supply, install, test and commission trapped gully 4 inches including handhole 20x20cm with stainless steel cover including builders works such as drilling in concrete, fixing in slab by using high compressive mortar, levelling and connecting to the drain network.                                      ","Pcs",3,null,{"$f":"D42*E42","v":0}]
[null,"تقديم وتركيب ريكار4\",  20*20 سم مع غطاء ستانلس مع كل ما يلزم من حفر وتثبيت في الارضية وتوصيل الى الشبكة الصحية"]
[19,"Supply, install, test and commission drainage UPVC pipes 4 inches, PN 16bar, including all needed accessories (coupling, Tee, Elbow, seal ring, etc.). Works include connection to the existing manhole including builders works.\nOn slab installation to be protected with concrete, underceiling installation to have metallic support, vertical installation to be fixed on wall by clamps with anchors. Slope in flow direction should exceed 1cm per meter.","m",8,null,{"$f":"D44*E44","v":0}]
[null,"تقديم وتركيب مجرور بلاستك UPVC 4'PN16barمع جميع ما يلزم من اكسسوارات لتوصيله الى الريكار العام"]
[20,"Supply, install, test and commission PVC Water tank NTG 3 layer 1000 liters (certified for drinking water), light grey, complete with float valve, brass valves, overflow pipe, hard PVC cover including inlet & outlet connections and all necessary fittings and accessories.","Pcs",1,null,{"$f":"D46*E46","v":0}]
[null,"تقديم وتركيب خزان مياة 3طبقات NTG سعة 1000لتر لمياه الشرب لون رمادي فاتح مع طواشة وسكر وغطاء وجميع التوصيلات"]
[21,"Supply install, test and commission PPR network pipes 16mm for hot and cold water supply including all necessary fittings and accessories.تمديد شبكة مياه باردة وساخنة مع جميع الاكسسوارات اللازمة","Lm",10,null,{"$f":"D48*E48","v":0}]
["Electrical Work (اعمال كهربائية)"]
[22,"Supply and Apply Lighting, power socket or switch point including all conduiting, wiring, boxes, covers, with all necessary accessories and related works complete to engineer's approval all to be imbedded in walls including making good plaster and paint.     أعمال انارة وتتضمن تركيب مفاتيح وبرايزوعلب مع أغطية واسلاك وجميع الاكسسوارات على ان تكون جميع الاعمال مخفية داخل الجدران مع كافة اعمل الورقة والدهان اللازمة لاخفاء العيوب ","Pcs",10,null,{"$f":"D50*E50","v":0}]
[23,"Supply, Install, test and commission electrical Water heater 80L, 2mm galvanized bottle with resistance 1000w, with thermal insulation, thermostat, thermometer, with complete connections to water and power supply (with 10v circuit breaker) including all necessary fittings, supports and accessories. Proper removal of existing damaged heater (if any) to be also included.","Pcs",1,null,{"$f":"D51*E51","v":0}]
[null,"تركيب سخان 80 ليتر 2ملم 1000W معزول منظم حرارة وساعة حرارة مع جميع التوصيلات الكهربائية(ديجنتير 10 فولت) بالاضافة لتوصيل الماء"]
["Aluminum Work (اعمال المنيوم)"]
[24,"Supply and Install Aluminum door overall size 80cmx200cm with frame and all its accessories including tiling of door opening.\n   تركيب باب المنيوم مع جميع الاكسسوارات مع تبليط دائر فتحة الباب  ","pcs",1,null,{"$f":"D54*E54","v":0}]
["Painting Work (اعمال دهان)"]
[25,"Painting the ceiling and walls with two coats of paint (base and mat eggshell). Painting should be done after scraping and cleaning the surface and applying putty coats where necessary.","m2",290,null,{"$f":"E56*D56","v":0}]
[null,"دهان الجدران والاسقف وجهين (الاول أساس) بعد تنظيف وحف ووضع معجونة حيث يلزم"]
[{"$nulls":4},"Total",{"$f":"SUM(F4:F57)","v":0}]

{"sheet":"OS-46A","index":21,"n_rows":54,"n_cols":6,"rows_kept":54,"merged":[[0,0,0,2],[0,3,0,5],[2,0,2,5],[3,0,4,0],[3,2,4,2],[3,3,4,3],[3,4,4,4],[3,5,4,5],[5,0,5,5],[6,0,7,0],[6,2,7,2],[6,3,7,3],[6,4,7,4],[6,5,7,5],[8,0,9,0],[8,2,9,2],[8,3,9,3],[8,4,9,4],[8,5,9,5],[10,0,10,5],[11,0,12,0],[11,2,12,2],[11,3,12,3],[11,4,12,4],[11,5,12,5],[13,0,13,5],[14,0,15,0],[14,2,15,2],[14,3,15,3],[14,4,15,4],[14,5,15,5],[16,0,17,0],[16,2,17,2],[16,3,17,3],[16,4,17,4],[16,5,17,5],[18,0,18,5],[20,0,20,5],[21,0,22,0],[21,2,22,2],[21,3,22,3],[21,4,22,4],[21,5,22,5],[23,0,24,0],[23,2,24,2],[23,3,24,3],[23,4,24,4],[23,5,24,5],[25,0,26,0],[25,2,26,2],[25,3,26,3],[25,4,26,4],[25,5,26,5],[27,0,28,0],[27,2,28,2],[27,3,28,3],[27,4,28,4],[27,5,28,5],[29,0,30,0],[29,2,30,2],[29,3,30,3],[29,4,30,4],[29,5,30,5],[31,0,32,0],[31,2,32,2],[31,3,32,3],[31,4,32,4],[31,5,32,5],[33,0,34,0],[33,2,34,2],[33,3,34,3],[33,4,34,4],[33,5,34,5],[35,0,36,0],[35,2,36,2],[35,3,36,3],[35,4,36,4],[35,5,36,5],[37,0,38,0],[37,2,38,2],[37,3,38,3],[37,4,38,4],[37,5,38,5],[40,0,40,5],[42,0,43,0],[42,2,43,2],[42,3,43,3],[42,4,43,4],[42,5,43,5],[44,0,44,5],[45,0,46,0],[45,2,46,2],[45,3,46,3],[45,4,46,4],[45,5,46,5],[48,0,48,5],[49,0,50,0],[49,2,50,2],[49,3,50,3],[49,4,50,4],[49,5,50,5],[51,0,51,5]]}
["Name: Fatima Abdel Rahman",null,null,"Code: OS-46A"]
["Item","Description","Unit","Quantity","U.Price","T.Price"]
["Waterproofing Work (اعمال منع النشّ)"]
[1,"Supply, apply and test roof waterproofing using PU material, the works including but not limited to cleaning, surface preparation works, drying, filling cavities with mortar, applying primer, angle fillets, plaster works for parapets and any other materials needed prior to the proper application of 3 layers of PU according to the manufacturer's data sheet and method statement and to the Engineer's approval.","m2",65,null,{"$f":"D4*E4","v":0}]
[null,"تقديم ودهان مواد عازلة PU على الاسطح بعد تنظيفها وتهيئة السطح لاعمال العزل واعمال ورقة حسب توجيهات المهندس"]
["Wood and other Works (اعمال خشبية وغيره)"]
[2,"Supply and install single leaf Wooden door (size 100cmx200cm) including subframe, Frame (Swedish), with complete ironmongery, Hinges, Handle and Keylock of approved quality (lock to be yale or equivalent) complete with painting by 2 coats of oil paint. All the wooden works to be initially cured and treated to resist humidity and insects.\nRepair, making good in case of damage to the surrounding walls to be included.","Pcs",2,null,{"$f":"D7*E7","v":0}]
[null,"تقديم وتركيب باب خشب قياس 100*200سم مع الاطار (سويد) مع جميع الاكسسوارات . مسكة , قفل يال أو ما يعادله مع دهان طبقتين من الدهان الزيتي ومعالجة كل الاضرار حول الباب في حال حصولها اثناء التركيب"]
[3,"Repair wooden window including painting, hinges, handles and glass panes.","Pcs",5,null,{"$f":"D9*E9","v":0}]
[null,"اصلاح شباك خشب قياس مع دهان تركيب مسكة ومفصلات و زجاج"]
["Metal Work (اعمال حديدية)"]
[4,"Supply and install single panel half glazed external steel door, dimensions adjusted to existing opening (around 100cmx220cm), thickness 3mm, complete with frame, ironmongery, hardware, obscure glass with wire mesh, handle cylinder  lock, provided with anti corrosion painting  by brush two coats.\nRepair, making good in case of damage to the surrounding walls to be included.","pcs",1,null,{"$f":"D12*E12","v":0}]
[null,"تقديم وتركيب بوابة حديد حسب القياس سماكة 3ملم ,مع زجاج محجر ومشرط في القسم العلوي مع مسكة وقفل ودهان طبقتين بمواد مقاومة للصدأ ومعالجة كل الاضرار حول الباب في حال حصولها اثناء التركيب"]
["Tiling Work (اعمال بلاط)"]
[5,"Supply and Apply Ceramic tiles to floors and walls in toilets only, including surface preparation, backing mortar/adhesive, grouting between tiles and any other application or materials needed to properly complete the works to the engineer's approval.","m2",25,null,{"$f":"D15*E15","v":0}]
[null,"تقديم وتركيب بلاط سيراميك في الحمامات فقط,بعد تهيئة الارضية وحسب تعليمات المهندس"]
[6,"Supply and Install marble Threshold 10cm width and 2cm thickness  including mortar backing.","lm",1,null,{"$f":"D17*E17","v":0}]
[null," تقديم وتركيب برطاش من الرخام 2*10 سم"]
["Plastering Work (اعمال ورقة)"]
[7,"Treatment of existing cracks (internally or externally) by breaking out and removing any loose and defective parts, replastering using wire mesh where necessary, applying anti-leakage putty and paint, then making good finish to engineer's approval.  معالجة التشققات الداخلية والخارجية بواسطة توسيعها وتنظيفها وحشوها بمواد مناسبة واستعمال مايلزم من مواد حسب تعليمات المهندس","Lm",50,null,{"$f":"D20*E20","v":0}]
["Sanitary Work (اعمال صحية)"]
[8,"Supply install, test and commission European WC seat Lecico (Saidon type) or equivalent complete with flushing cistern, plastic cover, water and sewer connections, with all necessary fittings and accessories. Adjacent walls and floors to be reinstated to their original condition in case of any damages. ","Pcs",1,null,{"$f":"D22*E22","v":0}]
[null,"تقديم وتركيب كرسي حمام أوروبي (صيدون أو ما يعادلها )مع جميع التوصيلات من قساطل PPR و4\"UPVC مع كل الاكسسوارات اللازمة من غطاء بلاستيك "]
[9,"Supply install, test and commission flushing hose pipe set 1/2\" internal diameter for WC, with rubber hose and chrome angle valve with all its connections and necessary fittings and accessories.","Pcs",1,null,{"$f":"D24*E24","v":0}]
[null,"تقديم وتركيب نربيش صحي (شطافة) مع جميع التوصيلات والاكسسوارات"]
[10,"Supply and Installation of wash basin mixer with all its connections.","Pcs",1,null,{"$f":"D26*E26","v":0}]
[null,"تقديم وتركيب خلاط مغسلة مع كل التوصيلات"]
[11,"Supply and Intallation of sink mixer of approved quality with all its connections.","Pcs",1,null,{"$f":"D28*E28","v":0}]
[null,"تقديم وتركيب خلاط مجلى مع كل التوصيلات"]
[12,"Supply and install Shower mixer medium quality with telephone shower.                  ","Pcs",1,null,{"$f":"D30*E30","v":0}]
[null,"تقديم وتركيب خلاط دوش مع كل التوصيلات والاكسسوارات "]
[13,"Supply, install, test and commission Wash bassin Lecico make or equivalent with all its connections to water supply and drainage connection to the sewage network with all necessary fittings and accessories (including steel support, chrome outlet, porcelain shelf, etc.). Adjacent walls and floors to be reinstated to their original condition in case of any damages.","Pcs",1,null,{"$f":"D32*E32","v":0}]
[null,"تقديم وتركيب مغسلة ليسيكو أو ما يعادلها مع كل التوصيلات المائية والصحية بالاضافة لرف بورسلان وخلاط"]
[14,"Supply, install, test and commission trapped gully 4 inches including handhole 20x20cm with stainless steel cover including builders works such as drilling in concrete, fixing in slab by using high compressive mortar, levelling and connecting to the drain network.                                      ","Pcs",6,null,{"$f":"D34*E34","v":0}]
[null,"تقديم وتركيب ريكار4\",  20*20 سم مع غطاء ستانلس مع كل ما يلزم من حفر وتثبيت في الارضية وتوصيل الى الشبكة الصحية"]
[15,"Supply, install, test and commission drainage UPVC pipes 4 inches, PN 16bar, including all needed accessories (coupling, Tee, Elbow, seal ring, etc.). Works include connection to the existing manhole including builders works.\nOn slab installation to be protected with concrete, underceiling installation to have metallic support, vertical installation to be fixed on wall by clamps with anchors. Slope in flow direction should exceed 1cm per meter.","m",12,null,{"$f":"D36*E36","v":0}]
[null,"تقديم وتركيب مجرور بلاستك UPVC 4'PN16barمع جميع ما يلزم من اكسسوارات لتوصيله الى الريكار العام"]
[16,"Supply, install, test and commission PVC Water tank NTG 3 layer 1000 liters (certified for drinking water), light grey, complete with float valve, brass valves, overflow pipe, hard PVC cover including inlet & outlet connections and all necessary fittings and accessories.","Pcs",1,null,{"$f":"D38*E38","v":0}]
[null,"تقديم وتركيب خزان مياة 3طبقات NTG سعة 1000لتر لمياه الشرب لون رمادي فاتح مع طواشة وسكر وغطاء وجميع التوصيلات"]
[17,"Supply install, test and commission PPR network pipes 16mm for hot and cold water supply including all necessary fittings and accessories.تمديد شبكة مياه باردة وساخنة مع جميع الاكسسوارات اللازمة","Lm",8,null,{"$f":"D40*E40","v":0}]
["Electrical Work (اعمال كهربائية)"]
[18,"Supply and Apply Lighting, power socket or switch point including all conduiting, wiring, boxes, covers, with all necessary accessories and related works complete to engineer's approval all to be imbedded in walls including making good plaster and paint.     أعمال انارة وتتضمن تركيب مفاتيح وبرايزوعلب مع أغطية واسلاك وجميع الاكسسوارات على ان تكون جميع الاعمال مخفية داخل الجدران مع كافة اعمل الورقة والدهان اللازمة لاخفاء العيوب ","Pcs",10,null,{"$f":"D42*E42","v":0}]
[19,"Supply, Install, test and commission electrical Water heater 80L, 2mm galvanized bottle with resistance 1000w, with thermal insulation, thermostat, thermometer, with complete connections to water and power supply (with 10v circuit breaker) including all necessary fittings, supports and accessories. Proper removal of existing damaged heater (if any) to be also included.","Pcs",1,null,{"$f":"D43*E43","v":0}]
[null,"تركيب سخان 80 ليتر 2ملم 1000W معزول منظم حرارة وساعة حرارة مع جميع التوصيلات الكهربائية(ديجنتير 10 فولت) بالاضافة لتوصيل الماء"]
["Aluminum Work (اعمال المنيوم)"]
[20,"Supply and Install Aluminum single glazed window with glass, (Sidem 2000) with frame, and all accessories needed for installation and proper use (Folda 1.6mm) including window tile sills.","m2",1,null,{"$f":"D46*E46","v":0}]
[null,"تركيب شباك المنيوم سيدم 2000 (1.6ملم) مع زجاج مفرد مع شعائر بلاط حول دائر الشباك"]
[21,"Supply and Install Aluminum door overall size 80cmx200cm with frame and all its accessories including tiling of door opening.\n   تركيب باب المنيوم مع جميع الاكسسوارات مع تبليط دائر فتحة الباب  ","pcs",1,null,{"$f":"D48*E48","v":0}]
["Painting Work (اعمال دهان)"]
[22,"Painting the ceiling and walls with two coats of paint (base and mat eggshell). Painting should be done after scraping and cleaning the surface and applying putty coats where necessary.","m2",265,null,{"$f":"E50*D50","v":0}]
[null,"دهان الجدران والاسقف وجهين (الاول أساس) بعد تنظيف وحف ووضع معجونة حيث يلزم"]
["Roofing Work(أعمال الأسطح)"]
[23,"Minor repairs only to zinc sheet roofing with proper foam/sealer and replace damaged sheets if necessary to engineer's approval (roof size approximately 35m2).","LS",1,null,{"$f":"D53*E53","v":0}]
[{"$nulls":4},"Total",{"$f":"SUM(F4:F53)","v":0}]

{"sheet":"OS-47A","index":22,"n_rows":42,"n_cols":6,"rows_kept":42,"merged":[[0,0,0,2],[0,3,0,5],[2,0,2,5],[3,0,4,0],[3,2,4,2],[3,3,4,3],[3,4,4,4],[3,5,4,5],[5,0,6,0],[5,2,6,2],[5,3,6,3],[5,4,6,4],[5,5,6,5],[7,0,8,0],[7,2,8,2],[7,3,8,3],[7,4,8,4],[7,5,8,5],[9,0,9,5],[10,0,11,0],[10,2,11,2],[10,3,11,3],[10,4,11,4],[10,5,11,5],[12,0,12,5],[13,0,14,0],[13,2,14,2],[13,3,14,3],[13,4,14,4],[13,5,14,5],[15,0,16,0],[15,2,16,2],[15,3,16,3],[15,4,16,4],[15,5,16,5],[17,0,17,5],[18,0,19,0],[18,2,19,2],[18,3,19,3],[18,4,19,4],[18,5,19,5],[20,0,21,0],[20,2,21,2],[20,3,21,3],[20,4,21,4],[20,5,21,5],[22,0,23,0],[22,2,23,2],[22,3,23,3],[22,4,23,4],[22,5,23,5],[24,0,25,0],[24,2,25,2],[24,3,25,3],[24,4,25,4],[24,5,25,5],[26,0,27,0],[26,2,27,2],[26,3,27,3],[26,4,27,4],[26,5,27,5],[28,0,29,0],[28,2,29,2],[28,3,29,3],[28,4,29,4],[28,5,29,5],[30,0,31,0],[30,2,31,2],[30,3,31,3],[30,4,31,4],[30,5,31,5],[32,0,33,0],[32,2,33,2],[32,3,33,3],[32,4,33,4],[32,5,33,5],[35,0,35,5],[37,0,38,0],[37,2,38,2],[37,3,38,3],[37,4,38,4],[37,5,38,5],[39,0,39,5]]}
["Name: Fatima Turkmani",null,null,"Code: OS-47A"]
["Item","Description","Unit","Quantity","U.Price","T.Price"]
["Wood and other Works (اعمال خشبية وغيره)"]
[1,"Supply and install single leaf Wooden door (size 100cmx200cm) including subframe, Frame (Swedish), with complete ironmongery, Hinges, Handle and Keylock of approved quality (lock to be yale or equivalent) complete with painting by 2 coats of oil paint. All the wooden works to be initially cured and treated to resist humidity and insects.\nRepair, making good in case of damage to the surrounding walls to be included.","Pcs",1,null,{"$f":"D4*E4","v":0}]
[null,"تقديم وتركيب باب خشب قياس 100*200سم مع الاطار (سويد) مع جميع الاكسسوارات . مسكة , قفل يال أو ما يعادله مع دهان طبقتين من الدهان الزيتي ومعالجة كل الاضرار حول الباب في حال حصولها اثناء التركيب"]
[2,"Supply and install Wooden window including Frame, glass panes, with complete ironmongery, Hinges, Handles  of approved quality complete with painting by 2 coats of oil paint. All the wooden works to be initially cured and treated to resist humidity and insects.\nRepair, making good in case of damage to the surrounding walls to be included. Window tile sills also to be included","m2",1,null,{"$f":"D6*E6","v":0}]
[null,"تقديم وتركيب شبّاك خشب مع الاطار مع جميع الاكسسوارات . مسكة  مع دهان طبقتين من الدهان الزيتي ومعالجة كل الاضرار حول الباب في حال حصولها اثناء التركيب"]
[3,"Repair wooden door (size 100cmx200cm) including painting, hinges, handles and locks.","Pcs",1,null,{"$f":"D8*E8","v":0}]
[null,"اصلاح باب خشب قياس 100*200سم مع دهان تركيب مسكة وقفل ومفصلات"]
["Metal Work (اعمال حديدية)"]
[4,"Supply and install single panel half glazed external steel door, dimensions adjusted to existing opening (around 100cmx220cm), thickness 3mm, complete with frame, ironmongery, hardware, obscure glass with wire mesh, handle cylinder  lock, provided with anti corrosion painting  by brush two coats.\nRepair, making good in case of damage to the surrounding walls to be included.","pcs",1,null,{"$f":"D11*E11","v":0}]
[null,"تقديم وتركيب بوابة حديد حسب القياس سماكة 3ملم ,مع زجاج محجر ومشرط في القسم العلوي مع مسكة وقفل ودهان طبقتين بمواد مقاومة للصدأ ومعالجة كل الاضرار حول الباب في حال حصولها اثناء التركيب"]
["Tiling Work (اعمال بلاط)"]
[5,"Supply and Apply Ceramic tiles to floors and walls in toilets only, including surface preparation, backing mortar/adhesive, grouting between tiles and any other application or materials needed to properly complete the works to the engineer's approval.","m2",15,null,{"$f":"D14*E14","v":0}]
[null,"تقديم وتركيب بلاط سيراميك في الحمامات فقط,بعد تهيئة الارضية وحسب تعليمات المهندس"]
[6,"Supply and Install marble Threshold 10cm width and 2cm thickness  including mortar backing.","lm",1,null,{"$f":"D16*E16","v":0}]
[null," تقديم وتركيب برطاش من الرخام 2*10 سم"]
["Sanitary Work (اعمال صحية)"]
[7,"Supply install, test and commission European WC seat Lecico (Saidon type) or equivalent complete with flushing cistern, plastic cover, water and sewer connections, with all necessary fittings and accessories. Adjacent walls and floors to be reinstated to their original condition in case of any damages. ","Pcs",1,null,{"$f":"D19*E19","v":0}]
[null,"تقديم وتركيب كرسي حمام أوروبي (صيدون أو ما يعادلها )مع جميع التوصيلات من قساطل PPR و4\"UPVC مع كل الاكسسوارات اللازمة من غطاء بلاستيك "]
[8,"Supply install, test and commission toilet tap with all its connections and necessary fittings and accessories.","Pcs",1,null,{"$f":"D21*E21","v":0}]
[null,"تركيب حنفية مع جميع الاكسسوارات"]
[9,"Supply install, test and commission flushing hose pipe set 1/2\" internal diameter for WC, with rubber hose and chrome angle valve with all its connections and necessary fittings and accessories.","Pcs",1,null,{"$f":"D23*E23","v":0}]
[null,"تقديم وتركيب نربيش صحي (شطافة) مع جميع التوصيلات والاكسسوارات"]
[10,"Supply and Intallation of sink mixer of approved quality with all its connections.","Pcs",1,null,{"$f":"D25*E25","v":0}]
[null,"تقديم وتركيب خلاط مجلى مع كل التوصيلات"]
[11,"Supply and install Shower mixer medium quality with telephone shower.                  ","Pcs",1,null,{"$f":"D27*E27","v":0}]
[null,"تقديم وتركيب خلاط دوش مع كل التوصيلات والاكسسوارات "]
[12,"Supply, install, test and commission trapped gully 4 inches including handhole 20x20cm with stainless steel cover including builders works such as drilling in concrete, fixing in slab by using high compressive mortar, levelling and connecting to the drain network.                                      ","Pcs",2,null,{"$f":"D29*E29","v":0}]
[null,"تقديم وتركيب ريكار4\",  20*20 سم مع غطاء ستانلس مع كل ما يلزم من حفر وتثبيت في الارضية وتوصيل الى الشبكة الصحية"]
[13,"Supply, install, test and commission drainage UPVC pipes 4 inches, PN 16bar, including all needed accessories (coupling, Tee, Elbow, seal ring, etc.). Works include connection to the existing manhole including builders works.\nOn slab installation to be protected with concrete, underceiling installation to have metallic support, vertical installation to be fixed on wall by clamps with anchors. Slope in flow direction should exceed 1cm per meter.","m",3,null,{"$f":"D31*E31","v":0}]
[null,"تقديم وتركيب مجرور بلاستك UPVC 4'PN16barمع جميع ما يلزم من اكسسوارات لتوصيله الى الريكار العام"]
[14,"Supply, install, test and commission PVC Water tank NTG 3 layer 1000 liters (certified for drinking water), light grey, complete with float valve, brass valves, overflow pipe, hard PVC cover including inlet & outlet connections and all necessary fittings and accessories.","Pcs",1,null,{"$f":"D33*E33","v":0}]
[null,"تقديم وتركيب خزان مياة 3طبقات NTG سعة 1000لتر لمياه الشرب لون رمادي فاتح مع طواشة وسكر وغطاء وجميع التوصيلات"]
[15,"Supply install, test and commission PPR network pipes 16mm for hot and cold water supply including all necessary fittings and accessories.تمديد شبكة مياه باردة وساخنة مع جميع الاكسسوارات اللازمة","Lm",6,null,{"$f":"D35*E35","v":0}]
["Electrical Work (اعمال كهربائية)"]
[16,"Supply and Apply Lighting, power socket or switch point including all conduiting, wiring, boxes, covers, with all necessary accessories and related works complete to engineer's approval all to be imbedded in walls including making good plaster and paint.     أعمال انارة وتتضمن تركيب مفاتيح وبرايزوعلب مع أغطية واسلاك وجميع الاكسسوارات على ان تكون جميع الاعمال مخفية داخل الجدران مع كافة اعمل الورقة والدهان اللازمة لاخفاء العيوب ","Pcs",6,null,{"$f":"D37*E37","v":0}]
[17,"Supply, Install, test and commission electrical Water heater 80L, 2mm galvanized bottle with resistance 1000w, with thermal insulation, thermostat, thermometer, with complete connections to water and power supply (with 10v circuit breaker) including all necessary fittings, supports and accessories. Proper removal of existing damaged heater (if any) to be also included.","Pcs",1,null,{"$f":"D38*E38","v":0}]
[null,"تركيب سخان 80 ليتر 2ملم 1000W معزول منظم حرارة وساعة حرارة مع جميع التوصيلات الكهربائية(ديجنتير 10 فولت) بالاضافة لتوصيل الماء"]
["Aluminum Work (اعمال المنيوم)"]
[18,"Supply and Install Aluminum door overall size 80cmx200cm with frame and all its accessories including tiling of door opening.\n   تركيب باب المنيوم مع جميع الاكسسوارات مع تبليط دائر فتحة الباب  ","pcs",1,null,{"$f":"D41*E41","v":0}]
[{"$nulls":4},"Total",{"$f":"SUM(F4:F41)","v":0}]

{"sheet":"OS-49A","index":23,"n_rows":57,"n_cols":6,"rows_kept":57,"merged":[[0,0,0,2],[0,3,0,5],[2,0,2,5],[4,0,4,5],[6,0,6,5],[8,0,8,5],[9,0,10,0],[9,2,10,2],[9,3,10,3],[9,4,10,4],[9,5,10,5],[11,0,12,0],[11,2,12,2],[11,3,12,3],[11,4,12,4],[11,5,12,5],[13,0,13,5],[14,0,15,0],[14,2,15,2],[14,3,15,3],[14,4,15,4],[14,5,15,5],[16,0,17,0],[16,2,17,2],[16,3,17,3],[16,4,17,4],[16,5,17,5],[18,0,18,5],[19,0,20,0],[19,2,20,2],[19,3,20,3],[19,4,20,4],[19,5,20,5],[21,0,21,5],[22,0,23,0],[22,2,23,2],[22,3,23,3],[22,4,23,4],[22,5,23,5],[24,0,25,0],[24,2,25,2],[24,3,25,3],[24,4,25,4],[24,5,25,5],[26,0,27,0],[26,2,27,2],[26,3,27,3],[26,4,27,4],[26,5,27,5],[28,0,29,0],[28,2,29,2],[28,3,29,3],[28,4,29,4],[28,5,29,5],[30,0,31,0],[30,2,31,2],[30,3,31,3],[30,4,31,4],[30,5,31,5],[32,0,33,0],[32,2,33,2],[32,3,33,3],[32,4,33,4],[32,5,33,5],[34,0,35,0],[34,2,35,2],[34,3,35,3],[34,4,35,4],[34,5,35,5],[36,0,37,0],[36,2,37,2],[36,3,37,3],[36,4,37,4],[36,5,37,5],[38,0,39,0],[38,2,39,2],[38,3,39,3],[38,4,39,4],[38,5,39,5],[40,0,41,0],[40,2,41,2],[40,3,41,3],[40,4,41,4],[40,5,41,5],[43,0,43,5],[45,0,46,0],[45,2,46,2],[45,3,46,3],[45,4,46,4],[45,5,46,5],[47,0,47,5],[48,0,49,0],[48,2,49,2],[48,3,49,3],[48,4,49,4],[48,5,49,5],[50,0,51,0],[50,2,51,2],[50,3,51,3],[50,4,51,4],[50,5,51,5],[53,0,53,5],[54,0,55,0],[54,2,55,2],[54,3,55,3],[54,4,55,4],[54,5,55,5]]}
["Name: Kawsara Turkmani",null,null,"Code: OS-49A"]
["Item","Description","Unit","Quantity","U.Price","T.Price"]
["Demolishing Work (اعمال الهدم و ازالة الردميات)"]
[1,"Carefully demolish concrete block wall complete with removing all material arising from site and make good surrounding finish. Remove all existing debris from site.\n تكسير جدران من احجار الباطون ونقل الردم الى المكب","m2",3,null,{"$f":"E4*D4","v":0}]
["Concrete Work (اعمال باطون)"]
[2,"Reinforced concrete works (15cm thick concrete ceiling slab), including high yield steel reinforcement to Engineer's approval.\n سقف 15سم) أعمال باطون مسلح تتضمن تسليح حديد) ","m2",15,null,{"$f":"D6*E6","v":0}]
["Block Work (اعمال حجر)"]
[3,"Supply and install Hollow blocks walls 10 cm including sand-cement mortar, mesh, accessories, angle beads…...تقديم وعمار حجر10 سم مع كل ما يلزم من مواد      ","m2",10,null,{"$f":"D8*E8","v":0}]
["Wood and other Works (اعمال خشبية وغيره)"]
[4,"Supply and install single leaf Wooden door (size 100cmx200cm) including subframe, Frame (Swedish), with complete ironmongery, Hinges, Handle and Keylock of approved quality (lock to be yale or equivalent) complete with painting by 2 coats of oil paint. All the wooden works to be initially cured and treated to resist humidity and insects.\nRepair, making good in case of damage to the surrounding walls to be included.","Pcs",3,null,{"$f":"D10*E10","v":0}]
[null,"تقديم وتركيب باب خشب قياس 100*200سم مع الاطار (سويد) مع جميع الاكسسوارات . مسكة , قفل يال أو ما يعادله مع دهان طبقتين من الدهان الزيتي ومعالجة كل الاضرار حول الباب في حال حصولها اثناء التركيب"]
[5,"Supply and Install Wooden partition with plywood 18mm. 1 sheet of black plywood 18mm, dimension equal to 244cmx122cm . Plywood sheets will be fixed vertically or horizontally between Wooden columns/beams of dimensions 400x8x8cm.","m2",10,null,{"$f":"D12*E12","v":0}]
[null,"تقديم وتركيب فواصل خشبيّة"]
["Tiling Work (اعمال بلاط)"]
[6,"Supply and Apply Ceramic tiles to floors and walls in toilets only, including surface preparation, backing mortar/adhesive, grouting between tiles and any other application or materials needed to properly complete the works to the engineer's approval.","m2",30,null,{"$f":"D15*E15","v":0}]
[null,"تقديم وتركيب بلاط سيراميك في الحمامات فقط,بعد تهيئة الارضية وحسب تعليمات المهندس"]
[7,"Supply and Install marble Threshold 10cm width and 2cm thickness  including mortar backing.","lm",2,null,{"$f":"D17*E17","v":0}]
[null," تقديم وتركيب برطاش من الرخام 2*10 سم"]
["Plastering Work (اعمال ورقة)"]
[8,"Supply and apply Internal plastering works to walls 15 to 20mm thick including steel mesh and corner/opening stops and accessories, curing, scaffolding, spraying when needed, filling of existing cavities, smoothing and any other application needed for the proper completion of the works.","m2",15,null,{"$f":"D20*E20","v":0}]
[null,"أعمال ورقة داخلية على الجدران 15-20ملم مع شبك معدني حسب توجيهات المهندس "]
["Sanitary Work (اعمال صحية)"]
[9,"Supply install, test and commission European WC seat Lecico (Saidon type) or equivalent complete with flushing cistern, plastic cover, water and sewer connections, with all necessary fittings and accessories. Adjacent walls and floors to be reinstated to their original condition in case of any damages. ","Pcs",1,null,{"$f":"D23*E23","v":0}]
[null,"تقديم وتركيب كرسي حمام أوروبي (صيدون أو ما يعادلها )مع جميع التوصيلات من قساطل PPR و4\"UPVC مع كل الاكسسوارات اللازمة من غطاء بلاستيك "]
[10,"Supply install, test and commission toilet tap with all its connections and necessary fittings and accessories.","Pcs",1,null,{"$f":"D25*E25","v":0}]
[null,"تركيب حنفية مع جميع الاكسسوارات"]
[11,"Supply install, test and commission flushing hose pipe set 1/2\" internal diameter for WC, with rubber hose and chrome angle valve with all its connections and necessary fittings and accessories.","Pcs",1,null,{"$f":"D27*E27","v":0}]
[null,"تقديم وتركيب نربيش صحي (شطافة) مع جميع التوصيلات والاكسسوارات"]
[12,"Supply and Installation of wash basin mixer with all its connections.","Pcs",1,null,{"$f":"D29*E29","v":0}]
[null,"تقديم وتركيب خلاط مغسلة مع كل التوصيلات"]
[13,"Supply and Intallation of sink mixer of approved quality with all its connections.","Pcs",1,null,{"$f":"D31*E31","v":0}]
[null,"تقديم وتركيب خلاط مجلى مع كل التوصيلات"]
[14,"Supply and install Shower mixer medium quality with telephone shower.                  ","Pcs",1,null,{"$f":"D33*E33","v":0}]
[null,"تقديم وتركيب خلاط دوش مع كل التوصيلات والاكسسوارات "]
[15,"Supply, install, test and commission Wash bassin Lecico make or equivalent with all its connections to water supply and drainage connection to the sewage network with all necessary fittings and accessories (including steel support, chrome outlet, porcelain shelf, etc.). Adjacent walls and floors to be reinstated to their original condition in case of any damages.","Pcs",1,null,{"$f":"D35*E35","v":0}]
[null,"تقديم وتركيب مغسلة ليسيكو أو ما يعادلها مع كل التوصيلات المائية والصحية بالاضافة لرف بورسلان وخلاط"]
[16,"Supply, install, test and commission trapped gully 4 inches including handhole 20x20cm with stainless steel cover including builders works such as drilling in concrete, fixing in slab by using high compressive mortar, levelling and connecting to the drain network.                                      ","Pcs",4,null,{"$f":"D37*E37","v":0}]
[null,"تقديم وتركيب ريكار4\",  20*20 سم مع غطاء ستانلس مع كل ما يلزم من حفر وتثبيت في الارضية وتوصيل الى الشبكة الصحية"]
[17,"Supply, install, test and commission drainage UPVC pipes 4 inches, PN 16bar, including all needed accessories (coupling, Tee, Elbow, seal ring, etc.). Works include connection to the existing manhole including builders works.\nOn slab installation to be protected with concrete, underceiling installation to have metallic support, vertical installation to be fixed on wall by clamps with anchors. Slope in flow direction should exceed 1cm per meter.","m",10,null,{"$f":"D39*E39","v":0}]
[null,"تقديم وتركيب مجرور بلاستك UPVC 4'PN16barمع جميع ما يلزم من اكسسوارات لتوصيله الى الريكار العام"]
[18,"Supply, install, test and commission PVC Water tank NTG 3 layer 1000 liters (certified for drinking water), light grey, complete with float valve, brass valves, overflow pipe, hard PVC cover including inlet & outlet connections and all necessary fittings and accessories.","Pcs",1,null,{"$f":"D41*E41","v":0}]
[null,"تقديم وتركيب خزان مياة 3طبقات NTG سعة 1000لتر لمياه الشرب لون رمادي فاتح مع طواشة وسكر وغطاء وجميع التوصيلات"]
[19,"Supply install, test and commission PPR network pipes 16mm for hot and cold water supply including all necessary fittings and accessories.تمديد شبكة مياه باردة وساخنة مع جميع الاكسسوارات اللازمة","Lm",8,null,{"$f":"D43*E43","v":0}]
["Electrical Work (اعمال كهربائية)"]
[20,"Supply and Apply Lighting, power socket or switch point including all conduiting, wiring, boxes, covers, with all necessary accessories and related works complete to engineer's approval all to be imbedded in walls including making good plaster and paint.     أعمال انارة وتتضمن تركيب مفاتيح وبرايزوعلب مع أغطية واسلاك وجميع الاكسسوارات على ان تكون جميع الاعمال مخفية داخل الجدران مع كافة اعمل الورقة والدهان اللازمة لاخفاء العيوب ","Pcs",6,null,{"$f":"D45*E45","v":0}]
[21,"Supply, Install, test and commission electrical Water heater 80L, 2mm galvanized bottle with resistance 1000w, with thermal insulation, thermostat, thermometer, with complete connections to water and power supply (with 10v circuit breaker) including all necessary fittings, supports and accessories. Proper removal of existing damaged heater (if any) to be also included.","Pcs",1,null,{"$f":"D46*E46","v":0}]
[null,"تركيب سخان 80 ليتر 2ملم 1000W معزول منظم حرارة وساعة حرارة مع جميع التوصيلات الكهربائية(ديجنتير 10 فولت) بالاضافة لتوصيل الماء"]
["Aluminum Work (اعمال المنيوم)"]
[22,"Supply and Install Accordeon hard plastic Door, overall size 80cmx200cm, complete with all material and accessories needed and making good around the frame.","pcs",1,null,{"$f":"D49*E49","v":0}]
[null,"تقديم ويركيب باب أكورديم 80*200سم مع كافة الاكسسوارات"]
[23,"Supply and Install Aluminum single glazed window with glass, (Sidem 2000) with frame, and all accessories needed for installation and proper use (Folda 1.6mm) including window tile sills.","m2",0.5,null,{"$f":"D51*E51","v":0}]
[null,"تركيب شباك المنيوم سيدم 2000 (1.6ملم) مع زجاج مفرد مع شعائر بلاط حول دائر الشباك"]
[24,"Supply and Install Aluminum door overall size 80cmx200cm with frame and all its accessories including tiling of door opening.\n   تركيب باب المنيوم مع جميع الاكسسوارات مع تبليط دائر فتحة الباب  ","pcs",1,null,{"$f":"D53*E53","v":0}]
["Painting Work (اعمال دهان)"]
[25,"Painting the ceiling and walls with two coats of paint (base and mat eggshell). Painting should be done after scraping and cleaning the surface and applying putty coats where necessary.","m2",20,null,{"$f":"E55*D55","v":0}]
[null,"دهان الجدران والاسقف وجهين (الاول أساس) بعد تنظيف وحف ووضع معجونة حيث يلزم"]
[{"$nulls":4},"Total",{"$f":"SUM(F4:F56)","v":0}]

{"sheet":"OS-51A","index":24,"n_rows":16,"n_cols":6,"rows_kept":16,"merged":[[0,0,0,2],[0,3,0,5],[2,0,2,5],[4,0,4,5],[6,0,6,5],[7,0,8,0],[7,2,8,2],[7,3,8,3],[7,4,8,4],[7,5,8,5],[9,0,9,5],[12,0,12,5],[13,0,14,0],[13,2,14,2],[13,3,14,3],[13,4,14,4],[13,5,14,5]]}
["Name: Mahmoud Moustafa el Qors",null,null,"Code: OS-51A"]
["Item","Description","Unit","Quantity","U.Price","T.Price"]
["Demolishing Work (اعمال الهدم و ازالة الردميات)"]
[1,"Carefully demolish existing damaged concrete slab complete with removing all steel reinforcement and material arising from site.\n تكسير ارضية من الباطون المسلّح ونقل الردم الى المكب","m2",60,null,{"$f":"E4*D4","v":0}]
["Concrete Work (اعمال باطون)"]
[2,"Reinforced concrete works (15cm thick concrete ceiling slab), including high yield steel reinforcement to Engineer's approval.\n سقف 15سم) أعمال باطون مسلح تتضمن تسليح حديد) ","m2",60,null,{"$f":"D6*E6","v":0}]
["Waterproofing Work (اعمال منع النشّ)"]
[3,"Supply, apply and test roof waterproofing using PU material, the works including but not limited to cleaning, surface preparation works, drying, filling cavities with mortar, applying primer, angle fillets, plaster works for parapets and any other materials needed prior to the proper application of 3 layers of PU according to the manufacturer's data sheet and method statement and to the Engineer's approval.","m2",60,null,{"$f":"D8*E8","v":0}]
[null,"تقديم ودهان مواد عازلة PU على الاسطح بعد تنظيفها وتهيئة السطح لاعمال العزل واعمال ورقة حسب توجيهات المهندس"]
["Electrical Work (اعمال كهربائية)"]
[4,"Supply and Apply Lighting, power socket or switch point including all conduiting, wiring, boxes, covers, with all necessary accessories and related works complete to engineer's approval all to be imbedded in walls including making good plaster and paint.     أعمال انارة وتتضمن تركيب مفاتيح وبرايزوعلب مع أغطية واسلاك وجميع الاكسسوارات على ان تكون جميع الاعمال مخفية داخل الجدران مع كافة اعمل الورقة والدهان اللازمة لاخفاء العيوب ","Unit",4,null,{"$f":"D11*E11","v":0}]
[5,"Supply and Apply circuit breaker including all conduiting, wiring, with all necessary accessories and related works complete to engineer's approval. تركيب مفاتيح رئيسية (ديجنتيرات) مع التمديدات اللازمة","Unit",1,null,{"$f":"D12*E12","v":0}]
["Painting Work (اعمال دهان)"]
[6,"Painting the ceiling and walls with two coats of paint (base and mat eggshell). Painting should be done after scraping and cleaning the surface and applying putty coats where necessary.","m2",60,null,{"$f":"E14*D14","v":0}]
[null,"دهان الجدران والاسقف وجهين (الاول أساس) بعد تنظيف وحف ووضع معجونة حيث يلزم"]
[{"$nulls":4},"Total",{"$f":"SUM(F4:F15)","v":0}]

{"sheet":"OS-52A","index":25,"n_rows":45,"n_cols":6,"rows_kept":45,"merged":[[0,0,0,2],[0,3,0,5],[2,0,2,5],[4,0,4,5],[6,0,6,5],[7,0,8,0],[7,2,8,2],[7,3,8,3],[7,4,8,4],[7,5,8,5],[9,0,9,5],[10,0,11,0],[10,2,11,2],[10,3,11,3],[10,4,11,4],[10,5,11,5],[12,0,13,0],[12,2,13,2],[12,3,13,3],[12,4,13,4],[12,5,13,5],[14,0,14,5],[15,0,16,0],[15,2,16,2],[15,3,16,3],[15,4,16,4],[15,5,16,5],[17,0,18,0],[17,2,18,2],[17,3,18,3],[17,4,18,4],[17,5,18,5],[19,0,19,5],[20,0,21,0],[20,2,21,2],[20,3,21,3],[20,4,21,4],[20,5,21,5],[22,0,23,0],[22,2,23,2],[22,3,23,3],[22,4,23,4],[22,5,23,5],[25,0,25,5],[26,0,27,0],[26,2,27,2],[26,3,27,3],[26,4,27,4],[26,5,27,5],[28,0,29,0],[28,2,29,2],[28,3,29,3],[28,4,29,4],[28,5,29,5],[30,0,31,0],[30,2,31,2],[30,3,31,3],[30,4,31,4],[30,5,31,5],[33,0,33,5],[34,0,35,0],[34,2,35,2],[34,3,35,3],[34,4,35,4],[34,5,35,5],[37,0,37,5],[38,0,39,0],[38,2,39,2],[38,3,39,3],[38,4,39,4],[38,5,39,5],[40,0,41,0],[40,2,41,2],[40,3,41,3],[40,4,41,4],[40,5,41,5],[42,0,42,5]]}
["Name: Mohamad Hassan el Zaatari",null,null,"Code: OS-52A"]
["Item","Description","Unit","Quantity","U.Price","T.Price"]
["Demolishing Work (اعمال الهدم و ازالة الردميات)"]
[1,"Carefully demolish floor tiles, complete with removing all material arising from site.\n تكسير ارضيات بلاط ونقل الردم الى المكب","m2",4,null,{"$f":"E4*D4","v":0}]
["Concrete Work (اعمال باطون)"]
[2,"Repair of ceiling concrete surfaces including treatment of rusted steel, removal of damaged concrete, treatment of concrete surface and making good as necessary (grout, plaster, etc.) and to the Engineer's approval.\nأعمال تصليح أسقف باطون مع معالجة الحديد و ازالة البطون (العاطل ومعالجة الأسقف بالمواد المناسبة (غراوت, باطون, الخ حسب توجيهات المهندس ","m2",20,null,{"$f":"E6*D6","v":0}]
["Waterproofing Work (اعمال منع النشّ)"]
[3,"Supply, apply and test roof waterproofing using PU material, the works including but not limited to cleaning, surface preparation works, drying, filling cavities with mortar, applying primer, angle fillets, plaster works for parapets and any other materials needed prior to the proper application of 3 layers of PU according to the manufacturer's data sheet and method statement and to the Engineer's approval.","m2",60,null,{"$f":"D8*E8","v":0}]
[null,"تقديم ودهان مواد عازلة PU على الاسطح بعد تنظيفها وتهيئة السطح لاعمال العزل واعمال ورقة حسب توجيهات المهندس"]
["Wood and other Works (اعمال خشبية وغيره)"]
[4,"Supply and install Wooden window including Frame, glass panes, with complete ironmongery, Hinges, Handles  of approved quality complete with painting by 2 coats of oil paint. All the wooden works to be initially cured and treated to resist humidity and insects.\nRepair, making good in case of damage to the surrounding walls to be included. Window tile sills also to be included","m2",2,null,{"$f":"D11*E11","v":0}]
[null,"تقديم وتركيب شبّاك خشب مع الاطار مع جميع الاكسسوارات . مسكة  مع دهان طبقتين من الدهان الزيتي ومعالجة كل الاضرار حول الباب في حال حصولها اثناء التركيب"]
[5,"Supply and Install Wooden louver shutters for old windows.","m2",3.5,null,{"$f":"D13*E13","v":0}]
[null,"تقديم وتركيب مصاريع خشبيّة"]
["Tiling Work (اعمال بلاط)"]
[6,"Supply and Apply Ceramic tiles to floors and walls in toilets only, including surface preparation, backing mortar/adhesive, grouting between tiles and any other application or materials needed to properly complete the works to the engineer's approval.","m2",4,null,{"$f":"D16*E16","v":0}]
[null,"تقديم وتركيب بلاط سيراميك في الحمامات فقط,بعد تهيئة الارضية وحسب تعليمات المهندس"]
[7,"Supply and Install marble Threshold 10cm width and 2cm thickness  including mortar backing.","lm",1,null,{"$f":"D18*E18","v":0}]
[null," تقديم وتركيب برطاش من الرخام 2*10 سم"]
["Plastering Work (اعمال ورقة)"]
[8,"Supply and apply Internal plastering works to walls 15 to 20mm thick including steel mesh and corner/opening stops and accessories, curing, scaffolding, spraying when needed, filling of existing cavities, smoothing and any other application needed for the proper completion of the works.","m2",45,null,{"$f":"D21*E21","v":0}]
[null,"أعمال ورقة داخلية على الجدران 15-20ملم مع شبك معدني حسب توجيهات المهندس "]
[9,"Supply and Apply External plastering works to walls 15 to 20mm thick including steel mesh and corner/opening stops and accessories, curing, scaffolding, spraying when needed, filling of existing cavities, smoothing and any other application needed for the proper completion of the works.","m2",40]
[null,"أعمال ورقة خارجية 15-20ملم مع شبك معدني حسب توجيهات المهندس "]
[10,"Treatment of existing cracks (internally or externally) by breaking out and removing any loose and defective parts, replastering using wire mesh where necessary, applying anti-leakage putty and paint, then making good finish to engineer's approval.  معالجة التشققات الداخلية والخارجية بواسطة توسيعها وتنظيفها وحشوها بمواد مناسبة واستعمال مايلزم من مواد حسب تعليمات المهندس","Lm",20,null,{"$f":"D25*E25","v":0}]
["Sanitary Work (اعمال صحية)"]
[11,"Supply and install Shower mixer medium quality with telephone shower.                  ","Pcs",1,null,{"$f":"D27*E27","v":0}]
[null,"تقديم وتركيب خلاط دوش مع كل التوصيلات والاكسسوارات "]
[12,"Supply, install, test and commission trapped gully 4 inches including handhole 20x20cm with stainless steel cover including builders works such as drilling in concrete, fixing in slab by using high compressive mortar, levelling and connecting to the drain network.                                      ","Pcs",2,null,{"$f":"D29*E29","v":0}]
[null,"تقديم وتركيب ريكار4\",  20*20 سم مع غطاء ستانلس مع كل ما يلزم من حفر وتثبيت في الارضية وتوصيل الى الشبكة الصحية"]
[13,"Supply, install, test and commission drainage UPVC pipes 4 inches, PN 16bar, including all needed accessories (coupling, Tee, Elbow, seal ring, etc.). Works include connection to the existing manhole including builders works.\nOn slab installation to be protected with concrete, underceiling installation to have metallic support, vertical installation to be fixed on wall by clamps with anchors. Slope in flow direction should exceed 1cm per meter.","m",5,null,{"$f":"D31*E31","v":0}]
[null,"تقديم وتركيب مجرور بلاستك UPVC 4'PN16barمع جميع ما يلزم من اكسسوارات لتوصيله الى الريكار العام"]
[14,"Supply install, test and commission PPR network pipes 16mm for hot and cold water supply including all necessary fittings and accessories.تمديد شبكة مياه باردة وساخنة مع جميع الاكسسوارات اللازمة","Lm",6,null,{"$f":"D33*E33","v":0}]
["Aluminum Work (اعمال المنيوم)"]
[15,"Supply and Install Aluminum single glazed window with glass, (Sidem 2000) with frame, and all accessories needed for installation and proper use (Folda 1.6mm) including window tile sills.","m2",1,null,{"$f":"D35*E35","v":0}]
[null,"تركيب شباك المنيوم سيدم 2000 (1.6ملم) مع زجاج مفرد مع شعائر بلاط حول دائر الشباك"]
[16,"Supply and Install 6mm tempered glass panes for existing doors and windows.تركيب زجاج 6ملم للابواب والشبابيك الموجودة","m2",2,null,{"$f":"D37*E37","v":0}]
["Painting Work (اعمال دهان)"]
[17,"Painting the ceiling and walls with two coats of paint (base and mat eggshell). Painting should be done after scraping and cleaning the surface and applying putty coats where necessary.","m2",80,null,{"$f":"E39*D39","v":0}]
[null,"دهان الجدران والاسقف وجهين (الاول أساس) بعد تنظيف وحف ووضع معجونة حيث يلزم"]
[18,"External waterproof paint for walls with two coats of paint (base and mat eggshell). Painting should be done after scraping and cleaning the surface and applying putty coats where necessary.","m2",40,null,{"$f":"E41*D41","v":0}]
[null,"دهان خارجي الجدران وجهين (الاول أساس) بعد تنظيف وحف ووضع معجونة حيث يلزم"]
["Unforseen Works (أعمال غير منظورة)"]
[19,"Support old ceiling made of wood beams/planks and stuffed with soil.\nتصليح و تدعيم سقف خشب وطين قديم","m2",40,null,{"$f":"D44*E44","v":0}]
[{"$nulls":4},"Total",{"$f":"SUM(F4:F44)","v":0}]

{"sheet":"OS-54A","index":26,"n_rows":64,"n_cols":6,"rows_kept":64,"merged":[[0,0,0,2],[0,3,0,5],[2,0,2,5],[5,0,5,5],[8,0,8,5],[10,0,10,5],[11,0,12,0],[11,2,12,2],[11,3,12,3],[11,4,12,4],[11,5,12,5],[13,0,13,5],[14,0,15,0],[14,2,15,2],[14,3,15,3],[14,4,15,4],[14,5,15,5],[16,0,17,0],[16,2,17,2],[16,3,17,3],[16,4,17,4],[16,5,17,5],[18,0,18,5],[19,0,20,0],[19,2,20,2],[19,3,20,3],[19,4,20,4],[19,5,20,5],[21,0,21,5],[22,0,23,0],[22,2,23,2],[22,3,23,3],[22,4,23,4],[22,5,23,5],[24,0,25,0],[24,2,25,2],[24,3,25,3],[24,4,25,4],[24,5,25,5],[26,0,26,5],[27,0,28,0],[27,2,28,2],[27,3,28,3],[27,4,28,4],[27,5,28,5],[29,0,30,0],[29,2,30,2],[29,3,30,3],[29,4,30,4],[29,5,30,5],[31,0,31,5],[32,0,33,0],[32,2,33,2],[32,3,33,3],[32,4,33,4],[32,5,33,5],[34,0,35,0],[34,2,35,2],[34,3,35,3],[34,4,35,4],[34,5,35,5],[36,0,37,0],[36,2,37,2],[36,3,37,3],[36,4,37,4],[36,5,37,5],[38,0,39,0],[38,2,39,2],[38,3,39,3],[38,4,39,4],[38,5,39,5],[40,0,41,0],[40,2,41,2],[40,3,41,3],[40,4,41,4],[40,5,41,5],[42,0,43,0],[42,2,43,2],[42,3,43,3],[42,4,43,4],[42,5,43,5],[44,0,45,0],[44,2,45,2],[44,3,45,3],[44,4,45,4],[44,5,45,5],[46,0,47,0],[46,2,47,2],[46,3,47,3],[46,4,47,4],[46,5,47,5],[48,0,49,0],[48,2,49,2],[48,3,49,3],[48,4,49,4],[48,5,49,5],[51,0,51,5],[52,0,53,0],[52,2,53,2],[52,3,53,3],[52,4,53,4],[52,5,53,5],[54,0,54,5],[55,0,56,0],[55,2,56,2],[55,3,56,3],[55,4,56,4],[55,5,56,5],[58,0,58,5],[59,0,60,0],[59,2,60,2],[59,3,60,3],[59,4,60,4],[59,5,60,5],[61,0,61,5]]}
["Name: Moustafa Jammal ",null,null,"Code: OS-54A"]
["Item","Description","Unit","Quantity","U.Price","T.Price"]
["Demolishing Work (اعمال الهدم و ازالة الردميات)"]
[1,"Carefully demolish concrete block wall complete with removing all material arising from site and make good surrounding finish. Remove all existing debris from site.\n تكسير جدران من احجار الباطون ونقل الردم الى المكب","m2",3,null,{"$f":"E4*D4","v":0}]
[2,"Dismantle and remove from site existing wooden false ceiling and wall cladding including supports.\nفك سقف وحائط الخشب المستعار وعناصر الدعم القديمة وازالتها من الموقع","m2",16,null,{"$f":"D5*E5","v":0}]
["Concrete Work (اعمال باطون)"]
[3,"Reinforced concrete works (15cm thick concrete ceiling slab), including high yield steel reinforcement to Engineer's approval.\n سقف 15سم) أعمال باطون مسلح تتضمن تسليح حديد) ","m2",2,null,{"$f":"D7*E7","v":0}]
[4,"Repair of ceiling concrete surfaces including treatment of rusted steel, removal of damaged concrete, treatment of concrete surface and making good as necessary (grout, plaster, etc.) and to the Engineer's approval.\nأعمال تصليح أسقف باطون مع معالجة الحديد و ازالة البطون (العاطل ومعالجة الأسقف بالمواد المناسبة (غراوت, باطون, الخ حسب توجيهات المهندس ","m2",10,null,{"$f":"E8*D8","v":0}]
["Block Work (اعمال حجر)"]
[5,"Supply and install Hollow blocks walls 10 cm including sand-cement mortar, mesh, accessories, angle beads…...تقديم وعمار حجر10 سم مع كل ما يلزم من مواد      ","m2",7,null,{"$f":"D10*E10","v":0}]
["Waterproofing Work (اعمال منع النشّ)"]
[6,"Supply, apply and test roof waterproofing using PU material, the works including but not limited to cleaning, surface preparation works, drying, filling cavities with mortar, applying primer, angle fillets, plaster works for parapets and any other materials needed prior to the proper application of 3 layers of PU according to the manufacturer's data sheet and method statement and to the Engineer's approval.","m2",6,null,{"$f":"D12*E12","v":0}]
[null,"تقديم ودهان مواد عازلة PU على الاسطح بعد تنظيفها وتهيئة السطح لاعمال العزل واعمال ورقة حسب توجيهات المهندس"]
["Wood and other Works (اعمال خشبية وغيره)"]
[7,"Supply and install single leaf Wooden door (size 100cmx200cm) including subframe, Frame (Swedish), with complete ironmongery, Hinges, Handle and Keylock of approved quality (lock to be yale or equivalent) complete with painting by 2 coats of oil paint. All the wooden works to be initially cured and treated to resist humidity and insects.\nRepair, making good in case of damage to the surrounding walls to be included.","Pcs",1,null,{"$f":"D15*E15","v":0}]
[null,"تقديم وتركيب باب خشب قياس 100*200سم مع الاطار (سويد) مع جميع الاكسسوارات . مسكة , قفل يال أو ما يعادله مع دهان طبقتين من الدهان الزيتي ومعالجة كل الاضرار حول الباب في حال حصولها اثناء التركيب"]
[8,"Supply and install Wooden window including Frame, glass panes, with complete ironmongery, Hinges, Handles  of approved quality complete with painting by 2 coats of oil paint. All the wooden works to be initially cured and treated to resist humidity and insects.\nRepair, making good in case of damage to the surrounding walls to be included. Window tile sills also to be included","m2",2,null,{"$f":"D17*E17","v":0}]
[null,"تقديم وتركيب شبّاك خشب مع الاطار مع جميع الاكسسوارات . مسكة  مع دهان طبقتين من الدهان الزيتي ومعالجة كل الاضرار حول الباب في حال حصولها اثناء التركيب"]
["Metal Work (اعمال حديدية)"]
[9,"Supply and install structural steel I/H beams to support concrete ceiling slabs including all necessary fittings and accessories  needed to properly complete the works to the engineer's approval.","lm",5,null,{"$f":"D20*E20","v":0}]
[null,"تقديم وتركيب جسر حديد لتدعيم أسقف الباطون المسلّح"]
["Tiling Work (اعمال بلاط)"]
[10,"Supply and Apply Ceramic tiles to floors and walls in toilets only, including surface preparation, backing mortar/adhesive, grouting between tiles and any other application or materials needed to properly complete the works to the engineer's approval.","m2",24,null,{"$f":"D23*E23","v":0}]
[null,"تقديم وتركيب بلاط سيراميك في الحمامات فقط,بعد تهيئة الارضية وحسب تعليمات المهندس"]
[11,"Supply and Install marble Threshold 10cm width and 2cm thickness  including mortar backing.","lm",1,null,{"$f":"D25*E25","v":0}]
[null," تقديم وتركيب برطاش من الرخام 2*10 سم"]
["Plastering Work (اعمال ورقة)"]
[12,"Supply and apply Internal plastering works to walls 15 to 20mm thick including steel mesh and corner/opening stops and accessories, curing, scaffolding, spraying when needed, filling of existing cavities, smoothing and any other application needed for the proper completion of the works.","m2",90,null,{"$f":"D28*E28","v":0}]
[null,"أعمال ورقة داخلية على الجدران 15-20ملم مع شبك معدني حسب توجيهات المهندس "]
[13,"Supply and Apply Internal plastering works to ceilings 15 to 20mm thick including steel mesh and corner/opening stops and accessories, curing, scaffolding, spraying when needed, filling of existing cavities, smoothing and any other application needed for the proper completion of the works.","m2",10,null,{"$f":"D30*E30","v":0}]
[null,"أعمال ورقة داخلية على الاسقف 15-20ملم مع شبك معدني حسب توجيهات المهندس "]
["Sanitary Work (اعمال صحية)"]
[14,"Supply install, test and commission European WC seat Lecico (Saidon type) or equivalent complete with flushing cistern, plastic cover, water and sewer connections, with all necessary fittings and accessories. Adjacent walls and floors to be reinstated to their original condition in case of any damages. ","Pcs",1,null,{"$f":"D33*E33","v":0}]
[null,"تقديم وتركيب كرسي حمام أوروبي (صيدون أو ما يعادلها )مع جميع التوصيلات من قساطل PPR و4\"UPVC مع كل الاكسسوارات اللازمة من غطاء بلاستيك "]
[15,"Supply install, test and commission flushing hose pipe set 1/2\" internal diameter for WC, with rubber hose and chrome angle valve with all its connections and necessary fittings and accessories.","Pcs",1,null,{"$f":"D35*E35","v":0}]
[null,"تقديم وتركيب نربيش صحي (شطافة) مع جميع التوصيلات والاكسسوارات"]
[16,"Supply and Installation of wash basin mixer with all its connections.","Pcs",1,null,{"$f":"D37*E37","v":0}]
[null,"تقديم وتركيب خلاط مغسلة مع كل التوصيلات"]
[17,"Supply and Intallation of sink mixer of approved quality with all its connections.","Pcs",1,null,{"$f":"D39*E39","v":0}]
[null,"تقديم وتركيب خلاط مجلى مع كل التوصيلات"]
[18,"Supply and install Shower mixer medium quality with telephone shower.                  ","Pcs",1,null,{"$f":"D41*E41","v":0}]
[null,"تقديم وتركيب خلاط دوش مع كل التوصيلات والاكسسوارات "]
[19,"Supply, install, test and commission Wash bassin Lecico make or equivalent with all its connections to water supply and drainage connection to the sewage network with all necessary fittings and accessories (including steel support, chrome outlet, porcelain shelf, etc.). Adjacent walls and floors to be reinstated to their original condition in case of any damages.","Pcs",1,null,{"$f":"D43*E43","v":0}]
[null,"تقديم وتركيب مغسلة ليسيكو أو ما يعادلها مع كل التوصيلات المائية والصحية بالاضافة لرف بورسلان وخلاط"]
[20,"Supply, install, test and commission stainless steel kitchen sink (over all size 50cmx100cm) with all its connections to water supply and drainage connection to the sewage network with all necessary fittings and accessories (including steel support, etc.). Adjacent walls and floors to be reinstated to their original condition in case of any damages.","pcs",1,null,{"$f":"D45*E45","v":0}]
[null,"تقديم وتركيب مجلى ستانلس ستيل مع كل التوصيلات المائية والصحية وخلاط مع قاعدة حديد"]
[21,"Supply, install, test and commission trapped gully 4 inches including handhole 20x20cm with stainless steel cover including builders works such as drilling in concrete, fixing in slab by using high compressive mortar, levelling and connecting to the drain network.                                      ","Pcs",3,null,{"$f":"D47*E47","v":0}]
[null,"تقديم وتركيب ريكار4\",  20*20 سم مع غطاء ستانلس مع كل ما يلزم من حفر وتثبيت في الارضية وتوصيل الى الشبكة الصحية"]
[22,"Supply, install, test and commission drainage UPVC pipes 4 inches, PN 16bar, including all needed accessories (coupling, Tee, Elbow, seal ring, etc.). Works include connection to the existing manhole including builders works.\nOn slab installation to be protected with concrete, underceiling installation to have metallic support, vertical installation to be fixed on wall by clamps with anchors. Slope in flow direction should exceed 1cm per meter.","m",8,null,{"$f":"D49*E49","v":0}]
[null,"تقديم وتركيب مجرور بلاستك UPVC 4'PN16barمع جميع ما يلزم من اكسسوارات لتوصيله الى الريكار العام"]
[23,"Supply install, test and commission PPR network pipes 16mm for hot and cold water supply including all necessary fittings and accessories.تمديد شبكة مياه باردة وساخنة مع جميع الاكسسوارات اللازمة","Lm",10,null,{"$f":"D51*E51","v":0}]
["Electrical Work (اعمال كهربائية)"]
[24,"Supply, Install, test and commission electrical Water heater 80L, 2mm galvanized bottle with resistance 1000w, with thermal insulation, thermostat, thermometer, with complete connections to water and power supply (with 10v circuit breaker) including all necessary fittings, supports and accessories. Proper removal of existing damaged heater (if any) to be also included.","Pcs",1,null,{"$f":"D53*E53","v":0}]
[null,"تركيب سخان 80 ليتر 2ملم 1000W معزول منظم حرارة وساعة حرارة مع جميع التوصيلات الكهربائية(ديجنتير 10 فولت) بالاضافة لتوصيل الماء"]
["Aluminum Work (اعمال المنيوم)"]
[25,"Supply and Install Aluminum single glazed window with glass, (Sidem 2000) with frame, and all accessories needed for installation and proper use (Folda 1.6mm) including window tile sills.","m2",0.5,null,{"$f":"D56*E56","v":0}]
[null,"تركيب شباك المنيوم سيدم 2000 (1.6ملم) مع زجاج مفرد مع شعائر بلاط حول دائر الشباك"]
[26,"Supply and Install Aluminum door overall size 80cmx200cm with frame and all its accessories including tiling of door opening.\n   تركيب باب المنيوم مع جميع الاكسسوارات مع تبليط دائر فتحة الباب  ","pcs",1,null,{"$f":"D58*E58","v":0}]
["Painting Work (اعمال دهان)"]
[27,"Painting the ceiling and walls with two coats of paint (base and mat eggshell). Painting should be done after scraping and cleaning the surface and applying putty coats where necessary.","m2",125,null,{"$f":"E60*D60","v":0}]
[null,"دهان الجدران والاسقف وجهين (الاول أساس) بعد تنظيف وحف ووضع معجونة حيث يلزم"]
["Unforseen Works (أعمال غير منظورة)"]
[28,"Repair and support old damaged ceiling made of wood beams/planks and stuffed with soil.\nتصليح و تدعيم سقف خشب وطين قديم","m2",16,null,{"$f":"D63*E63","v":0}]
[{"$nulls":4},"Total",{"$f":"SUM(F4:F63)","v":0}]

{"sheet":"OS-55A","index":27,"n_rows":22,"n_cols":6,"rows_kept":22,"merged":[[0,0,0,2],[0,3,0,5],[2,0,2,5],[4,0,4,5],[6,0,6,5],[7,0,8,0],[7,2,8,2],[7,3,8,3],[7,4,8,4],[7,5,8,5],[9,0,9,5],[10,0,11,0],[10,2,11,2],[10,3,11,3],[10,4,11,4],[10,5,11,5],[12,0,12,5],[14,0,14,5],[15,0,16,0],[15,2,16,2],[15,3,16,3],[15,4,16,4],[15,5,16,5],[17,0,18,0],[17,2,18,2],[17,3,18,3],[17,4,18,4],[17,5,18,5],[19,0,19,5]]}
["Name: Nazih Mohamad Jomaa",null,null,"Code: OS-55A"]
["Item","Description","Unit","Quantity","U.Price","T.Price"]
["Demolishing Work (اعمال الهدم و ازالة الردميات)"]
[1,"Dismantle and remove from site existing asbestos (eternit) sheet-layered roofs including existing steel beams or supports.\nفك الزينكو القديم وعناصر الحديد القديمة\nوازالتها من الموقع","m2",6,null,{"$f":"D4*E4","v":0}]
["Concrete Work (اعمال باطون)"]
[2,"Repair of ceiling concrete surfaces including treatment of rusted steel, removal of damaged concrete, treatment of concrete surface and making good as necessary (grout, plaster, etc.) and to the Engineer's approval.\nأعمال تصليح أسقف باطون مع معالجة الحديد و ازالة البطون (العاطل ومعالجة الأسقف بالمواد المناسبة (غراوت, باطون, الخ حسب توجيهات المهندس ","m2",6,null,{"$f":"E6*D6","v":0}]
["Waterproofing Work (اعمال منع النشّ)"]
[3,"Supply, apply and test roof waterproofing using PU material, the works including but not limited to cleaning, surface preparation works, drying, filling cavities with mortar, applying primer, angle fillets, plaster works for parapets and any other materials needed prior to the proper application of 3 layers of PU according to the manufacturer's data sheet and method statement and to the Engineer's approval.","m2",35,null,{"$f":"D8*E8","v":0}]
[null,"تقديم ودهان مواد عازلة PU على الاسطح بعد تنظيفها وتهيئة السطح لاعمال العزل واعمال ورقة حسب توجيهات المهندس"]
["Wood and other Works (اعمال خشبية وغيره)"]
[4,"Supply and install Wooden window including Frame, glass panes, with complete ironmongery, Hinges, Handles  of approved quality complete with painting by 2 coats of oil paint. All the wooden works to be initially cured and treated to resist humidity and insects.\nRepair, making good in case of damage to the surrounding walls to be included. Window tile sills also to be included","m2",8,null,{"$f":"D11*E11","v":0}]
[null,"تقديم وتركيب شبّاك خشب مع الاطار مع جميع الاكسسوارات . مسكة  مع دهان طبقتين من الدهان الزيتي ومعالجة كل الاضرار حول الباب في حال حصولها اثناء التركيب"]
["Plastering Work (اعمال ورقة)"]
[5,"Treatment of existing cracks (internally or externally) by breaking out and removing any loose and defective parts, replastering using wire mesh where necessary, applying anti-leakage putty and paint, then making good finish to engineer's approval.  معالجة التشققات الداخلية والخارجية بواسطة توسيعها وتنظيفها وحشوها بمواد مناسبة واستعمال مايلزم من مواد حسب تعليمات المهندس","Lm",40,null,{"$f":"D14*E14","v":0}]
["Painting Work (اعمال دهان)"]
[6,"Painting the ceiling and walls with two coats of paint (base and mat eggshell). Painting should be done after scraping and cleaning the surface and applying putty coats where necessary.","m2",140,null,{"$f":"E16*D16","v":0}]
[null,"دهان الجدران والاسقف وجهين (الاول أساس) بعد تنظيف وحف ووضع معجونة حيث يلزم"]
[7,"External waterproof paint for walls with two coats of paint (base and mat eggshell). Painting should be done after scraping and cleaning the surface and applying putty coats where necessary.","m2",18,null,{"$f":"E18*D18","v":0}]
[null,"دهان خارجي الجدران وجهين (الاول أساس) بعد تنظيف وحف ووضع معجونة حيث يلزم"]
["Roofing Work(أعمال الأسطح)"]
[8,"Supply and installation of insulated zinc sheet roofing or wall panels (i.e. sandwish panels), including supporting STEEL structure made out of (10x5x0.3)cm hollow steel elements all properly painted with antirust and oil paint (2 coats each). Structure to be covered with prepainted insulated zinc panels with proper overlapping, complete with all fittings and accessories necessary for the proper execution of the works to engineer's approval.","m2",6,null,{"$f":"D21*E21","v":0}]
[{"$nulls":4},"Total",{"$f":"SUM(F4:F21)","v":0}]